Workbook

Sheet AER CF (hidden)
B1: AER CONDITIONAL FORMATTING
B4: CONDITIONAL FORMATTING MAP
F5: =INDEX(dms_CF_3.6.1, MATCH(dms_TradingName,dms_CF_TradingName))="Y" | G5: =INDEX(dms_CF_3.6.5, MATCH(dms_TradingName,dms_CF_TradingName))="Y" | H5: =INDEX(dms_CF_3.6.6, MATCH(dms_TradingName,dms_CF_TradingName))="Y" | I5: =INDEX(dms_CF_3.6.7.1, MATCH(dms_TradingName,dms_CF_TradingName))="Y" | J5: =INDEX(dms_CF_3.6.7.2, MATCH(dms_TradingName,dms_CF_TradingName))="Y" | K5: =INDEX(dms_CF_3.6.7.3, MATCH(dms_TradingName,dms_CF_TradingName))="Y" | L5: =INDEX(dms_CF_3.6.7.4, MATCH(dms_TradingName,dms_CF_TradingName))="Y" | M5: =INDEX(dms_CF_3.6.8, MATCH(dms_TradingName,dms_CF_TradingName))="Y" | N5: =INDEX(dms_CF_4.1, MATCH(dms_TradingName,dms_CF_TradingName))="Y" | O5: =INDEX(dms_CF_6.6.1, MATCH(dms_TradingName,dms_CF_TradingName))="Y" | P5: =INDEX(dms_CF_6.8, MATCH(dms_TradingName,dms_CF_TradingName))="Y" | Q5: =INDEX(dms_CF_7.12, MATCH(dms_TradingName,dms_CF_TradingName))="Y" | R5: =INDEX(dms_CF_8.1_A, MATCH(dms_TradingName,dms_CF_TradingName))="Y" | S5: =INDEX(dms_CF_8.1_B, MATCH(dms_TradingName,dms_CF_TradingName))="Y" | T5: =INDEX(dms_CF_8.1_Neg, MATCH(dms_TradingName,dms_CF_TradingName))="Y" | U5: =INDEX(dms_CF_4.4.1_Neg, MATCH(dms_TradingName,dms_CF_TradingName))="Y"
B6: dms_CF_TradingName | C6: JurisdictionList | D6: Sector | E6: Segment | F6: dms_CF_3.6.1 | G6: dms_CF_3.6.5 | H6: dms_CF_3.6.6 | I6: dms_CF_3.6.7.1 | J6: dms_CF_3.6.7.2 | K6: dms_CF_3.6.7.3 | L6: dms_CF_3.6.7.4 | M6: dms_CF_3.6.8 | N6: dms_CF_4.1 | O6: dms_CF_6.6.1 | P6: dms_CF_6.8 | Q6: dms_CF_7.12 | R6: dms_CF_8.1_A | S6: dms_CF_8.1_B | T6: dms_CF_8.1_Neg | U6: dms_CF_4.4.1 | V6: dms_CF_MAIFI_flag | W6: Spare1 | X6: Spare2
B7: ActewAGL Distribution | C7: ACT | D7: Electricity | E7: Distribution | G7: Y | I7: Y | J7: Y | K7: N | L7: Y | M7: N | N7: Y | O7: N | P7: Y | Q7: Y | R7: N | S7: Y | T7: Y | U7: N | V7: N | W7: N | X7: N
B8: Ausgrid | C8: NSW | D8: Electricity | E8: Distribution | G8: Y | I8: N | J8: N | K8: N | L8: Y | M8: N | N8: Y | O8: N | P8: Y | Q8: Y | R8: N | S8: Y | T8: Y | U8: N | V8: N | W8: N | X8: N
B9: AusNet (D) | C9: Vic | D9: Electricity | E9: Distribution | G9: N | I9: N | J9: N | K9: N | L9: N | M9: N | N9: Y | O9: N | P9: Y | Q9: N | R9: N | S9: N | T9: Y | U9: N | V9: N | W9: N | X9: N
B10: AusNet (T) | C10: Vic | D10: Electricity | E10: Transmission | G10: N | I10: N | J10: N | K10: N | L10: N | M10: N | N10: Y | O10: N | P10: Y | Q10: N | R10: N | S10: N | T10: Y | U10: N | V10: N | W10: N | X10: N
B11: CitiPower | C11: Vic | D11: Electricity | E11: Distribution | G11: N | I11: N | J11: N | K11: N | L11: N | M11: N | N11: Y | O11: N | P11: Y | Q11: N | R11: N | S11: N | T11: Y | U11: N | V11: N | W11: N | X11: N
B12: Directlink | C12: Qld | D12: Electricity | E12: Transmission | G12: N | I12: N | J12: N | K12: N | L12: N | M12: N | N12: Y | O12: N | P12: Y | Q12: N | R12: N | S12: Y | T12: Y | U12: N | V12: N | W12: N | X12: N
B13: ElectraNet | C13: SA | D13: Electricity | E13: Transmission | G13: N | I13: N | J13: N | K13: N | L13: N | M13: N | N13: Y | O13: N | P13: Y | Q13: N | R13: N | S13: Y | T13: Y | U13: N | V13: N | W13: N | X13: N
B14: Endeavour Energy | C14: NSW | D14: Electricity | E14: Distribution | G14: Y | I14: N | J14: N | K14: N | L14: Y | M14: N | N14: Y | O14: N | P14: Y | Q14: Y | R14: N | S14: Y | T14: Y | U14: Y | V14: N | W14: N | X14: N
B15: Energex | C15: Qld | D15: Electricity | E15: Distribution | G15: Y | I15: N | J15: N | K15: N | L15: N | M15: N | N15: Y | O15: N | P15: Y | Q15: Y | R15: N | S15: Y | T15: Y | U15: Y | V15: N | W15: N | X15: N
B16: Ergon Energy | C16: Qld | D16: Electricity | E16: Distribution | G16: Y | I16: N | J16: N | K16: N | L16: N | M16: N | N16: Y | O16: N | P16: Y | Q16: Y | R16: N | S16: Y | T16: Y | U16: N | V16: N | W16: N | X16: N
B17: Essential Energy | C17: NSW | D17: Electricity | E17: Distribution | G17: Y | I17: N | J17: N | K17: N | L17: Y | M17: N | N17: Y | O17: N | P17: Y | Q17: Y | R17: N | S17: Y | T17: Y | U17: N | V17: N | W17: N | X17: N
B18: Jemena Electricity | C18: Vic | D18: Electricity | E18: Distribution | G18: N | I18: N | J18: N | K18: N | L18: N | M18: N | N18: Y | O18: N | P18: Y | Q18: N | R18: N | S18: N | T18: Y | U18: N | V18: N | W18: N | X18: N
B19: Murraylink | C19: SA | D19: Electricity | E19: Transmission | G19: N | I19: N | J19: N | K19: N | L19: N | M19: N | N19: Y | O19: N | P19: Y | Q19: N | R19: N | S19: Y | T19: Y | U19: N | V19: N | W19: N | X19: N
B20: Power and Water | C20: NT | D20: Electricity | E20: Distribution | G20: N | I20: N | J20: Y | K20: N | L20: N | M20: Y | N20: Y | O20: Y | P20: Y | Q20: Y | R20: N | S20: Y | T20: Y | U20: N | V20: N | W20: N | X20: N
B21: Powercor Australia | C21: Vic | D21: Electricity | E21: Distribution | G21: N | I21: N | J21: N | K21: N | L21: N | M21: N | N21: Y | O21: N | P21: Y | Q21: N | R21: N | S21: N | T21: Y | U21: N | V21: N | W21: N | X21: N
B22: Powerlink | C22: Qld | D22: Electricity | E22: Transmission | G22: N | I22: N | J22: N | K22: N | L22: N | M22: N | N22: Y | O22: N | P22: Y | Q22: N | R22: N | S22: Y | T22: Y | U22: N | V22: N | W22: N | X22: N
B23: SA Power Networks | C23: SA | D23: Electricity | E23: Distribution | G23: Y | I23: N | J23: N | K23: N | L23: N | M23: N | N23: Y | O23: N | P23: Y | Q23: Y | R23: Y | S23: Y | T23: N | U23: N | V23: N | W23: N | X23: N
B24: TasNetworks (D) | C24: Tas | D24: Electricity | E24: Distribution | G24: Y | I24: N | J24: N | K24: N | L24: N | M24: N | N24: Y | O24: N | P24: Y | Q24: Y | R24: N | S24: Y | T24: Y | U24: N | V24: N | W24: N | X24: N
B25: TasNetworks (T) | C25: Tas | D25: Electricity | E25: Transmission | G25: N | I25: N | J25: N | K25: N | L25: N | M25: N | N25: Y | O25: N | P25: Y | Q25: N | R25: N | S25: Y | T25: Y | U25: N | V25: N | W25: N | X25: N
B26: TransGrid | C26: NSW | D26: Electricity | E26: Transmission | G26: N | I26: N | J26: N | K26: N | L26: N | M26: N | N26: Y | O26: N | P26: Y | Q26: N | R26: N | S26: Y | T26: Y | U26: N | V26: N | W26: N | X26: N
B27: United Energy | C27: Vic | D27: Electricity | E27: Distribution | G27: N | I27: N | J27: N | K27: N | L27: N | M27: N | N27: Y | O27: N | P27: Y | Q27: N | R27: N | S27: N | T27: Y | U27: N | V27: N | W27: N | X27: N
B30: Confidential
B31: Amended
B33: Worksheet 6.2 STPIS reliability
B34: Formula | F34: Applied to:
B36: =INDEX(dms_CBD_flag,MATCH(dms_TradingName,dms_TradingName_List))="NO" | F36: $D$11,$D$17,$D$23,$D$33,$D$39,$D$45,$D$55,$D$61,$D$67,$D$77,$D$83,$D$89
B37: =INDEX(dms_Urban_flag,MATCH(dms_TradingName,dms_TradingName_List))="NO" | F37: $D$12,$D$18,$D$24,$D$56,$D$62,$D$78,$D$68,$D$84
B38: =INDEX(dms_ShortRural_flag,MATCH(dms_TradingName,dms_TradingName_List))="NO" | F38: $D$13,$D$19,$D$25,$D$57,$D$63,$D$69,$D$79,$D$85
B39: =INDEX(dms_LongRural_flag,MATCH(dms_TradingName,dms_TradingName_List))="NO" | F39: $D$14,$D$20,$D$26,$D$58,$D$64,$D$65,$D$70,$D$71,$D$80,$D$86
B40: =INDEX(dms_FeederType_5_flag,MATCH(dms_TradingName,dms_TradingName_List))="NO" | F40: $D$87,$D$81,$D$71,$D$65,$D$59,$D$49,$D$43,$D$37,$D$21,$D$15
B41: =dms_MAIFI_Flag="No" | F41: $D$55:$D$72
B44: Business & other details
B45: =(INDEX(dms_Model_Span,MATCH(dms_Model,dms_Model_List))>1)
B46: =(INDEX(dms_Model_Span,MATCH(dms_Model,dms_Model_List))=1)
B49: STYLES IN USE
C50: dms_1
C51: dms_2
C52: dms_3
C53: dms_4
C54: dms_5
C55: dms_NUM
C56: dms_NUM%
C57: dms_Row_Locked
C58: dms_Row1
C59: dms_Row2
C60: dms_T1
C61: dms_T2
C62: dms_BH
C63: dms_BY1
C64: dms_BY2
C65: dms_GH
C66: dms_GY1
C67: dms_GY2
C126: 0
C127: =IFERROR(IF(dms_Model="ARR",(MAX(0,dms_0608_LastRow-dms_0608_OffsetRows)),"not an ARR"),"0") -> not an ARR

Sheet AER NRs (hidden)
B1: AER NAMED RANGES
B3: DROP DOWN SELECTORS USED IN WORKBOOKS
B5: COVER SHEET | C5: dms_DataQuality_List | D5: dms_Confid_status_List
C6: -- select -- | D6: -- select --
C7: Actual | D7: Public
C8: Estimate | D8: Confidential
C9: Consolidated
C12: For all files either AER or business needs to be able to specify the type of submission | D12: For PTRM & RFM templates we must provide a choice in case they change their form of control - otherwise it is drawn from the business specific lookup table above.
C13: dms_SourceList | D13: dms_FormControl_Choices
C14: -- select -- | D14: Revenue cap
C15: After appeal | D15: Revenue yield
C16: Draft decision | D16: Weighted average price cap
C17: Final decision
C18: PTRM update 1
C19: PTRM update 2
C20: PTRM update 3
C21: PTRM update 4
C22: PTRM update 5
C23: PTRM update 6
C24: PTRM update 7
C25: Regulatory proposal
C26: Reporting
C27: Revised regulatory proposal
L30: This is used to create an image to insert on 6.3 STPIS sheet - not for dropdown lists.
B31: CA & RESET RINS DNSP | C31: dms_DNSP_020301_SubstationType | D31: dms_DNSP_020301_ProjectType | E31: dms_DNSP_020301_ProjectTrigger | F31: dms_DNSP_020302_ProjectType | G31: dms_DNSP_020302_ProjectTrigger | H31: dms_STPIS_Exclusion_List | I31: dms_Reason_Interruption | J31: dms_Reason_Interruption_Detailed | L31: Reason for interruption
C32: Subtransmission substation | D32: New substation establishment | E32: Demand growth | F32: New line on new route - single circuit | G32: Demand growth | H32: Weather | I32: Animal | J32: Animal impact | L32: Animal | M32: Animal impact
C33: Zone substation | D33: Substation upgrade - capacity | E33: Voltage issues | F33: New line on new route - dual circuit | G33: Voltage issues | H33: Equipment failure | I33: Asset failure | J33: Animal nesting/burrowing, etc and other | M33: Animal nesting/burrowing, etc and other
C34: Switching station | D34: Substation upgrade - voltage | E34: Reactive power issue | F34: New line on new route - other | G34: Reactive power issue | H34: Operational error | I34: Other | J34: Other | M34: Other
C35: Other | D35: Other | E35: Fault level issues | F35: Line rebuild over existing route - single circuit | G35: Fault level issues | H35: Vegetation | I35: Overloads | J35: LV | L35: Asset failure | M35: LV
E36: Safety | F36: Line rebuild over existing route - dual circuit | G36: Net market benefit | H36: Animals | I36: Planned | J36: Distribution substation | M36: Distribution substation
E37: Environment | F37: Reconductor - Single circuit | G37: Safety | H37: Third party impacts | I37: Network business | J37: HV | M37: HV
E38: Other | F38: Reconductor - Dual circuit | G38: Environment | H38: Transmission failure | I38: Third party | J38: Zone substation | M38: Zone substation
F39: Reconductor - Other | G39: Other | H39: Load shedding | I39: Unknown | J39: Subtransmission | M39: Subtransmission
F40: Line upgrade - raising/retensoring | H40: Inter-distributor connection failure | I40: Vegetation | J40: insert description of 'other' | L40: Other | M40: insert description of 'other'
F41: Line upgrade - voltage upgrade | H41: Other | I41: Weather | J41: Network error | L41: Overloads
F42: Line upgrade - capacity | I42: 2 - STPIS Exclusion (3.3)(a) | J42: Switching and protection error | L42: Planned
F43: String spare circuit | I43: 3 - STPIS Exclusion (3.3)(a) | J43: Fire | L43: Network business | M43: Network error
F44: Other | I44: 4 - STPIS Exclusion (3.3)(a) | J44: Other | M44: Switching and protection error
I45: 5 - STPIS Exclusion (3.3)(a) | J45: Dig-in | L45: Third party | M45: Fire
I46: 6 - STPIS Exclusion (3.3)(a) | J46: Unauthorised access | M46: Other
I47: 7 - STPIS Exclusion (3.3)(a) | J47: Vehicle impact | M47: Dig-in
J48: Unknown | M48: Unauthorised access
J49: Blow-in/Fall-in - NSP responsibility | M49: Vehicle impact
J50: Grow-in - NSP responsibility | L50: Unknown | M50: Unknown
J51: Blow-in/Fall-in - Other responsible party | L51: Vegetation | M51: Blow-in/Fall-in - NSP responsibility
J52: Grow-in - Other responsible party | M52: Grow-in - NSP responsibility
M53: Blow-in/Fall-in - Other responsible party
M54: Grow-in - Other responsible party
L55: Weather
L56: 2 - STPIS Exclusion (3.3)(a)
L57: 3 - STPIS Exclusion (3.3)(a)
L58: 4 - STPIS Exclusion (3.3)(a)
L59: 5 - STPIS Exclusion (3.3)(a)
L60: 6 - STPIS Exclusion (3.3)(a)
L61: 7 - STPIS Exclusion (3.3)(a)
B64: CA & RESET RINS TNSP | C64: dms_TNSP_0203_SubstationType | D64: dms_TNSP_020301_ProjectType | E64: dms_TNSP_020301_ProjectTrigger | F64: dms_TNSP_020302_ProjectType | G64: dms_TNSP_0203_ProjectTrigger
C65: Terminal station | D65: New substation establishment | E65: Demand growth | F65: New line on new route - single circuit | G65: Demand growth
C66: Switching station | D66: Capacity upgrade | E66: Voltage issues | F66: New line on new route - dual circuit | G66: Voltage issues
C67: Transmission substation | D67: Voltage upgrade | E67: Reactive power issue | F67: New line on new route - other | G67: Reactive power issue
C68: Other | D68: Other | E68: Fault level issues | F68: Line rebuild over existing route - single circuit | G68: Fault level issues
E69: Net market benefit | F69: Line rebuild over existing route - dual circuit | G69: Net market benefit
E70: Safety | F70: Reconductor - Single circuit | G70: Safety
E71: Environment | F71: Reconductor - Dual circuit | G71: Environment
E72: Other | F72: Reconductor - Other | G72: Other
F73: Line upgrade - raising/retensoring
F74: Line upgrade - voltage upgrade
F75: Line upgrade - capacity
F76: String spare circuit
F77: Other
B81: NAMED RANGES USED IN ETL PROCESS
B83: CA & RESET RINS DNSP ONLY | C83: dms_020303_01_UOM | D83: dms_020501_01_UOM | E83: dms_020501_02_UOM | F83: dms_020501_03_UOM | G83: dms_020501_04_UOM | H83: dms_020701_01_UOM | I83: dms_020701_02_UOM | J83: dms_020701_01_Rows | K83: dms_040102_01_UOM | L83: dms_040102_04_UOM
C84: Circuit line length in km | D84: 0's | E84: 0's | F84: 0's | G84: 0's | H84: km | I84: km | J84: Route line length within zone | K84: 0's | L84: days
C85: Circuit line length in km | D85: 0's | E85: 0's | F85: 0's | G85: 0's | H85: 0's | I85: 0's | J85: Number of maintenance spans | K85: 0's | L85: 0's
C86: Circuit line length in km | D86: MVA added | E86: MVA added | F86: MVA added | G86: MVA added | H86: km | I86: km | J86: Total length of maintenance spans | K86: 0's | L86: $0s
C87: Circuit line length in km | D87: 0's | E87: 0's | F87: 0's | G87: 0's | H87: km | I87: km | J87: Length of vegetation corridors | K87: $0s | L87: 0's
C88: Number | D88: total spend $0s | E88: total spend $0s | F88: total spend $0s | G88: total spend $0s | H88: 0's | I88: 0's | J88: Average number of trees per maintenance span
C89: Number | D89: net circuit km added | E89: net circuit km added | F89: net circuit km added | G89: net circuit km added | H89: years | I89: years | J89: Average frequency of cutting cycle
C90: Number | D90: total spend $0s | E90: total spend $0s | F90: total spend $0s | G90: total spend $0s
D91: net circuit km added | E91: net circuit km added | F91: net circuit km added | G91: net circuit km added
D92: total spend $0s | E92: total spend $0s | F92: total spend $0s | G92: total spend $0s
D93: 0's | F93: $0s
D94: 0's
D95: 0's
D96: $0s
B99: CA & RESET RINS TNSP ONLY | C99: dms_020701_01_UOM
C100: km
C101: 0's
C102: km
C103: 0's
C104: km
C105: metres
C106: years
B109: CA & RESET RINS DNSP & TNSP | C109: dms_020603_01_UOM
C110: 0's
C111: 0's
C112: 0's
C113: 0's
C114: (per cent)
B117: EB & RESET RINS DNSP ONLY | C117: dms_030601_01_UOM | D117: dms_030601_02_UOM | E117: dms_030701_01_UOM | F117: dms_030702_01_UOM | G117: dms_030703_01_UOM
C118: minutes/customer | D118: minutes/customer | E118: Customer / km | F118: % | G118: km
C119: minutes/customer | D119: minutes/customer | E119: MWh/customer | F119: Number of spans
C120: interruptions/customer | D120: interruptions/customer | E120: kVA / customer | F120: Number of spans
C121: interruptions/customer | D121: interruptions/customer | F121: Number of spans
F122: Number of spans
F123: Years
F124: Years
F125: Trees
F126: Trees
F127: Defects
F128: Defects
F129: Spans
F130: km
F131: Spans
C133: WHEN INSERTING COVER SHEET INTO A TNSP FILE - APPLY THESE NAMED RANGES
B134: EB & RESET RINS TNSP ONLY | C134: dms_030601_01_UOM | E134: dms_030701_01_UOM | F134: dms_030702_01_UOM
C135: % | E135: Number of spans | F135: km
C136: number | E136: Years | F136: %
C137: number | E137: Trees | F137: km
C138: % | E138: Defects | F138: number
C139: number | E139: Number of spans
C140: number | E140: km
C141: % | E141: km
C142: number | E142: Number of spans
C143: number
C144: %
C145: number
C146: %
C147: number
C148: %
C149: number
B151: EB & RESET RINS DNSP & TNSP | C151: dms_EB_RAB_PIT
C152: Beginning of year
C153: End of year
C154: End of year
C155: End of year
C156: End of year
C157: End of year
B159: ARR DNSP ONLY | C159: dms_030605_UOM | D159: dms_03060703_UOM | E159: Spare | F159: Spare
C160: number | D160: number
C161: number | D161: number
C162: number | D162: number
C163: number | D163: number
C164: number | D164: (per cent)
C165: number
C166: number
C167: number
C168: number
C169: number
C170: number
C171: number
C172: (per cent)
C173: (per cent)
B175: RFM | C175: dms_Beg | D175: dms_Mid | E175: dms_End
C176: Beginning of year | D176: Mid year | E176: End of Year
B178: PTRM | C178: dms_PTRM_RAB_PIT | D178: dms_PTRM_TAB_PIT | E178: DMS_Xfactor
C179: Beginning of year | D179: Beginning of year | E179: x factors
C180: End of year | D180: End of year
C181: End of year | D181: End of year
C182: End of year | D182: End of year
C183: End of year
B186: STPIS & MIC NAMED RANGES
B188: These "row descriptions" are the column headings in the various templates but become row descriptions in the ETL process
B190: Table 6.3 sustained interruptions - row descriptions | C190: dms_060301_CustNo_Affected_Row | D190: dms_060301_Avg_Duration_Sustained_Int_Row | E190: dms_060301_Effect_unplanned_SAIDI_Row | F190: dms_060301_Effect_unplanned_SAIFI_Row
C191: Number of customers affected by the interruption | D191: Average duration of sustained customer interruption | E191: Effect on unplanned SAIDI | F191: Effect on unplanned SAIFI
B194: Table 6.1 telephone answering - row descriptions and start date | C194: dms_060101_Rows | D194: dms_060102_Rows | E194: dms_060101_StartDateTxt
C195: Total number of calls (after removing excluded events) | D195: Number of calls answered within 30 seconds (after excluding excluded events) | E195: =dms_060701_StartDateTxt -> 1-Jul-2006
B198: Table 6.8.1 - row descriptions | C198: dms_060801_01_Rows | D198: dms_060801_02_Rows | E198: dms_060801_03_Rows | F198: dms_060801_04_Rows
C199: Number of interruptions | D199: Duration of interruptions | E199: Total unplanned minutes off supply | F199: Effect on unplanned MAIFI
B202: Table 7.9.4 - market impact component - row descriptions | C202: dms_070904_01_Rows | D202: without exclusions | E202: with exclusions
B205: These headings (Lists) are determined from the INDEX/MATCH function on the NSP selected on the Business & other details sheet
B207: Table 6.7.1 - daily performance data - unplanned - MAIFI -- row descriptions and header named range values | C207: dms_060701_Feeder_Header_Lvl4 | D207: =INDEX(dms_FeederName_1,MATCH(dms_TradingName,dms_TradingName_List)) -> CBD | E207: =INDEX(dms_FeederName_1,MATCH(dms_TradingName,dms_TradingName_List)) -> CBD | F207: =INDEX(dms_FeederName_2,MATCH(dms_TradingName,dms_TradingName_List)) -> Urban | G207: =INDEX(dms_FeederName_2,MATCH(dms_TradingName,dms_TradingName_List)) -> Urban | H207: =INDEX(dms_FeederName_3,MATCH(dms_TradingName,dms_TradingName_List)) -> Short rural | I207: =INDEX(dms_FeederName_3,MATCH(dms_TradingName,dms_TradingName_List)) -> Short rural | J207: =INDEX(dms_FeederName_4,MATCH(dms_TradingName,dms_TradingName_List)) -> Long rural | K207: =INDEX(dms_FeederName_4,MATCH(dms_TradingName,dms_TradingName_List)) -> Long rural | L207: =IF((INDEX(dms_FeederName_5,MATCH(dms_TradingName,dms_TradingName_List))=0),"Network",(INDEX(dms_FeederName_5,MATCH(dms_TradingName,dms_TradingName_List)))) -> Network | M207: =IF((INDEX(dms_FeederName_5,MATCH(dms_TradingName,dms_TradingName_List))=0),"Network",(INDEX(dms_FeederName_5,MATCH(dms_TradingName,dms_TradingName_List)))) -> Network | N207: Network | O207: Network
C209: dms_060701_Rows | D209: All events | E209: After removing excluded events | F209: All events | G209: After removing excluded events | H209: All events | I209: After removing excluded events | J209: All events | K209: After removing excluded events | L209: All events | M209: After removing excluded events | N209: All events | O209: After removing excluded events
D210: the number of column headings changes from 10 to 12 depending on the number of feeder categories for the NSP
C212: dms_0603_FeederList | D212: =INDEX(dms_FeederName_1,MATCH(dms_TradingName,dms_TradingName_List)) -> CBD | E212: =INDEX(dms_FeederName_2,MATCH(dms_TradingName,dms_TradingName_List)) -> Urban | F212: =INDEX(dms_FeederName_3,MATCH(dms_TradingName,dms_TradingName_List)) -> Short rural | G212: =INDEX(dms_FeederName_4,MATCH(dms_TradingName,dms_TradingName_List)) -> Long rural
B215: Use these to add to specific worksheets in existing files | C215: Use these to add to specific worksheets in existing files
B218: ARRs 6.7 STPIS daily performance | C218: dms_060101_Values | D218: dms_060102_Values | E218: dms_060701_Values
C219: dms_LeapYear
B222: ARR's 6.8 STPIS exclusions | C222: dms_060801_Event_Date | D222: dms_060801_OutageID | E222: dms_060801_FeederID | F222: dms_060801_FeederClass | G222: dms_060801_CauseID | H222: dms_060801_01_Values | I222: dms_060801_02_Values | J222: dms_060801_03_Values | K222: dms_060801_Excl_Cat | L222: dms_060801_04_Values
C223: dms_060801_StartCell
B226: CA 6.3 sustained interruptions | C226: dms_060301_Event_Date | D226: dms_060301_Event_Time | E226: dms_060301_AssetID | F226: dms_060301_FeederClass | G226: dms_060301_Reason | H226: dms_060301_DetailedReason | I226: dms_060301_CustNo_Affected_Values | J226: dms_060301_Avg_Duration_Sustained_Int_Values | K226: dms_060301_Effect_unplanned_SAIDI_Values | L226: dms_060301_Effect_unplanned_SAIFI_Values | M226: dms_060301_MED

Sheet AER lookups (hidden)
B1: AER LOOKUP TABLES
B3: Data in these columns used for data validation and database purposes.
B4: Date last modified: | C4: 2017-01-16 | D4: added (Albury and Victora) for AGN
C5: 2016-10-17 | D5: updated TransGrid's correct legal name, corrected TasNetworks (T) to June financial year
C6: 2017-02-01 | D6: inserted Power and Water, added NRs (dms_FeederCat_1 and dms_FeederCat_2)
C7: 2017-03-03 | D7: inserted AEMO as a business | AB7: FOR ELECTRICITY BUSINESSES ONLY
C8: 2018-03-28 | D8: major changes to accommodate STPIS
C9: Template Version | D9: 5 | AB9: Feeder Types | AF9: TasNetworks (D) | AG9: MAIFI flag | AH9: Feeder Names
AB11: CBD | AC11: Urban | AD11: Short rural | AE11: long rural | AF11: EXTRA
B12: dms_TradingName_List | C12: dms_TradingNameFull_List | D12: dms_ABN_List | E12: dms_JurisdictionList | F12: dms_Sector_List | G12: dms_Segment_List | H12: dms_FormControl_List | I12: dms_RPT_List | J12: dms_RPTMonth_List | K12: dms_CRCPlength_List | L12: dms_FRCPlength_List | M12: dms_PRCPlength_List | N12: dms_663_List | O12: dms_DeterminationRef_List | P12: dms_Addr1_List | Q12: dms_Addr2_List | R12: dms_Suburb_List | S12: dms_State_List | T12: dms_PostCode_List | U12: dms_PAddr1_List | V12: dms_PAddr2_List | W12: dms_PSuburb_List | X12: dms_PState_List | Y12: dms_PPostCode_List | Z12: dms_ContactName1_List | AA12: dms_ContactPh1_List | AB12: dms_ContactEmail_List | AC12: dms_CBD_flag | AD12: dms_Urban_flag | AE12: dms_ShortRural_flag | AF12: dms_LongRural_flag | AG12: dms_FeederType_5_flag | AH12: dms_MAIFI_flag_List | AI12: dms_FeederName_1 | AJ12: dms_FeederName_2 | AK12: dms_FeederName_3 | AL12: dms_FeederName_4 | AM12: dms_FeederName_5 | AN12: dms_Public_Lighting_List | AO12: Column1
B13: AusNet (D) | C13: AusNet Electricity Services Pty Ltd | D13: 91064651118 | E13: Vic | F13: Electricity | G13: Distribution | H13: Revenue cap | I13: Financial | J13: June | K13: 5 | L13: 5 | M13: 5 | N13: 2 | O13: 2016-20 Distribution Determination | P13: Level 32 | Q13: 2 Southbank Boulevard | R13: SOUTHBANK | S13: Vic | T13: 3006 | U13: Locked Bag 14051 | W13: MELBOURNE CITY MAIL CENTRE | X13: Vic | Y13: 8001 | Z13: Thomas Hall | AB13: thomas. hall@ausnetservices.com.au | AC13: NO | AD13: YES | AE13: YES | AF13: YES | AG13: NO | AH13: YES | AI13: CBD | AJ13: Urban | AK13: Short rural | AL13: Long rural | AN13: YES | AO13: AusNet (D)
B14: Australian Distribution Co. (Vic) | C14: Australian Distribution Co. | D14: 11222333444 | E14: Vic | F14: Electricity | G14: Distribution | H14: Revenue cap | I14: Financial | J14: June | K14: 5 | L14: 5 | M14: 5 | N14: 2 | O14: distribution determination | P14: 123 Straight Street | R14: MELBOURNE | S14: Vic | T14: 3000 | U14: PO Box 123 | W14: MELBOURNE | X14: Vic | Y14: 3000 | Z14: Bob Smith | AA14: 02 1234 5678 | AB14: bob@auselec.net.au | AC14: YES | AD14: YES | AE14: YES | AF14: YES | AG14: NO | AH14: NO | AI14: CBD | AJ14: Urban | AK14: Short rural | AL14: Long rural | AN14: YES | AO14: Australian Distribution Co.
B15: CitiPower | C15: CitiPower | D15: 76064651056 | E15: Vic | F15: Electricity | G15: Distribution | H15: Revenue cap | I15: Financial | J15: June | K15: 5 | L15: 5 | M15: 5 | N15: 2 | O15: 2016-20 Distribution Determination | P15: 40 Market Street | R15: MELBOURNE | S15: Vic | T15: 3000 | U15: Locked Bag 14090 | W15: MELBOURNE | X15: Vic | Y15: 8001 | Z15: Hannah Williams | AA15: 03 9683 4088 | AB15: hwilliams@powercor.com.au | AC15: YES | AD15: YES | AE15: NO | AF15: NO | AG15: NO | AH15: YES | AI15: CBD | AJ15: Urban | AK15: Short rural | AL15: Long rural | AN15: YES | AO15: CitiPower
B16: Jemena Electricity | C16: Jemena Electricity | D16: 82064651083 | E16: Vic | F16: Electricity | G16: Distribution | H16: Revenue cap | I16: Financial | J16: June | K16: 5 | L16: 5 | M16: 5 | N16: 2 | O16: 2016-20 Distribution Determination | P16: Level 16 | Q16: 567 Collins Street | R16: MELBOURNE | S16: Vic | T16: 3000 | U16: PO Box 16182 | W16: MELBOURNE | X16: Vic | Y16: 8001 | Z16: Matthew Serpell | AA16: 03 9173 8231 | AB16: matthew.serpell@jemena.com.au | AC16: NO | AD16: YES | AE16: YES | AF16: NO | AG16: NO | AH16: YES | AI16: CBD | AJ16: Urban | AK16: Short rural | AL16: Long rural | AN16: YES | AO16: Jemena Electricity
B17: Powercor Australia | C17: Powercor Australia | D17: 89064651109 | E17: Vic | F17: Electricity | G17: Distribution | H17: Revenue cap | I17: Financial | J17: June | K17: 5 | L17: 5 | M17: 5 | N17: 2 | O17: 2016-20 Distribution Determination | P17: 40 Market Street | R17: MELBOURNE | S17: Vic | T17: 3000 | U17: Locked bag 14090 | W17: MELBOURNE | X17: Vic | Y17: 8001 | Z17: Hannah Williams | AA17: 03 9683 4088 | AB17: hwilliams@powercor.com.au | AC17: NO | AD17: NO | AE17: YES | AF17: YES | AG17: NO | AH17: YES | AI17: CBD | AJ17: Urban | AK17: Short rural | AL17: Long rural | AN17: YES | AO17: Powercor Australia
B18: United Energy | C18: United Energy | D18: 70064651029 | E18: Vic | F18: Electricity | G18: Distribution | H18: Revenue cap | I18: Financial | J18: June | K18: 5 | L18: 5 | M18: 5 | N18: 2 | O18: 2016-20 Distribution Determination | P18: 43-45 Centreway | R18: MOUNT WAVERLEY | S18: Vic | T18: 3149 | U18: PO Box 449 | W18: MOUNT WAVERLEY | X18: Vic | Y18: 3170 | Z18: Mathew Abraham | AA18: 03 8846 9758 | AB18: mathew.abraham@ue.com.au | AC18: NO | AD18: NO | AE18: YES | AF18: NO | AG18: NO | AH18: YES | AI18: CBD | AJ18: Urban | AK18: Short rural | AL18: Long rural | AN18: YES | AO18: United Energy
B23: The Reg Year Ending (dms_RYE) must be set to the last year of the regulatory period. For forecast data is is usually (FRCP_y5) for actual it is a single year (CRY). For historical actual data the RYE will need to be set manually in the business details sheet by setting the dms_Multiyear_flag to 1 and putting the correct value in 'dms_Specified_FinalYear. See cells C67:C68
B24: dms_Model_List | C24: dms_Model_Name_Format1 | D24: dms_Worksheet_List | E24: dms_Model_Span_List
B25: ARR | C25: Annual Reporting | D25: =IF(dms_MultiYear_ResponseFlag="yes","RECAST HISTORICAL ANNUAL REPORTING","ANNUAL REPORTING") -> RECAST HISTORICAL ANNUAL REPORTING | E25: 1
B26: CA | C26: Category Analysis | D26: =IF(dms_MultiYear_ResponseFlag="yes","RECAST HISTORICAL CATEGORY ANALYSIS","CATEGORY ANALYSIS") -> RECAST HISTORICAL CATEGORY ANALYSIS | E26: 1
B27: CESS | C27: Capitlal Expenditure | D27: CAPITLAL EXPENDITURE SHARING SCHEMING | E27: 5
B28: CPI | C28: CPI | D28: CPI | E28: 5
B29: EB | C29: Economic Benchmarking | D29: HISTORICAL ECONOMIC BENCHMARKING - FINANCIAL YEARS | E29: 1
B30: Pricing | C30: Pricing Proposal | D30: PRICING PROPOSAL | E30: 5
B31: PTRM | C31: Post Tax Revenue Model | D31: POST TAX REVENUE MODEL | E31: 5
B32: Reset | C32: Regulatory Reporting (Reset) | D32: REGULATORY REPORTING STATEMENT | E32: 5
B33: RFM | C33: Roll Forward Model | D33: ROLL FORWARD MODEL | E33: 5
B34: WACC | C34: Weighted Average Cost of Capital | D34: WEIGHTED AVERAGE COST OF CAPITAL | E34: 1
B38: Financial | C38: Calendar | E38: PREVIOUS | G38: CURRENT | I38: FORTHCOMING
B39: 1987-88 | C39: 1988 | D39: PRCP_y1 | E39: =INDEX(INDIRECT(dms_RPT),dms_PRCP_start_row) -> 2011-12 | F39: CRCP_y1 | G39: =INDEX(INDIRECT(dms_RPT),dms_CRCP_start_row) -> 2016-17 | H39: =FRCP_y1 -> 2021-22 | I39: =INDEX(INDIRECT(dms_RPT),dms_FRCP_start_row) -> 2021-22
B40: 1988-89 | C40: 1989 | D40: PRCP_y2 | E40: =INDEX(INDIRECT(dms_RPT),dms_PRCP_start_row+1) -> 2012-13 | F40: CRCP_y2 | G40: =INDEX(INDIRECT(dms_RPT),dms_CRCP_start_row+1) -> 2017-18 | H40: FRCP_y2 | I40: =INDEX(INDIRECT(dms_RPT),dms_FRCP_start_row+1) -> 2022-23
B41: 1989-90 | C41: 1990 | D41: PRCP_y3 | E41: =INDEX(INDIRECT(dms_RPT),dms_PRCP_start_row+2) -> 2013-14 | F41: CRCP_y3 | G41: =INDEX(INDIRECT(dms_RPT),dms_CRCP_start_row+2) -> 2018-19 | H41: FRCP_y3 | I41: =INDEX(INDIRECT(dms_RPT),dms_FRCP_start_row+2) -> 2023-24
B42: 1990-91 | C42: 1991 | D42: PRCP_y4 | E42: =INDEX(INDIRECT(dms_RPT),dms_PRCP_start_row+3) -> 2014-15 | F42: CRCP_y4 | G42: =INDEX(INDIRECT(dms_RPT),dms_CRCP_start_row+3) -> 2019-20 | H42: FRCP_y4 | I42: =INDEX(INDIRECT(dms_RPT),dms_FRCP_start_row+3) -> 2024-25
B43: 1991-92 | C43: 1992 | D43: PRCP_y5 | E43: =INDEX(INDIRECT(dms_RPT),dms_PRCP_start_row+4) -> 2015-16 | F43: CRCP_y5 | G43: =INDEX(INDIRECT(dms_RPT),dms_CRCP_start_row+4) -> 2020-21 | H43: FRCP_y5 | I43: =INDEX(INDIRECT(dms_RPT),dms_FRCP_start_row+4) -> 2025-26
B44: 1992-93 | C44: 1993 | D44: PRCP_y6 | E44: =INDEX(INDIRECT(dms_RPT),dms_PRCP_start_row+5) -> 2016-17 | F44: CRCP_y6 | G44: =INDEX(INDIRECT(dms_RPT),dms_CRCP_start_row+5) -> 2021-22 | H44: FRCP_y6 | I44: =INDEX(INDIRECT(dms_RPT),dms_FRCP_start_row+5) -> 2026-27
B45: 1993-94 | C45: 1994 | D45: PRCP_y7 | E45: =INDEX(INDIRECT(dms_RPT),dms_PRCP_start_row+6) -> 2017-18 | F45: CRCP_y7 | G45: =INDEX(INDIRECT(dms_RPT),dms_CRCP_start_row+6) -> 2022-23 | H45: FRCP_y7 | I45: =INDEX(INDIRECT(dms_RPT),dms_FRCP_start_row+6) -> 2027-28
B46: 1994-95 | C46: 1995 | D46: PRCP_y8 | E46: =INDEX(INDIRECT(dms_RPT),dms_PRCP_start_row+7) -> 2018-19 | F46: CRCP_y8 | G46: =INDEX(INDIRECT(dms_RPT),dms_CRCP_start_row+7) -> 2023-24 | H46: FRCP_y8 | I46: =INDEX(INDIRECT(dms_RPT),dms_FRCP_start_row+7) -> 2028-29
B47: 1995-96 | C47: 1996 | D47: PRCP_y9 | E47: =INDEX(INDIRECT(dms_RPT),dms_PRCP_start_row+8) -> 2019-20 | F47: CRCP_y9 | G47: =INDEX(INDIRECT(dms_RPT),dms_CRCP_start_row+8) -> 2024-25 | H47: FRCP_y9 | I47: =INDEX(INDIRECT(dms_RPT),dms_FRCP_start_row+8) -> 2029-30
B48: 1996-97 | C48: 1997 | D48: PRCP_y10 | E48: =INDEX(INDIRECT(dms_RPT),dms_PRCP_start_row+9) -> 2020-21 | F48: CRCP_y10 | G48: =INDEX(INDIRECT(dms_RPT),dms_CRCP_start_row+9) -> 2025-26 | H48: FRCP_y10 | I48: =INDEX(INDIRECT(dms_RPT),dms_FRCP_start_row+9) -> 2030-31
B49: 1997-98 | C49: 1998 | D49: PRCP_y11 | E49: =INDEX(INDIRECT(dms_RPT),dms_PRCP_start_row+10) -> 2021-22 | F49: CRCP_y11 | G49: =INDEX(INDIRECT(dms_RPT),dms_CRCP_start_row+10) -> 2026-27 | H49: FRCP_y11 | I49: =INDEX(INDIRECT(dms_RPT),dms_FRCP_start_row+10) -> 2031-32
B50: 1998-99 | C50: 1999 | D50: PRCP_y12 | E50: =INDEX(INDIRECT(dms_RPT),dms_PRCP_start_row+11) -> 2022-23 | F50: CRCP_y12 | G50: =INDEX(INDIRECT(dms_RPT),dms_CRCP_start_row+11) -> 2027-28 | H50: FRCP_y12 | I50: =INDEX(INDIRECT(dms_RPT),dms_FRCP_start_row+11) -> 2032-33
B51: 1999-00 | C51: 2000 | D51: PRCP_y13 | E51: =INDEX(INDIRECT(dms_RPT),dms_PRCP_start_row+12) -> 2023-24 | F51: CRCP_y13 | G51: =INDEX(INDIRECT(dms_RPT),dms_CRCP_start_row+12) -> 2028-29 | H51: FRCP_y13 | I51: =INDEX(INDIRECT(dms_RPT),dms_FRCP_start_row+12) -> 2033-34
B52: 2000-01 | C52: 2001 | D52: PRCP_y14 | E52: =INDEX(INDIRECT(dms_RPT),dms_PRCP_start_row+13) -> 2024-25 | F52: CRCP_y14 | G52: =INDEX(INDIRECT(dms_RPT),dms_CRCP_start_row+13) -> 2029-30 | H52: FRCP_y14 | I52: =INDEX(INDIRECT(dms_RPT),dms_FRCP_start_row+13) -> 2034-35
B53: 2001-02 | C53: 2002 | D53: PRCP_y15 | E53: =INDEX(INDIRECT(dms_RPT),dms_PRCP_start_row+14) -> 2025-26 | F53: CRCP_y15 | G53: =INDEX(INDIRECT(dms_RPT),dms_CRCP_start_row+14) -> 2030-31 | H53: FRCP_y15 | I53: =INDEX(INDIRECT(dms_RPT),dms_FRCP_start_row+14) -> 2035-36
B54: 2002-03 | C54: 2003 | D54: PRCP_y16 | E54: =INDEX(INDIRECT(dms_RPT),dms_PRCP_start_row+15) -> 2026-27 | F54: CRCP_y16 | G54: =INDEX(INDIRECT(dms_RPT),dms_CRCP_start_row+15) -> 2031-32 | H54: FRCP_y16 | I54: =INDEX(INDIRECT(dms_RPT),dms_FRCP_start_row+15) -> 2036-37
B55: 2003-04 | C55: 2004
B56: 2004-05 | C56: 2005
B57: 2005-06 | C57: 2006 | E57: CRY - FRY
B58: 2006-07 | C58: 2007 | D58: dms_y1 | E58: =IFERROR(INDEX(INDIRECT(dms_RPT),dms_CRY_start_row),0) -> 2006-07
B59: 2007-08 | C59: 2008 | D59: dms_y2 | E59: =IFERROR(INDEX(INDIRECT(dms_RPT),dms_CRY_start_row+1),0) -> 2007-08
B60: 2008-09 | C60: 2009 | D60: dms_y3 | E60: =IFERROR(INDEX(INDIRECT(dms_RPT),dms_CRY_start_row+2),0) -> 2008-09
B61: 2009-10 | C61: 2010 | D61: dms_y4 | E61: =IFERROR(INDEX(INDIRECT(dms_RPT),dms_CRY_start_row+3),0) -> 2009-10
B62: 2010-11 | C62: 2011 | D62: dms_y5 | E62: =IFERROR(INDEX(INDIRECT(dms_RPT),dms_CRY_start_row+4),0) -> 2010-11
B63: 2011-12 | C63: 2012 | D63: dms_y6 | E63: =IFERROR(INDEX(INDIRECT(dms_RPT),dms_CRY_start_row+5),0) -> 2011-12
B64: 2012-13 | C64: 2013 | D64: dms_y7 | E64: =IFERROR(INDEX(INDIRECT(dms_RPT),dms_CRY_start_row+6),0) -> 2012-13
B65: 2013-14 | C65: 2014 | D65: dms_y8 | E65: =IFERROR(INDEX(INDIRECT(dms_RPT),dms_CRY_start_row+7),0) -> 2013-14
B66: 2014-15 | C66: 2015 | D66: dms_y9 | E66: =IFERROR(INDEX(INDIRECT(dms_RPT),dms_CRY_start_row+8),0) -> 2014-15
B67: 2015-16 | C67: 2016 | D67: dms_y10 | E67: =IFERROR(INDEX(INDIRECT(dms_RPT),dms_CRY_start_row+9),0) -> 2015-16
B68: 2016-17 | C68: 2017 | D68: dms_y11 | E68: =IFERROR(INDEX(INDIRECT(dms_RPT),dms_CRY_start_row+10),0) -> 2016-17
B69: 2017-18 | C69: 2018 | D69: dms_y12 | E69: =IFERROR(INDEX(INDIRECT(dms_RPT),dms_CRY_start_row+11),0) -> 2017-18
B70: 2018-19 | C70: 2019 | D70: dms_y13 | E70: =IFERROR(INDEX(INDIRECT(dms_RPT),dms_CRY_start_row+12),0) -> 2018-19
B71: 2019-20 | C71: 2020 | D71: dms_y14 | E71: =IFERROR(INDEX(INDIRECT(dms_RPT),dms_CRY_start_row+13),0) -> 2019-20
B72: 2020-21 | C72: 2021 | D72: dms_y15 | E72: =IFERROR(INDEX(INDIRECT(dms_RPT),dms_CRY_start_row+14),0) -> 2020-21
B73: 2021-22 | C73: 2022 | D73: dms_y16 | E73: =IFERROR(INDEX(INDIRECT(dms_RPT),dms_CRY_start_row+15),0) -> 2021-22
B74: 2022-23 | C74: 2023
B75: 2023-24 | C75: 2024
B76: 2024-25 | C76: 2025
B77: 2025-26 | C77: 2026
B78: 2026-27 | C78: 2027
B79: 2027-28 | C79: 2028
B80: 2028-29 | C80: 2029
B81: 2029-30 | C81: 2030
B82: 2030-31 | C82: 2031
B83: 2031-32 | C83: 2032
B84: 2032-33 | C84: 2033
B85: 2033-34 | C85: 2034
B86: 2034-35 | C86: 2035
B87: 2035-36 | C87: 2036
B88: 2036-37 | C88: 2037

Sheet AER ETL (hidden)
B1: AER ETL INFORMATION
B3: USES NAMED RANGES FLAG | C3: yes | D3: dms_Defined_Names_Used
B5: IF THIS IS AN ABC RIN - make sure the the named range CRY is applied and the named range dms_dollar_nom_UOM is applied
B6: IF THIS IS A RESET RIN - make sure the named ranges CRY and dms_dollar_nom_UOM are NOT present in the workbook
B7: FOR ABC RINS THAT SPAN MULTIPLE YEARS - make sure MultiYear Flag is set and final year entered as required
B9: Full trading name | C9: =INDEX(dms_TradingNameFull_List,MATCH(dms_TradingName,dms_TradingName_List)) -> Powercor Australia | E9: dms_TradingNameFull
A10: Selected here | B10: Model / RIN | C10: EB | D10: dms_Model
A11: Read from Business & other details | B11: Source | C11: =dms_Selected_Source -> Regulatory proposal | D11: dms_Source
B12: Data quality | C12: =dms_Selected_Quality -> Consolidated | D12: dms_DQ_1
B13: Data status | C13: =dms_Selected_Status -> Public | D13: dms_DQ_2
B14: Amendment reason | C14: =dms_Amendment_Text -> . | F14: dms_AmendmentReason
B15: Submission date | C15: =dms_Typed_Submission_Date -> 2020-01-31 | D15: dms_SubmissionDate
A17: Redundant | B17: EBSS - First application of scheme in forthcoming period? | C17: No
A18: Pre-populated from lookup table | B18: Data ingestion data quality | C18: Consolidated | D18: dms_DataQuality | E18: =IF(dms_DQ_2="Confidential","Consolidated","Public")
B19: Sector | C19: =INDEX(dms_Sector_List,MATCH(dms_TradingName,dms_TradingName_List)) -> Electricity | D19: dms_Sector | E19: =INDEX(dms_Sector_List,MATCH(dms_TradingName,dms_TradingName_List))
B20: Segment | C20: =INDEX(dms_Segment_List,MATCH(dms_TradingName,dms_TradingName_List)) -> Distribution | D20: dms_Segment | E20: =INDEX(dms_Segment_List,MATCH(dms_TradingName,dms_TradingName_List))
B21: Regulatory Year Ending | C21: =dms_RYE_result -> 2019 | D21: dms_RYE | E21: =IF(dms_MultiYear_Flag=1,LEFT(dms_Specified_FinalYear,2)&RIGHT(dms_Specified_FinalYear,2),INDEX(dms_RYE_Formula_Result,MATCH(dms_Model,dms_Model_List)))
B22: Reporting Period Type | C22: =INDEX(dms_RPT_List,MATCH(dms_TradingName,dms_TradingName_List)) -> Financial | D22: dms_RPT | E22: =INDEX(dms_RPT_List,MATCH(dms_TradingName,dms_TradingName_List))
B23: EB/CA Unit of Measure for Monetary Values | C23: $0s | D23: dms_dollar_nom_UOM | E23: If the cover sheet is attached to an ABC RIN apply the NAMED RANGE to the cell
B24: Security Classification | C24: Public | D24: dms_Classification | E24: Always Public
B25: Jurisdiction | C25: =INDEX(dms_JurisdictionList,MATCH(dms_TradingName,dms_TradingName_List)) -> Vic | D25: dms_Jurisdiction | E25: =INDEX(dms_JurisdictionList,MATCH(dms_TradingName,dms_TradingName_List))
A26: Relevant for PTRM, RFMs and Reset RINS | B26: $ REAL REFERENCES
B27: Does the named range CRY exist in this file? | C27: =IFERROR(CRY,"NO") -> 2006-07
B28: CRY-1 (last full calendar year before CRY) | C28: =IFERROR(IF(dms_RPT="calendar",CRY-1,LEFT(CRY,4)),"CRY not present") -> 2006 | D28: dms_Cal_Year_B4_CRY | E28: '=IF(dms_RPT="financial",VALUE(LEFT(dms_SingleYear_FinalYear_Result,4)),VALUE(LEFT(dms_SingleYear_FinalYear_Result,4)-1))
B29: Dollar $ real month | C29: =INDEX(dms_RPTMonth_List,MATCH(dms_TradingName,dms_TradingName_List)) -> June | D29: dms_RPTMonth | E29: =INDEX(dms_RPTMonth_List,MATCH(dms_TradingName,dms_TradingName_List))
B30: Dollar $ real (the last month before the FRCP_y1) | C30: =IF(dms_SingleYearModel="yes",CONCATENATE(dms_RPTMonth)&" "&VALUE((LEFT(CRY,2))&RIGHT(CRY,2)),CONCATENATE(dms_RPTMonth)&" "&dms_DollarReal_year) -> June 2007 | D30: dms_DollarReal | E30: =IF(SUM(dms_SingleYear_Model)>0,CONCATENATE(dms_RPTMonth)&" "&VALUE((LEFT(CRY,2))&RIGHT(CRY,2)),CONCATENATE(dms_RPTMonth)&" "&VALUE((LEFT(dms_RYE,2)&RIGHT(dms_RYE,2))))
B31: Dollar $ real previous year (PRCP_y5) | C31: =IF(dms_SingleYearModel="yes",CONCATENATE(dms_RPTMonth)&" "&VALUE((LEFT(CRY,2))&RIGHT(CRY,2)),CONCATENATE(dms_RPTMonth)&" "&dms_Previous_DollarReal_year) -> June 2007 | D31: dms_DollarReal_Prev | E31: =IF(SUM(dms_SingleYear_Model)>0,CONCATENATE(dms_RPTMonth)&" "&VALUE(((LEFT(CRY,2))&RIGHT(CRY,2))-1),CONCATENATE(dms_RPTMonth)&" "&VALUE(((LEFT(dms_CRCP_FirstYear_Result,2)&RIGHT(dms_CRCP_FirstYear_Result,2))))-1)
B32: PTRM/ RFMs
B33: Form of control | C33: =INDEX(dms_FormControl_List,MATCH(dms_TradingName,dms_TradingName_List)) -> Revenue cap | D33: dms_FormControl | E33: =INDEX(dms_FormControl_List,MATCH(dms_TradingName,dms_TradingName_List))
A34: All potential values for Regulatory Years or RYEs as calculated | B34: This block works out the various RYE's for ALL RIN types and MODELS
B35: dms_start_year | C35: =FRCP_y1 -> 2021-22 | D35: FRCP_y1 from cover sheet
B36: dms_CRY_start_year | C36: =IFERROR(CRY,CRCP_y4) -> 2006-07 | D36: If this has a year in it then named range CRY exists
B37: dms_CRY_start_row | C37: =IFERROR(MATCH(dms_CRY_start_year,INDIRECT(dms_RPT),0),0) -> 20
B38: dms_FRCP_start_row | C38: =MATCH(dms_start_year,INDIRECT(dms_RPT),0) -> 35 | D38: Uses FRCP_y1 as a start reference
B39: dms_CRCP_start_row | C39: =dms_FRCP_start_row-dms_CRCPlength_Num -> 30 | D39: Uses the value in dms_CRCPlength_Num
B40: dms_PRCP_start_row | C40: =dms_FRCP_start_row-SUM(dms_CRCPlength_Num+dms_PRCPlength_Num) -> 25 | D40: Uses the value in dms_CRCPlength_Num and dms_PRCPlength_Num
B41: dms_RYE_start_row | C41: =dms_FRCP_start_row+(dms_FRCPlength_Num-1) -> 39 | D41: Uses the value in dms_FRCPlength_Num-1
B42: FRCP_start_year | C42: =INDEX(INDIRECT(dms_RPT),dms_FRCP_start_row) -> 2021-22 | D42: Converts the FRCP start row to display the year
B43: CRCP_start_year | C43: =INDEX(INDIRECT(dms_RPT),dms_CRCP_start_row) -> 2016-17 | D43: Converts the CRCP start row to display the year
B44: PRCP_start_year | C44: =INDEX(INDIRECT(dms_RPT),dms_PRCP_start_row) -> 2011-12 | D44: Converts the PRCP start row to display the year
B45: FRCP_final_year | C45: =INDEX(INDIRECT(dms_RPT),dms_FRCP_start_row+dms_FRCPlength_Num-1) -> 2025-26 | D45: Finds the FRCP final year
B46: CRCP_final_year | C46: =INDEX(INDIRECT(dms_RPT),dms_CRCP_start_row+dms_CRCPlength_Num-1) -> 2020-21 | D46: Finds the CRCP final year
B47: PRCP_final_year | C47: =INDEX(INDIRECT(dms_RPT),dms_PRCP_start_row+dms_FRCPlength_Num-1) -> 2015-16 | D47: Finds the PRCP final year
B48: dms_Reset_final_year | C48: =INDEX(INDIRECT(dms_RPT),dms_RYE_start_row) -> 2025-26 | D48: For Resets and PTRM/RFMs (same as FRCP_final_year)
B49: dms_SpecifiedYear_final_year | C49: =FRY -> 2018-19 | D49: FRY from cover sheet
B50: dms_DollarReal_year | C50: =LEFT(CRCP_final_year,2)&RIGHT(CRCP_final_year,2) -> 2021 | D50: Uses the value in CRCP_final_year
B51: dms_Previous_DollarReal_year | C51: =LEFT(PRCP_final_year,2)&RIGHT(PRCP_final_year,2) -> 2016 | D51: Uses the value in PRCP_final_year
B52: dms_CRY_RYE | C52: =IFERROR(LEFT(CRY,2)&RIGHT(CRY,2),0) -> 2007 | D52: For ABC single year RINS
B53: dms_Reset_RYE | C53: =IF(dms_Model_Span>1,(LEFT(dms_Reset_final_year,2)&RIGHT(dms_Reset_final_year,2)),0) -> 0 | D53: If model span > 1 then uses dms_Reset_final_year otherwise it's a multi year ABC
B54: dms_Specified_RYE | C54: =IF(dms_MultiYear_ResponseFlag="Yes",(LEFT(dms_Specified_FinalYear,2)&RIGHT(dms_Specified_FinalYear,2)),0) -> 2019 | D54: If multi year ABC then it uses dms_Specified_FinalYear
B55: dms_Model_Span | C55: =INDEX(dms_Model_Span_List,MATCH(dms_Model,dms_Model_List)) -> 1 | D55: Only single year RINS are set as 1. Otherwise the result of 5 is used to signify that it is more than 1 year span
B56: dms_RYE_result | C56: =IF(dms_MultiYear_ResponseFlag="yes",dms_Specified_RYE,(IF(dms_Model_Span>1,dms_Reset_RYE,dms_CRY_RYE))) -> 2019 | D56: Nested IF - feeds into dms_RYE
B57: dms_Reset_Span | C57: =IF(dms_Reset_RYE>0,CONCATENATE(FRCP_y1," to ",FRCP_final_year),0) -> 0 | D57: Reset span of years as text
B58: dms_SpecifiedYear_Span | C58: =IF(dms_Specified_RYE>0,CONCATENATE(CRY," to ",dms_Specified_FinalYear),0) -> 2006-07 to 2018-19 | D58: Multi year ABC span of years as text
B59: dms_Header_Span | C59: =IF(dms_MultiYear_Flag=1,dms_SpecifiedYear_Span,IF(dms_Model_Span>1,dms_Reset_Span,CRY)) -> 2006-07 to 2018-19 | D59: NESTED IF - for Sheet Headers
B60: ABC RINS THAT SPAN MULTIPLE YEARS
B61: This is a multi year ABC RIN? | C61: Yes
C62: =IF(dms_MultiYear_ResponseFlag="No",0,1) -> 1 | D62: dms_MultiYear_Flag | E62: This is set from the answer provided above
C63: =IF(dms_MultiYear_Flag=1,FRY,"not a Multiple year submission") -> 2018-19 | D63: dms_Specified_FinalYear | E63: The result here is returned to dms_CRCP_FinalYear_Result if response to Q in C73 is "yes" and dms_MultiYear_Flag is set to 1
B64: Start year for 5.2 in Multi year ABC RINS | C64: =IFERROR(IF(dms_MultiYear_Flag=1,FRY,CRY),"not an ABC") -> 2018-19 | D64: dms_0502_Inst_Year | E64: =IF(dms_MultiYear_Flag=1,FRY,CRY) | G64: For single year RINS this is CRY - multi year RINS need to start a the end of the span of years (ie. FRY)
B65: WHAT IS THE RYE?
B66: Reg Period Lengths
B67: PRCP length in years | C67: =INDEX(dms_PRCPlength_List,MATCH(dms_TradingName,dms_TradingName_List)) -> 5 | D67: dms_PRCPlength_Num | E67: =INDEX(dms_PRCPlength_List,MATCH(dms_TradingName,dms_TradingName_List))
B68: CRCP length in years | C68: =INDEX(dms_CRCPlength_List,MATCH(dms_TradingName,dms_TradingName_List)) -> 5 | D68: dms_CRCPlength_Num | E68: =INDEX(dms_CRCPlength_List,MATCH(dms_TradingName,dms_TradingName_List))
B69: FRCP length in years | C69: =INDEX(dms_FRCPlength_List,MATCH(dms_TradingName,dms_TradingName_List)) -> 5 | D69: dms_FRCPlength_Num | E69: =INDEX(dms_FRCPlength_List,MATCH(dms_TradingName,dms_TradingName_List))
B70: Single year RIN?
B71: Single Year ABC RIN ? | C71: =IF(dms_Model="EB",1,0) -> 1 | D71: dms_EB
C72: =IF(dms_Model="CA",1,0) -> 0 | D72: dms_CA | E72: =dms_SingleYear_Model
C73: =IF(dms_Model="ARR",1,0) -> 0 | D73: dms_ARR
B74: Is this a single Year ABC RIN? | C74: =IF(SUM(dms_SingleYear_Model)=1,"yes","no") -> yes | D74: dms_SingleYearModel | E74: =IF(SUM(dms_SingleYear_Model)=1,"yes","no")
B75: Single Year Final Year Result | C75: =IF(AND(dms_SingleYearModel="yes",dms_MultiYear_Flag=0),CRY,0) -> 0 | D75: dms_SingleYear_FinalYear_Result | E75: =IFERROR(IF(SUM(dms_SingleYear_Model)<>0,(INDIRECT(dms_SingleYear_FinalYear_Ref)),"not a single year RIN"),"CRY not present")
B76: Multi year RIN?
B78: Multi Year Reset/Model? | C78: =IF(dms_Model_Span>1,"yes","no") -> no
B79: Final year result for Reset/Model | C79: =IF(dms_Model_Span>1,dms_Reset_final_year,0) -> 0
B81: Multi Year ABC RIN? | C81: =IF(dms_MultiYear_Flag=1,"yes","no") -> yes
B82: Final year result for ABC multi year | C82: =IF(dms_MultiYear_Flag=1,dms_SpecifiedYear_final_year,0) -> 2018-19
B84: EB RINS
B85: Calendar Year for table 3.6 data | C85: =IFERROR(IF(dms_Segment="Transmission",dms_Cal_Year_B4_CRY,CRY),"CRY not present") -> 2006-07 | D85: dms_0306_Year | E85: =IF(dms_Segment="Transmission",dms_Cal_Year_B4_CRY,CRY)
B86: CA RINS
B87: Find how many rows in tables 6.3 sustained interruptions? | E87: dms_060301_MaxRows only returns a valid value when cover sheet is attached to a CA file
C88: =IF(dms_Model<>"CA","not a CA","Is a CA") -> not a CA | E88: =IF(dms_Model<>"CA","not a CA","Is a CA")
B89: dms_060301_Avg_Duration_Sustained_Int_Values present? | C89: =IFERROR(IF(INDEX(dms_060301_Avg_Duration_Sustained_Int_Values,1,1)<>"","yes","no"),"no") -> no | D89: dms_060301_checkvalue | E89: =IFERROR(IF(INDEX(dms_060301_Avg_Duration_Sustained_Int_Values,1,1)<>"","yes","no"),"no")
C90: =IF(AND(dms_Model="CA",(dms_060301_checkvalue="no")),"error - NR not present","no errors") -> no errors | E90: =IF(AND(dms_Model="CA",(dms_060301_checkvalue="no")),"error - NR not present","no errors")
B91: Table 6.3.1 - last row reference | C91: =IFERROR(IF(dms_Model="CA",LOOKUP(2,1/(dms_060301_Avg_Duration_Sustained_Int_Values<>""),(ROW(dms_060301_Avg_Duration_Sustained_Int_Values))),"not a CA"),"6.3 not present") -> not a CA | D91: dms_060301_LastRow | E91: =IFERROR(IF(dms_Model="CA",LOOKUP(2,1/(dms_060301_Avg_Duration_Sustained_Int_Values<>""),(ROW(dms_060301_Avg_Duration_Sustained_Int_Values))),"not a CA"),"6.3 not present")
B92: Table 6.3.1 - max number rows | C92: =IFERROR(IF(dms_Model="CA",(dms_060301_LastRow-15),"not a CA"),"error") -> not a CA | D92: dms_060301_MaxRows | E92: =IFERROR(IF(dms_Model="CA",(dms_060301_LastRow-15),"not a CA"),"error")
B93: Table 6.6.3 - Public lighting repair - no. business days | C93: =INDEX(dms_663_List,MATCH(dms_TradingName,dms_TradingName_List)) -> 2 | D93: dms_663 | E93: =INDEX(dms_663_List,MATCH(dms_TradingName,dms_TradingName_List))
B94: ARR or RESET RINS
B95: How many rows in tables 6.1 or 6.7? (leap year?) | C95: insert dms_LeapYear NR if required | E95: 'dms_LeapYear is used to determine dms_060701_Max_Rows BUT it is only found on worksheet 6.1 or 6.7 and the date value in the cell is used to determine whether it is a leap year
B96: Is dms_LeapYear named range present? | C96: =IFERROR(IF(dms_LeapYear,"yes"),"no") -> no
B97: Table 6.7.1 - includes a leap year? | C97: =IFERROR(IF(MONTH(DATE(YEAR(dms_LeapYear),2,29))=2,"is a leap year","not a leap year"), "dms_LeapYear not present") -> dms_LeapYear not present | D97: dms_LeapYear_Result | E97: =IFERROR(IF(MONTH(DATE(YEAR(dms_LeapYear),2,29))=2,"is a leap year","not a leap year"),"dms_LeapYear not present")
B98: MaxRows if Reset and leap year | C98: =IF(dms_LeapYear_Result="is a leap year",1827,1826) -> 1826 | D98: dms_060701_Reset_MaxRows | E98: =IF(dms_LeapYear_Result="is a leap year",1827,1826) | H98: number of days present in Reset RIN table
B99: MaxRows if ARR and leap year | C99: =IF(dms_LeapYear_Result="is a leap year",366,365) -> 365 | D99: dms_060701_ARR_MaxRows | E99: =IF(dms_LeapYear_Result="is a leap year",366,365) | H99: number of days present in ARR RIN table
B100: Table 6.7.1 - Max Rows (leap year/ non leap year) | C100: =IF(dms_Model="ARR",dms_060701_ARR_MaxRows,IF(dms_Model="Reset",dms_060701_Reset_MaxRows,"not a relevant RIN type")) -> not a relevant RIN type | D100: dms_060701_MaxRows | E100: =IF(dms_Model="ARR",dms_060701_ARR_MaxRows,IF(dms_Model="Reset",dms_060701_Reset_MaxRows,"not a relevant RIN type"))
B101: How many columns in 6.7? (4 or 5 feeder categories) | C101: =IF(dms_FifthFeeder_flag_NSP="NO","This NSP has only 4 feeder categories","This NSP has 5 feeder categories") -> This NSP has only 4 feeder categories
B102: Table 6.7.1 - Last column (# of feeder categories > 4) | C102: =IF(dms_FifthFeeder_flag_NSP="NO",10,12) -> 10 | D102: dms_060701_MaxCols | E102: =IF(dms_FifthFeeder_flag_NSP="NO",8,10)
B103: Table 6.7.1 - Number of offset rows | C103: =IF(dms_Model="ARR",15,9) -> 9 | D103: dms_060701_OffsetRows | E103: =IF(dms_Model="ARR",15,9)
B104: Start date for telephone answering in 6.1 or 6.7? | E104: Using 060101 as naming standard not 060701 for start dates
B105: Table 6.1.1 and 6.7.1 - Start Date as Text | C105: =IF(dms_SingleYearModel="yes",(CONCATENATE(IF(LEN(CRY)=4,"1-Jan-","1-Jul-"),LEFT(CRY,4))),(CONCATENATE(IF(LEN(PRCP_y4)=4,"1-Jan-","1-Jul-"),LEFT(PRCP_y4,4)))) -> 1-Jul-2006 | D105: dms_060101_StartDateTxt | E105: =IF(SUM(dms_SingleYear_Model)>1,(CONCATENATE(IF(LEN(CRY)=4,"1-Jan-","1-Jul-"),LEFT(CRY,4))),(CONCATENATE(IF(LEN(CRCP_y4)=4,"1-Jan-","1-Jul-"),LEFT(CRCP_y4,4))))
B106: Table 6.1.1 and 6.7.1 - Start Date as Date Value | C106: =DATEVALUE(dms_060701_StartDateTxt) -> 38899 | D106: dms_060101_StartDateVal | E106: =DATEVALUE(dms_060701_StartDateTxt)
B107: ARRs
B108: How many rows in table 6.8? | C108: insert dms_060801_StartCell NR if required | E108: dms_060801_StartCell is only found on worksheet 6.8 and is used to determine the starting date for the date range
B109: Is dms_060801_StartCell named range present? | C109: yes | E109: =IFERROR(IF((ROW(dms_060801_StartCell)-1)=1,"yes","yes"),"no")
B110: Table 6.8 - Number of offset rows | C110: 12 | D110: dms_0608_OffsetRows | E110: =IFERROR(IF(dms_Model="ARR",(ROW(dms_060801_StartCell)-1),"not an ARR"),"6.8 error")
B111: Table 6.8 - Last row | C111: 0 | D111: dms_0608_LastRow | E111: =IFERROR(IF(dms_060801_StartCell<>"",IF(dms_Model="ARR",(LOOKUP(2,1/(dms_060801_01_Values<>""),(ROW(dms_060801_01_Values)))),"not an ARR"),0),"0")
B112: Table 6.8 - MaxRows | C112: =IFERROR(IF(dms_Model="ARR",(MAX(0,dms_0608_LastRow-dms_0608_OffsetRows)),"not an ARR"),"0") -> not an ARR | D112: dms_060801_MaxRows | E112: =IFERROR(IF(dms_Model="ARR",(MAX(0,dms_0608_LastRow-dms_0608_OffsetRows)),"not an ARR"),"0")
B113: TNSP RESET RINS
B114: Table 7.9.4 only appears in TNSPs Reset RIN
B115: Table 7.9.4 - first year | C115: =LEFT(PRCP_y3,4) -> 2013 | D115: dms_070904_Start_Year | E115: =LEFT(PRCP_y3,4)
B117: MISC
B118: Distribution Determination Reference | C118: =INDEX(dms_DeterminationRef_List,MATCH(dms_TradingName,dms_TradingName_List)) -> 2016-20 Distribution Determination | D118: dms_DeterminationRef
B119: Public lighting NSP? | C119: =INDEX(dms_Public_Lighting_List,MATCH(dms_TradingName,dms_TradingName_List)) -> YES | D119: dms_Public_Lighting | E119: =INDEX(dms_Public_Lighting_List,MATCH(dms_TradingName,dms_TradingName_List))
B120: CBD Feeder for this business | C120: =INDEX(dms_CBD_flag,MATCH(dms_TradingName,dms_TradingName_List)) -> NO | D120: dms_CBD_flag_NSP
B121: Urban Feeder for this business | C121: =INDEX(dms_Urban_flag,MATCH(dms_TradingName,dms_TradingName_List)) -> NO | D121: dms_Urban_flag_NSP
B122: Short rural Feeder for this business | C122: =INDEX(dms_ShortRural_flag,MATCH(dms_TradingName,dms_TradingName_List)) -> YES | D122: dms_ShortRural_flag_NSP
B123: Long rural Feeder for this business | C123: =INDEX(dms_LongRural_flag,MATCH(dms_TradingName,dms_TradingName_List)) -> YES | D123: dms_LongRural_flag_NSP
B124: Fifth Feeder Category (eg. TasNetworks (D)) | C124: =INDEX(dms_FeederType_5_flag,MATCH(dms_TradingName,dms_TradingName_List)) -> NO | D124: dms_FifthFeeder_flag_NSP | E124: =INDEX(dms_FeederType_5_flag,MATCH(dms_TradingName,dms_TradingName_List))
B126: DISCARD FILES
B127: discard this record? | C127: NO | D127: dms_DISCARD | E127: If record is to be discarded from DB set this flag to YES
B129: SUBSET FILES
B130: Is this Submission File a Subset File | C130: YES | D130: dms_Partial
B133: REGULATORY YEARS FOR MULTI RYE SUBMISSIONS
B134: Multiple RYE flag | C134: YES | D134: dms_Multi_RYE_flag
C135: Manually specify RYE | D135: Named ranges to apply
C136: 2013 | D136: dms_RYE_01
C137: 2014 | D137: dms_RYE_02
C138: 2015 | D138: dms_RYE_03
C139: 2016 | D139: dms_RYE_04
C140: 2017 | D140: dms_RYE_05
C141: 2018 | D141: dms_RYE_06
C142: 2019 | D142: dms_RYE_07
C143: 2020 | D143: dms_RYE_08
C144: 2021 | D144: dms_RYE_09

Sheet Instructions
B2: =CONCATENATE(dms_Sector," ",dms_Segment," ", "Network Service Provider") -> Electricity Distribution Network Service Provider
B3: =INDEX(dms_Worksheet_List,MATCH(dms_Model,dms_Model_List)) -> HISTORICAL ECONOMIC BENCHMARKING - FINANCIAL YEARS
B4: =CONCATENATE("This template is to be used by ",dms_TradingNameFull," to fulfil its reporting obligations to the AER.") -> This template is to be used by Powercor Australia to fulfil its reporting obligations to the AER.
B5: INSTRUCTIONS
B6: GENERAL | C6: Complete the Business & other details worksheet before entering data or values in any other worksheets. The Business & other details worksheet is linked to other worksheets within the workbook and automatically generates certain column headings and conditional formatting.
B8: CONFIDENTIAL INFORMATION | C8: Please use the macro at the top of each worksheet to identify confidential information in the confidential workbook.
C9: -Do this by selecting the cell or cells that contain confidential information and then run the Mark selection as CONFIDENTIAL macro. This will format the cells a specific colour that is identified by the AER's database which in turn marks that information as confidential. -To reverse this, select the cell or cells and run the Return selection to NON-CONFIDENTIAL macro.
B11: RESPONSES | C11: Please return two (2) files to the AER: 1. A confidential version which must contain a complete set of all responses with confidential information marked using the Mark selection CONFIDENTIAL macro and which has been completed using the locked template file provided by the AER. 2. A public version with confidential information either removed completely or aggregated in some form together with writtten consent to disclose the public version of the response. Use the drop down box on the Business and other details worksheet to identify the file as either confidential ('consolidated') or public.
B13: AMENDMENTS | C13: If an NSP wishes to correct data previously submitted to the AER it should resubmit that data using the original completed submission as the starting point. Please make any necessary changes to the data. Data that is not being amended should be left unchanged. NSPs must identify the reason for the amendments in the Amendment Reason box on the Business and other details worksheet. NSPs may provide further details regarding any amendments in the Amendments worksheet. .
C14: NSP may use Amended Data macro to highlight cells that contain amended data. NB: if data is also CONFIDENTIAL, re-apply the Confidentiality macro after applying the Amended macro
C15: Please resubmit two (2) files - a confidential version and a public version of the amended submission to the AER
B17: UNITS OF MEASURE | C17: All amounts are to be unrounded and reported on a one for one basis: that is 1000 is to be entered as '1000'. Applicable units of measure may be identified in the table column headings or row descriptors.
B19: INPUT / NON-INPUT CELLS
D20: Yellow = Input cell (mandatory)
D21: Darker yellow = input cell (mandatory)
D22: Orange = input cell (if data available)
D23: Grey = Not applicable/No inputs required
D24: PLEASE DO NOT ENTER TEXT into cells that are to contain numeric data.
B27: NAVIGATION | C27: Many tables in the worksheets have been "grouped" to allow for easy navigation. To ungroup or group data use the outline symbols in the left margin (for Row groupings) or above the columns (for column groupings).

Sheet Contents
B1: =INDEX(dms_Worksheet_List,MATCH(dms_Model,dms_Model_List)) -> HISTORICAL ECONOMIC BENCHMARKING - FINANCIAL YEARS
B2: =INDEX(dms_TradingNameFull_List,MATCH(dms_TradingName,dms_TradingName_List)) -> Powercor Australia
B3: =dms_Header_Span -> 2006-07 to 2018-19
C7: CONTENTS
C9: SUBMISSION | D9: Business & other details
C11: ECONOMIC BENCHMARKING | D11: 3.1 Revenue
D12: 3.2 Operating expenditure
D13: 3.2.3 Provisions
D14: 3.3 Assets (RAB)
D15: 3.4 Operational data
D16: 3.5 Physical assets
D17: 3.6 Quality of service
D18: 3.7 Operating environment

Sheet Business & other details
V1: =INDEX(dms_Worksheet_List,MATCH(dms_Model,dms_Model_List)) -> HISTORICAL ECONOMIC BENCHMARKING - FINANCIAL YEARS
V2: =INDEX(dms_TradingNameFull_List,MATCH(dms_TradingName,dms_TradingName_List)) -> Powercor Australia
V3: =dms_Header_Span -> 2006-07 to 2018-19
V4: BUSINESS & OTHER DETAILS
V6: INSTRUCTIONS
V7: Complete the following business details regulatory template before entering data or values in any other regulatory template. This regulatory template is linked to other cells within the spreadsheet and automatically generates column headings and conditional formatting to distinguish business specific input and non-input cells.
Q9: SUBMISSION PARTICULARS INPUT SHEET
V12: ENTITY DETAILS
V14: Business Name
V16: Short name | AL16: Powercor Australia
V17: ACN/ABN | AL17: =INDEX(dms_ABN_List,MATCH(dms_TradingName,dms_TradingName_List)) -> 89064651109
V21: Business Address | BQ21: Postal Address
V23: Address 1 | AL23: =INDEX(dms_Addr1_List,MATCH(dms_TradingName,dms_TradingName_List)) -> 40 Market Street | BI23: Address 1 | BQ23: =INDEX(dms_PAddr1_List,MATCH(dms_TradingName,dms_TradingName_List)) -> Locked bag 14090
V24: Address 2 | AL24: =IF(ISBLANK(INDEX(dms_Addr2_List,MATCH(dms_TradingName,dms_TradingName_List))),"",(INDEX(dms_Addr2_List,MATCH(dms_TradingName,dms_TradingName_List)))) ->  | BI24: Address 2 | BQ24: =IF(ISBLANK(INDEX(dms_PAddr2_List,MATCH(dms_TradingName,dms_TradingName_List))),"",(INDEX(dms_PAddr2_List,MATCH(dms_TradingName,dms_TradingName_List)))) -> 
V25: Suburb | AL25: =INDEX(dms_Suburb_List,MATCH(dms_TradingName,dms_TradingName_List)) -> MELBOURNE | BI25: Suburb | BQ25: =INDEX(dms_PSuburb_List,MATCH(dms_TradingName,dms_TradingName_List)) -> MELBOURNE
V26: State | AL26: =INDEX(dms_State_List,MATCH(dms_TradingName,dms_TradingName_List)) -> Vic | AV26: Post code | AX26: =INDEX(dms_PostCode_List,MATCH(dms_TradingName,dms_TradingName_List)) -> 3000 | BI26: State | BQ26: =INDEX(dms_PState_List,MATCH(dms_TradingName,dms_TradingName_List)) -> Vic | CA26: Post code | CC26: =INDEX(dms_PPostCode_List,MATCH(dms_TradingName,dms_TradingName_List)) -> 8001
BA28: `
V30: Contact Names
V32: Name | AL32: Brent Cleeve | BI32: Name
V33: Phone | AL33: (03) 9683 4465 | BI33: Phone
V34: Email | AL34: bcleeve@powercor.com.au | BI34: Email
V39: REGULATORY CONTROL PERIODS
V42: RESETS | AF42: Forthcoming period | AR42: 2021-22 | BA42: =FRCP_y2 -> 2022-23 | BJ42: =FRCP_y3 -> 2023-24 | BS42: =FRCP_y4 -> 2024-25 | CB42: =FRCP_y5 -> 2025-26
AR43: =FRCP_y6 -> 2026-27 | BA43: =FRCP_y7 -> 2027-28 | BJ43: =FRCP_y8 -> 2028-29 | BS43: =FRCP_y9 -> 2029-30 | CB43: =FRCP_y10 -> 2030-31
AR44: =FRCP_y11 -> 2031-32 | BA44: =FRCP_y12 -> 2032-33 | BJ44: =FRCP_y13 -> 2033-34 | BS44: =FRCP_y14 -> 2034-35 | CB44: =FRCP_y15 -> 2035-36
AF46: Current period | AR46: =CRCP_y1 -> 2016-17 | BA46: =CRCP_y2 -> 2017-18 | BJ46: =CRCP_y3 -> 2018-19 | BS46: =CRCP_y4 -> 2019-20 | CB46: =CRCP_y5 -> 2020-21
AR47: =CRCP_y6 -> 2021-22 | BA47: =CRCP_y7 -> 2022-23 | BJ47: =CRCP_y8 -> 2023-24 | BS47: =CRCP_y9 -> 2024-25 | CB47: =CRCP_y10 -> 2025-26
AR48: =CRCP_y11 -> 2026-27 | BA48: =CRCP_y12 -> 2027-28 | BJ48: =CRCP_y13 -> 2028-29 | BS48: =CRCP_y14 -> 2029-30 | CB48: =CRCP_y15 -> 2030-31
AF50: Previous period | AR50: =PRCP_y1 -> 2011-12 | BA50: =PRCP_y2 -> 2012-13 | BJ50: =PRCP_y3 -> 2013-14 | BS50: =PRCP_y4 -> 2014-15 | CB50: =PRCP_y5 -> 2015-16
AR51: =PRCP_y6 -> 2016-17 | BA51: =PRCP_y7 -> 2017-18 | BJ51: =PRCP_y8 -> 2018-19 | BS51: =PRCP_y9 -> 2019-20 | CB51: =PRCP_y10 -> 2020-21
AR52: =PRCP_y11 -> 2021-22 | BA52: =PRCP_y12 -> 2022-23 | BJ52: =PRCP_y13 -> 2023-24 | BS52: =PRCP_y14 -> 2024-25 | CB52: =PRCP_y15 -> 2025-26
V54: ANNUAL RINS | AF54: Commencing year | AR54: 2006-07
AF56: Final year | AR56: 2018-19
V60: SUBMISSION DETAILS
AF62: RIN type | AR62: =INDIRECT(dms_Model) -> Economic Benchmarking
V64: THIS FILE | AF64: Source | AR64: Regulatory proposal
AF66: Data Quality | AR66: Consolidated
AF68: Confidentiality Status | AR68: Public
AF70: Amended RIN Amendment Reason | AR70: .
AF74: Submission Date | AR74: 2020-01-31

Sheet 3.1 Revenue
B1: =INDEX(dms_Worksheet_List,MATCH(dms_Model,dms_Model_List)) -> HISTORICAL ECONOMIC BENCHMARKING - FINANCIAL YEARS
B2: =INDEX(dms_TradingNameFull_List,MATCH(dms_TradingName,dms_TradingName_List)) -> Powercor Australia
B3: =dms_Header_Span -> 2006-07 to 2018-19
B4: 3.1 REVENUE
B6: There are THREE (x TWO) tables on this worksheet. Both ROWS and COLUMNS have been grouped for ease of navigation. see the Instructions sheet on how to group or ungroup tables.
B8: 3.1.1 - REVENUE GROUPING BY CHARGEABLE QUANTITY
C9: STANDARD CONTROL SERVICES | P9: ALTERNATIVE CONTROL SERVICES
C10: REVENUE ($0's) | P10: REVENUE ($0's)
C11: =dms_y1 -> 2006-07 | D11: =dms_y2 -> 2007-08 | E11: =dms_y3 -> 2008-09 | F11: =dms_y4 -> 2009-10 | G11: =dms_y5 -> 2010-11 | H11: =dms_y6 -> 2011-12 | I11: =dms_y7 -> 2012-13 | J11: =dms_y8 -> 2013-14 | K11: =dms_y9 -> 2014-15 | L11: =dms_y10 -> 2015-16 | M11: =dms_y11 -> 2016-17 | N11: =dms_y12 -> 2017-18 | P11: =dms_y1 -> 2006-07 | Q11: =dms_y2 -> 2007-08 | R11: =dms_y3 -> 2008-09 | S11: =dms_y4 -> 2009-10 | T11: =dms_y5 -> 2010-11 | U11: =dms_y6 -> 2011-12 | V11: =dms_y7 -> 2012-13 | W11: =dms_y8 -> 2013-14 | X11: =dms_y9 -> 2014-15 | Y11: =dms_y10 -> 2015-16 | Z11: =dms_y11 -> 2016-17 | AA11: =dms_y12 -> 2017-18
A12: DREV0101 | B12: Revenue from Fixed Customer Charges | C12: 16802535.82 | D12: 16482127.98 | E12: 16711781.72 | F12: 16965356.12 | G12: 17431195.08 | H12: 18877144.19 | I12: 21136637.17 | J12: 35151995.85 | K12: 65543056.2 | L12: 95273357.42 | M12: 123255095.8 | N12: 141039732.6 | P12: 0 | Q12: 0 | R12: 0 | S12: 0 | T12: 0 | U12: 0 | V12: 0 | W12: 0 | X12: 0 | Y12: 0 | Z12: 0 | AA12: 0
A13: DREV0102 | B13: Revenue from Energy Delivery charges where time of use is not a determinant | C13: 159801630.9 | D13: 161838255.8 | E13: 166558342.2 | F13: 165830058.5 | G13: 157450386.9 | H13: 154316163.9 | I13: 163572259 | J13: 175753339.6 | K13: 183001958.7 | L13: 173883923.6 | M13: 150990341 | N13: 140327040.1 | P13: 0 | Q13: 0 | R13: 0 | S13: 0 | T13: 0 | U13: 0 | V13: 0 | W13: 0 | X13: 0 | Y13: 0 | Z13: 0 | AA13: 0
A14: DREV0103 | B14: Revenue from On–Peak Energy Delivery charges | C14: 135238769.9 | D14: 139605903.1 | E14: 146522959.6 | F14: 152571129.2 | G14: 156021046.9 | H14: 171234781.4 | I14: 199756562.9 | J14: 217320617.3 | K14: 209962443.2 | L14: 197633662 | M14: 191173311 | N14: 181367633.7 | P14: 0 | Q14: 0 | R14: 0 | S14: 0 | T14: 0 | U14: 0 | V14: 0 | W14: 0 | X14: 0 | Y14: 0 | Z14: 0 | AA14: 0
A15: DREV0104 | B15: Revenue from Shoulder period Energy Delivery Charges | C15: 0 | D15: 0 | E15: 0 | F15: 0 | G15: 0 | H15: 0 | I15: 1151.710088 | J15: 78340.39061 | K15: 319368.0723 | L15: 476877.3918 | M15: 445493.75 | N15: 417193.3019 | P15: 0 | Q15: 0 | R15: 0 | S15: 0 | T15: 0 | U15: 0 | V15: 0 | W15: 0 | X15: 0 | Y15: 0 | Z15: 0 | AA15: 0
A16: DREV0105 | B16: Revenue from Off–Peak Energy Delivery charges | C16: 21180223.62 | D16: 21481771.42 | E16: 22087535.29 | F16: 22256540.84 | G16: 22335623.46 | H16: 24512801.59 | I16: 28447454.06 | J16: 31095315.3 | K16: 36317540.54 | L16: 43007429.47 | M16: 48821522.27 | N16: 53141253.32 | P16: 0 | Q16: 0 | R16: 0 | S16: 0 | T16: 0 | U16: 0 | V16: 0 | W16: 0 | X16: 0 | Y16: 0 | Z16: 0 | AA16: 0
A17: DREV0106 | B17: Revenue from controlled load customer charges | C17: 1429788.592 | D17: 1393795.775 | E17: 1337367.407 | F17: 1290981.528 | G17: 1214689.732 | H17: 1168681.917 | I17: 1185425.508 | J17: 1422019.814 | K17: 2336016.843 | L17: 5130757.154 | M17: 6690013.415 | N17: 5993458.152 | P17: 0 | Q17: 0 | R17: 0 | S17: 0 | T17: 0 | U17: 0 | V17: 0 | W17: 0 | X17: 0 | Y17: 0 | Z17: 0 | AA17: 0
A18: DREV0107 | B18: Revenue from unmetered supplies | C18: 3651467.914 | D18: 3757893.565 | E18: 3865190.617 | F18: 3980509.998 | G18: 4094442.65 | H18: 4310461.981 | I18: 4813207.916 | J18: 5440704.629 | K18: 5152046.764 | L18: 5052099.273 | M18: 5790868.59 | N18: 6031333.888 | P18: 0 | Q18: 0 | R18: 0 | S18: 0 | T18: 0 | U18: 0 | V18: 0 | W18: 0 | X18: 0 | Y18: 0 | Z18: 0 | AA18: 0
A19: DREV0108 | B19: Revenue from Contracted Maximum Demand charges | C19: 58244498.92 | D19: 61016454.47 | E19: 63911947.8 | F19: 65547958.97 | G19: 67456109.51 | H19: 72334988.4 | I19: 80538684.48 | J19: 94582620.59 | K19: 120388013.4 | L19: 96985553.39 | M19: 28255544.5 | N19: 0 | P19: 0 | Q19: 0 | R19: 0 | S19: 0 | T19: 0 | U19: 0 | V19: 0 | W19: 0 | X19: 0 | Y19: 0 | Z19: 0 | AA19: 0
A20: DREV0109 | B20: Revenue from Measured Maximum Demand charges | C20: 0 | D20: 0 | E20: 0 | F20: 0 | G20: 0 | H20: 0 | I20: 0 | J20: 0 | K20: 0 | L20: 21393731.5 | M20: 69164088.53 | N20: 101779217.5 | P20: 0 | Q20: 0 | R20: 0 | S20: 0 | T20: 0 | U20: 0 | V20: 0 | W20: 0 | X20: 0 | Y20: 0 | Z20: 0 | AA20: 0
A21: DREV0110 | B21: Revenue from metering charges | C21: 0 | D21: 0 | E21: 0 | F21: 0 | G21: 0 | H21: 0 | I21: 0 | J21: 0 | K21: 0 | L21: 0 | M21: 0 | N21: 0 | P21: 0 | Q21: 0 | R21: 0 | S21: 0 | T21: 0 | U21: 0 | V21: 0 | W21: 0 | X21: 0 | Y21: 38949573 | Z21: 75990866.29 | AA21: 65772491.46
A22: DREV0111 | B22: Revenue from connection charges | C22: 0 | D22: 0 | E22: 0 | F22: 0 | G22: 0 | H22: 0 | I22: 0 | J22: 0 | K22: 0 | L22: 0 | M22: 0 | N22: 0 | P22: 6107574.37 | Q22: 7480881.66 | R22: 8843272.22 | S22: 9173330.74 | T22: 10028871.42 | U22: 10973357.72 | V22: 10782029.22 | W22: 9972486.108 | X22: 9243391.256 | Y22: 10019348.56 | Z22: 11928549.7 | AA22: 13724228.09
A23: DREV0112 | B23: Revenue from public lighting charges | C23: 0 | D23: 0 | E23: 0 | F23: 0 | G23: 0 | H23: 0 | I23: 0 | J23: 0 | K23: 0 | L23: 0 | M23: 0 | N23: 0 | P23: 4675266.545 | Q23: 5281035.48 | R23: 5808781.495 | S23: 6050395.31 | T23: 6907089.615 | U23: 7915056.655 | V23: 8824881.48 | W23: 9318880.985 | X23: 8710995.445 | Y23: 8216398.515 | Z23: 8357856.145 | AA23: 8648828.52
A24: DREV0113 | B24: Revenue from other Sources | C24: 0 | D24: 0 | E24: 0 | F24: 0 | G24: 0 | H24: 0 | I24: 0 | J24: 0 | K24: 0 | L24: 0 | M24: 0 | N24: 0 | P24: 7889536.215 | Q24: 7136130.25 | R24: 5344093.855 | S24: 4684316.095 | T24: 8081919.95 | U24: 12045051.96 | V24: 11397218.55 | W24: 10450732.91 | X24: 10946166.19 | Y24: 10345363.76 | Z24: 9712049.07 | AA24: 10198164.15
A25: DREV01 | B25: Total revenue by chargeable quantity | C25: =SUM(C12:C24) -> 396348915.7 | D25: =SUM(D12:D24) -> 405576202.1 | E25: 420995124.7 | F25: 428442535.2 | G25: 426003494.3 | H25: 446755023.3 | I25: 499451382.8 | J25: 560844953.5 | K25: =SUM(K12:K24) -> 623020443.7 | L25: 638837391.2 | M25: =SUM(M12:M24) -> 624586278.8 | N25: 630096862.5 | P25: =SUM(P12:P24) -> 18672377.13 | Q25: =SUM(Q12:Q24) -> 19898047.39 | R25: =SUM(R12:R24) -> 19996147.57 | S25: =SUM(S12:S24) -> 19908042.15 | T25: =SUM(T12:T24) -> 25017880.99 | U25: =SUM(U12:U24) -> 30933466.34 | V25: =SUM(V12:V24) -> 31004129.25 | W25: =SUM(W12:W24) -> 29742100 | X25: 28900552.89 | Y25: 67530683.83 | Z25: 105989321.2 | AA25: 98343712.22
B27: 3.1.2 - REVENUE GROUPING BY CUSTOMER TYPE OR CLASS
C28: STANDARD CONTROL SERVICES | P28: ALTERNATIVE CONTROL SERVICES
C29: REVENUE ($0's) | P29: REVENUE ($0's)
C30: =dms_y1 -> 2006-07 | D30: =dms_y2 -> 2007-08 | E30: =dms_y3 -> 2008-09 | F30: =dms_y4 -> 2009-10 | G30: =dms_y5 -> 2010-11 | H30: =dms_y6 -> 2011-12 | I30: =dms_y7 -> 2012-13 | J30: =dms_y8 -> 2013-14 | K30: =dms_y9 -> 2014-15 | L30: =dms_y10 -> 2015-16 | M30: =dms_y11 -> 2016-17 | N30: =dms_y12 -> 2017-18 | P30: =dms_y1 -> 2006-07 | Q30: =dms_y2 -> 2007-08 | R30: =dms_y3 -> 2008-09 | S30: =dms_y4 -> 2009-10 | T30: =dms_y5 -> 2010-11 | U30: =dms_y6 -> 2011-12 | V30: =dms_y7 -> 2012-13 | W30: =dms_y8 -> 2013-14 | X30: =dms_y9 -> 2014-15 | Y30: =dms_y10 -> 2015-16 | Z30: =dms_y11 -> 2016-17 | AA30: =dms_y12 -> 2017-18
A31: DREV0201 | B31: Revenue from residential Customers | C31: 174218065.6 | D31: 178138908.4 | E31: 185194546.2 | F31: 187116177.4 | G31: 182172018.7 | H31: 187405537.3 | I31: 209486007.2 | J31: 237376801.3 | K31: 270569265 | L31: 284939666.6 | M31: 271084302.5 | N31: 262730988.9 | P31: 0 | Q31: 0 | R31: 0 | S31: 0 | T31: 0 | U31: 0 | V31: 0 | W31: 0 | X31: 0 | Y31: 0 | Z31: 0 | AA31: 0
A32: DREV0202 | B32: Revenue from Non residential customers not on demand tariffs | C32: 114383108.7 | D32: 115503245.8 | E32: 120063455.9 | F32: 123060352.8 | G32: 122566510.3 | H32: 129473679.1 | I32: 144640264.3 | J32: 159825969.2 | K32: 169656572.3 | L32: 158336757.1 | M32: 111179679.7 | N32: 76914075.51 | P32: 0 | Q32: 0 | R32: 0 | S32: 0 | T32: 0 | U32: 0 | V32: 0 | W32: 0 | X32: 0 | Y32: 0 | Z32: 0 | AA32: 0
A33: DREV0203 | B33: Revenue from Non-residential low voltage demand tariff customers | C33: 67408338.89 | D33: 70927954.24 | E33: 75039876.34 | F33: 77648259.9 | G33: 79867123.09 | H33: 86014841.49 | I33: 97056149.11 | J33: 110631321.1 | K33: 125088190.9 | L33: 135168455.3 | M33: 179797810.6 | N33: 224823097.3 | P33: 0 | Q33: 0 | R33: 0 | S33: 0 | T33: 0 | U33: 0 | V33: 0 | W33: 0 | X33: 0 | Y33: 0 | Z33: 0 | AA33: 0
A34: DREV0204 | B34: Revenue from Non-residential high voltage demand tariff customers | C34: 36661866.53 | D34: 37222131.42 | E34: 36832054.98 | F34: 36639217.9 | G34: 37305382.72 | H34: 39550503.42 | I34: 43455754.28 | J34: 47570163.93 | K34: 52554375.4 | L34: 55340413.47 | M34: 56733618.02 | N34: 59597366.93 | P34: 0 | Q34: 0 | R34: 0 | S34: 0 | T34: 0 | U34: 0 | V34: 0 | W34: 0 | X34: 0 | Y34: 0 | Z34: 0 | AA34: 0
A35: DREV0205 | B35: Revenue from unmetered supplies | C35: 3677535.968 | D35: 3783962.251 | E35: 3865191.254 | F35: 3978527.188 | G35: 4092459.443 | H35: 4310461.981 | I35: 4813207.916 | J35: 5440704.629 | K35: 5152046.764 | L35: 5052099.273 | M35: 5790868.59 | N35: 6031333.888 | P35: 4675266.545 | Q35: 5281035.48 | R35: 5808781.495 | S35: 6050395.31 | T35: 6907089.615 | U35: 7915056.655 | V35: 8824881.48 | W35: 9318880.985 | X35: 8710995.445 | Y35: 8216398.515 | Z35: 8357856.145 | AA35: 8648828.52
A36: DREV0206 | B36: Revenue from Other Customers | C36: 0 | D36: 0 | E36: 0 | F36: 0 | G36: 0 | H36: 0 | I36: 0 | J36: 0 | K36: 0 | L36: 0 | M36: 0 | N36: 0 | P36: 13997110.58 | Q36: 14617011.91 | R36: 14187366.08 | S36: 13857646.84 | T36: 18110791.38 | U36: 23018409.68 | V36: 22179247.77 | W36: 20423219.02 | X36: 20189557.44 | Y36: 59314285.82 | Z36: 97631465.56 | AA36: 89694883.7
A37: DREV02 | B37: Total revenue by customer class | C37: =SUM(C31:C36) -> 396348915.7 | D37: =SUM(D31:D36) -> 405576202.1 | E37: 420995124.7 | F37: 428442535.2 | G37: 426003494.3 | H37: 446755023.3 | I37: 499451382.8 | J37: 560844960.2 | K37: =SUM(K31:K36) -> 623020450.4 | L37: 638837391.7 | M37: 624586279.3 | N37: 630096862.5 | P37: =SUM(P31:P36) -> 18672377.13 | Q37: =SUM(Q31:Q36) -> 19898047.39 | R37: =SUM(R31:R36) -> 19996147.57 | S37: =SUM(S31:S36) -> 19908042.14 | T37: =SUM(T31:T36) -> 25017880.99 | U37: =SUM(U31:U36) -> 30933466.34 | V37: =SUM(V31:V36) -> 31004129.25 | W37: =SUM(W31:W36) -> 29742100 | X37: 28900552.89 | Y37: 67530684.33 | Z37: 105989321.7 | AA37: 98343712.22
B39: 3.1.3 - REVENUE (penalties) ALLOWED (deducted) THROUGH INCENTIVE SCHEMES
C40: STANDARD CONTROL SERVICES | P40: ALTERNATIVE CONTROL SERVICES
C41: REVENUE ($0's) | P41: REVENUE ($0's)
C42: =dms_y1 -> 2006-07 | D42: =dms_y2 -> 2007-08 | E42: =dms_y3 -> 2008-09 | F42: =dms_y4 -> 2009-10 | G42: =dms_y5 -> 2010-11 | H42: =dms_y6 -> 2011-12 | I42: =dms_y7 -> 2012-13 | J42: =dms_y8 -> 2013-14 | K42: =dms_y9 -> 2014-15 | L42: =dms_y10 -> 2015-16 | M42: =dms_y11 -> 2016-17 | N42: =dms_y12 -> 2017-18 | P42: =dms_y1 -> 2006-07 | Q42: =dms_y2 -> 2007-08 | R42: =dms_y3 -> 2008-09 | S42: =dms_y4 -> 2009-10 | T42: =dms_y5 -> 2010-11 | U42: =dms_y6 -> 2011-12 | V42: =dms_y7 -> 2012-13 | W42: =dms_y8 -> 2013-14 | X42: =dms_y9 -> 2014-15 | Y42: =dms_y10 -> 2015-16 | Z42: =dms_y11 -> 2016-17 | AA42: =dms_y12 -> 2017-18
A43: DREV0301 | B43: EBSS | C43: 0 | D43: 0 | E43: 0 | F43: 0 | G43: -187682.2602 | H43: -381970.7628 | I43: -392470.5622 | J43: -400682.0597 | K43: -409637.2412 | L43: 2043983.259 | M43: 4525434.5 | N43: 4592606.663 | P43: 0 | Q43: 0 | R43: 0 | S43: 0 | T43: 0 | U43: 0 | V43: 0 | W43: 0 | X43: 0 | Y43: 0 | Z43: 0 | AA43: 0
A44: DREV0302 | B44: STPIS | C44: 17456178.92 | D44: 14096692.84 | E44: 12544242.75 | F44: 11272801.14 | G44: 1214830.836 | H44: -7092925.916 | I44: -782246.8676 | J44: 13294052.71 | K44: 17629786.06 | L44: 3477556.563 | M44: 7857859 | N44: 18979369.97 | P44: 0 | Q44: 0 | R44: 0 | S44: 0 | T44: 0 | U44: 0 | V44: 0 | W44: 0 | X44: 0 | Y44: 0 | Z44: 0 | AA44: 0
A45: DREV0303 | B45: F-Factor | C45: 0 | D45: 0 | E45: 0 | F45: 0 | G45: 0 | H45: 0 | I45: 0 | J45: 1235000 | K45: 32500 | L45: -1967500 | M45: -55000 | N45: 1587500 | P45: 0 | Q45: 0 | R45: 0 | S45: 0 | T45: 0 | U45: 0 | V45: 0 | W45: 0 | X45: 0 | Y45: 0 | Z45: 0 | AA45: 0
A46: DREV0304 | B46: S-Factor True up | C46: 0 | D46: 0 | E46: 0 | F46: 0 | G46: 0 | H46: 0 | I46: 0 | J46: -3759500 | K46: -7605891.529 | L46: -4825646.529 | M46: -1968599.5 | N46: -1997819.945 | P46: 0 | Q46: 0 | R46: 0 | S46: 0 | T46: 0 | U46: 0 | V46: 0 | W46: 0 | X46: 0 | Y46: 0 | Z46: 0 | AA46: 0
A47: DREV0305 | B47: Other | C47: 0 | D47: 0 | E47: 0 | F47: 0 | G47: 0 | H47: 0 | I47: 0 | J47: 0 | K47: 0 | L47: 0 | M47: 0 | N47: 0 | P47: 0 | Q47: 0 | R47: 0 | S47: 0 | T47: 0 | U47: 0 | V47: 0 | W47: 0 | X47: 0 | Y47: 0 | Z47: 0 | AA47: 0
A48: DREV03 | B48: Total revenue of incentive schemes | C48: =SUM(C43:C47) -> 17456178.92 | D48: =SUM(D43:D47) -> 14096692.84 | E48: 12544242.75 | F48: 11272801.14 | G48: 1027148.575 | H48: -7474896.679 | I48: -1174717.43 | J48: 10368870.65 | K48: =SUM(K43:K47) -> 9646757.293 | L48: -1271606.707 | M48: 10359694 | N48: 23161656.68 | P48: =SUM(P43:P47) -> 0 | Q48: =SUM(Q43:Q47) -> 0 | R48: =SUM(R43:R47) -> 0 | S48: =SUM(S43:S47) -> 0 | T48: =SUM(T43:T47) -> 0 | U48: =SUM(U43:U47) -> 0 | V48: =SUM(V43:V47) -> 0 | W48: =SUM(W43:W47) -> 0 | X48: 0 | Y48: 0 | Z48: 0 | AA48: 0

Sheet 3.2 Operating expenditure
B1: =INDEX(dms_Worksheet_List,MATCH(dms_Model,dms_Model_List)) -> HISTORICAL ECONOMIC BENCHMARKING - FINANCIAL YEARS
B2: =INDEX(dms_TradingNameFull_List,MATCH(dms_TradingName,dms_TradingName_List)) -> Powercor Australia
B3: =dms_Header_Span -> 2006-07 to 2018-19
B4: 3.2 OPERATING EXPENDITURE
B6: There are THREE tables on this worksheet. Each has been grouped for ease of navigation. see the Instructions sheet on how to group or ungroup tables.
B8: Instructions
B9: Please list current opex categories in tables 3.2.1 and 3.2.2 and provide opex data as required. Where opex categories have changed at any time during the regulatory period, list previous opex categories in the 'Historical' sub-table and provide opex data as required.
B11: 3.2.1 - OPEX CATEGORIES
B12: CURRENT OPEX CATEGORIES AND COST ALLOCATIONS
D13: STANDARD CONTROL SERVICES | Q13: ALTERNATIVE CONTROL SERVICES
D14: EXPENDITURE ($0's) | Q14: EXPENDITURE ($0's)
D15: =dms_y1 -> 2006-07 | E15: =dms_y2 -> 2007-08 | F15: =dms_y3 -> 2008-09 | G15: =dms_y4 -> 2009-10 | H15: =dms_y5 -> 2010-11 | I15: =dms_y6 -> 2011-12 | J15: =dms_y7 -> 2012-13 | K15: =dms_y8 -> 2013-14 | L15: =dms_y9 -> 2014-15 | M15: =dms_y10 -> 2015-16 | N15: =dms_y11 -> 2016-17 | O15: =dms_y12 -> 2017-18 | Q15: =dms_y1 -> 2006-07 | R15: =dms_y2 -> 2007-08 | S15: =dms_y3 -> 2008-09 | T15: =dms_y4 -> 2009-10 | U15: =dms_y5 -> 2010-11 | V15: =dms_y6 -> 2011-12 | W15: =dms_y7 -> 2012-13 | X15: =dms_y8 -> 2013-14 | Y15: =dms_y9 -> 2014-15 | Z15: =dms_y10 -> 2015-16 | AA15: =dms_y11 -> 2016-17 | AB15: =dms_y12 -> 2017-18
A16: DOPEX0101 | B16: Maintenance | D16: 32504108.94 | E16: 33323148.24 | F16: 35042923.96 | G16: 37560838.19 | H16: 44559128.42 | I16: 56418480.61 | J16: 67104719.05 | K16: 68875030.71 | L16: 65149091.13 | M16: 57580796.49 | N16: 53126773.69 | O16: 53099960.82 | Q16: 0 | R16: 0 | S16: 0 | T16: 0 | U16: 0 | V16: 0 | W16: 0 | X16: 0 | Y16: 0 | Z16: 0 | AA16: 0 | AB16: 0
A17: DOPEX0102 | B17: Vegetation | D17: 16249219.1 | E17: 16658667.3 | F17: 17518405.14 | G17: 18777142.62 | H17: 22275677.26 | I17: 28204318.85 | J17: 33546505.9 | K17: 34431507.3 | L17: 32568862.53 | M17: 28785375.4 | N17: 28809552 | O17: 38921058.32 | Q17: 0 | R17: 0 | S17: 0 | T17: 0 | U17: 0 | V17: 0 | W17: 0 | X17: 0 | Y17: 0 | Z17: 0 | AA17: 0 | AB17: 0
A18: DOPEX0103 | B18: Emergency | D18: 16987829.65 | E18: 18291691.24 | F18: 19310490.14 | G18: 20790466.13 | H18: 23102806.87 | I18: 25337709.89 | J18: 26654673.75 | K18: 27038539.79 | L18: 25785584.99 | M18: 25403919.33 | N18: 27136323.93 | O18: 30064232.08 | Q18: 0 | R18: 0 | S18: 0 | T18: 0 | U18: 0 | V18: 0 | W18: 0 | X18: 0 | Y18: 0 | Z18: 0 | AA18: 0 | AB18: 0
A19: DOPEX0104 | B19: Overheads | D19: 48393877.06 | E19: 44163889.32 | F19: 51695973.77 | G19: 53466619.87 | H19: 45361075.63 | I19: 46142549.9 | J19: 52723228.13 | K19: 51598414.1 | L19: 59898976.82 | M19: 82403574.07 | N19: 96534054.5 | O19: 98045391.67 | Q19: 0 | R19: 0 | S19: 0 | T19: 0 | U19: 0 | V19: 0 | W19: 0 | X19: 0 | Y19: 0 | Z19: 0 | AA19: 0 | AB19: 0
A20: DOPEX0105 | B20: Public Lighting | D20: 0 | E20: 0 | F20: 0 | G20: 0 | H20: 0 | I20: 0 | J20: 0 | K20: 0 | L20: 0 | M20: 0 | N20: 0 | O20: 0 | Q20: 4106531.641 | R20: 5237590.862 | S20: 5877073.908 | T20: 5380861.062 | U20: 6442734.998 | V20: 7746385.032 | W20: 7212947.78 | X20: 6734367.008 | Y20: 6133520.573 | Z20: 5124498.855 | AA20: 4680281 | AB20: 5389133.345
A21: DOPEX0106 | B21: Connection Services | D21: 0 | E21: 0 | F21: 0 | G21: 0 | H21: 0 | I21: 0 | J21: 0 | K21: 0 | L21: 0 | M21: 0 | N21: 0 | O21: 0 | Q21: 8498271.113 | R21: 9498811.848 | S21: 9838888.425 | T21: 9640280.618 | U21: 9645180.88 | V21: 10659611.17 | W21: 10431872.61 | X21: 9224892.581 | Y21: 9384442.254 | Z21: 14027894.04 | AA21: 17120491.5 | AB21: 16744879.57
A22: DOPEX0107 | B22: Metering Services | D22: 0 | E22: 0 | F22: 0 | G22: 0 | H22: 0 | I22: 0 | J22: 0 | K22: 0 | L22: 0 | M22: 0 | N22: 0 | O22: 0 | Q22: 6562595.331 | R22: 7335240.01 | S22: 7597856.362 | T22: 7444486.029 | U22: 7448270.144 | V22: 8231640.713 | W22: 8055774.827 | X22: 7123712.127 | Y22: 7246920.709 | Z22: 10832720.06 | AA22: 14645313.5 | AB22: 15519335.47
A23: DOPEX0108 | B23: Ancillary Network Services | D23: 0 | E23: 0 | F23: 0 | G23: 0 | H23: 0 | I23: 0 | J23: 0 | K23: 0 | L23: 0 | M23: 0 | N23: 0 | O23: 0 | Q23: 3447860.264 | R23: 3853792.788 | S23: 3991766.324 | T23: 3911188.527 | U23: 3913176.627 | V23: 4324744.325 | W23: 4232347.801 | X23: 3742660.142 | Y23: 3807391.54 | Z23: 5691300.95 | AA23: 6387400 | AB23: 6267079.342
A24: DOPEX0109
A25: DOPEX0110
A26: DOPEX0111
A27: DOPEX0112
A28: DOPEX0113
A29: DOPEX0114
A30: DOPEX0115
A31: DOPEX0116
A32: DOPEX0117
A33: DOPEX0118
A34: DOPEX0119
A35: DOPEX0120
A36: DOPEX0121
A37: DOPEX0122
A38: DOPEX0123
A39: DOPEX0124
A40: DOPEX0125
A41: DOPEX0126
A42: DOPEX0127
A43: DOPEX0128
A44: DOPEX0129
A45: DOPEX0130
A46: DOPEX0131
A47: DOPEX0132
A48: DOPEX0133
A49: DOPEX0134
A50: DOPEX0135
A51: DOPEX0136
A52: DOPEX0137
A53: DOPEX0138
A54: DOPEX0139
A55: DOPEX0140
A56: DOPEX0141
A57: DOPEX0142
A58: DOPEX01 | B58: Total opex | D58: =SUM(D16:D57) -> 114135034.7 | E58: 112437396.1 | F58: 123567793 | G58: 130595066.8 | H58: 135298688.2 | I58: 156103059.3 | J58: 180029126.8 | K58: 181943491.9 | L58: =SUM(L16:L57) -> 183402515.5 | M58: 194173665.3 | N58: 205606704.1 | O58: 220130642.9 | Q58: =SUM(Q16:Q57) -> 22615258.35 | R58: =SUM(R16:R57) -> 25925435.51 | S58: =SUM(S16:S57) -> 27305585.02 | T58: =SUM(T16:T57) -> 26376816.24 | U58: =SUM(U16:U57) -> 27449362.65 | V58: =SUM(V16:V57) -> 30962381.24 | W58: =SUM(W16:W57) -> 29932943.02 | X58: =SUM(X16:X57) -> 26825631.86 | Y58: =SUM(Y16:Y57) -> 26572275.08 | Z58: 35676413.91 | AA58: 42833486 | AB58: 43920427.72
B60: A: HISTORICAL OPEX CATEGORIES AND COST ALLOCATIONS
D61: STANDARD CONTROL SERVICES | Q61: ALTERNATIVE CONTROL SERVICES
D62: EXPENDITURE ($0's) | Q62: EXPENDITURE ($0's)
D63: =dms_y1 -> 2006-07 | E63: =dms_y2 -> 2007-08 | F63: =dms_y3 -> 2008-09 | G63: =dms_y4 -> 2009-10 | H63: =dms_y5 -> 2010-11 | I63: =dms_y6 -> 2011-12 | J63: =dms_y7 -> 2012-13 | K63: =dms_y8 -> 2013-14 | L63: =dms_y9 -> 2014-15 | M63: =dms_y10 -> 2015-16 | N63: =dms_y11 -> 2016-17 | O63: =dms_y12 -> 2017-18 | Q63: =dms_y1 -> 2006-07 | R63: =dms_y2 -> 2007-08 | S63: =dms_y3 -> 2008-09 | T63: =dms_y4 -> 2009-10 | U63: =dms_y5 -> 2010-11 | V63: =dms_y6 -> 2011-12 | W63: =dms_y7 -> 2012-13 | X63: =dms_y8 -> 2013-14 | Y63: =dms_y9 -> 2014-15 | Z63: =dms_y10 -> 2015-16 | AA63: =dms_y11 -> 2016-17 | AB63: =dms_y12 -> 2017-18
A64: DOPEX0101
A65: DOPEX0102
A66: DOPEX0103
A67: DOPEX0104
A68: DOPEX0105
A69: DOPEX0106
A70: DOPEX0107
A71: DOPEX0108
A72: DOPEX0109
A73: DOPEX0110
A74: DOPEX0111
A75: DOPEX0112
A76: DOPEX0113
A77: DOPEX0114
A78: DOPEX0115
A79: DOPEX0116
A80: DOPEX0117
A81: DOPEX0118
A82: DOPEX0119
A83: DOPEX0120
A84: DOPEX0121
A85: DOPEX0122
A86: DOPEX0123
A87: DOPEX0124
A88: DOPEX0125
A89: DOPEX0126
A90: DOPEX0127
A91: DOPEX0128
A92: DOPEX0129
A93: DOPEX0130
A94: DOPEX0131
A95: DOPEX0132
A96: DOPEX0133
A97: DOPEX0134
A98: DOPEX0135
A99: DOPEX0136
A100: DOPEX0137
A101: DOPEX0138
A102: DOPEX0139
A103: DOPEX0140
A104: DOPEX0141
A105: DOPEX0142
A106: DOPEX01 | B106: Total opex | D106: =SUM(D64:D105) -> 0 | E106: 0 | F106: 0 | G106: 0 | H106: 0 | I106: 0 | J106: 0 | K106: 0 | L106: =SUM(L64:L105) -> 0 | M106: 0 | N106: 0 | O106: 0 | Q106: =SUM(Q64:Q105) -> 0 | R106: 0 | S106: 0 | T106: 0 | U106: 0 | V106: 0 | W106: 0 | X106: 0 | Y106: 0 | Z106: 0 | AA106: 0 | AB106: 0
B108: B: HISTORICAL OPEX CATEGORIES AND COST ALLOCATIONS
D109: STANDARD CONTROL SERVICES | Q109: ALTERNATIVE CONTROL SERVICES
D110: EXPENDITURE ($0's) | Q110: EXPENDITURE ($0's)
D111: =dms_y1 -> 2006-07 | E111: =dms_y2 -> 2007-08 | F111: =dms_y3 -> 2008-09 | G111: =dms_y4 -> 2009-10 | H111: =dms_y5 -> 2010-11 | I111: =dms_y6 -> 2011-12 | J111: =dms_y7 -> 2012-13 | K111: =dms_y8 -> 2013-14 | L111: =dms_y9 -> 2014-15 | M111: =dms_y10 -> 2015-16 | N111: =dms_y11 -> 2016-17 | O111: =dms_y12 -> 2017-18 | Q111: =dms_y1 -> 2006-07 | R111: =dms_y2 -> 2007-08 | S111: =dms_y3 -> 2008-09 | T111: =dms_y4 -> 2009-10 | U111: =dms_y5 -> 2010-11 | V111: =dms_y6 -> 2011-12 | W111: =dms_y7 -> 2012-13 | X111: =dms_y8 -> 2013-14 | Y111: =dms_y9 -> 2014-15 | Z111: =dms_y10 -> 2015-16 | AA111: =dms_y11 -> 2016-17 | AB111: =dms_y12 -> 2017-18
A112: DOPEX0101
A113: DOPEX0102
A114: DOPEX0103
A115: DOPEX0104
A116: DOPEX0105
A117: DOPEX0106
A118: DOPEX0107
A119: DOPEX0108
A120: DOPEX0109
A121: DOPEX0110
A122: DOPEX0111
A123: DOPEX0112
A124: DOPEX0113
A125: DOPEX0114
A126: DOPEX0115
A127: DOPEX0116
A128: DOPEX0117
A129: DOPEX0118
A130: DOPEX0119
A131: DOPEX0120
A132: DOPEX0121
A133: DOPEX0122
A134: DOPEX0123
A135: DOPEX0124
A136: DOPEX0125
A137: DOPEX0126
A138: DOPEX0127
A139: DOPEX0128
A140: DOPEX0129
A141: DOPEX0130
A142: DOPEX0131
A143: DOPEX0132
A144: DOPEX0133
A145: DOPEX0134
A146: DOPEX0135
A147: DOPEX0136
A148: DOPEX0137
A149: DOPEX0138
A150: DOPEX0139
A151: DOPEX0140
A152: DOPEX0141
A153: DOPEX0142
A154: DOPEX01 | B154: Total opex | D154: =SUM(D112:D153) -> 0 | E154: 0 | F154: 0 | G154: 0 | H154: 0 | I154: 0 | J154: 0 | K154: 0 | L154: =SUM(L112:L153) -> 0 | M154: 0 | N154: 0 | O154: 0 | Q154: =SUM(Q112:Q153) -> 0 | R154: 0 | S154: 0 | T154: 0 | U154: 0 | V154: 0 | W154: 0 | X154: 0 | Y154: 0 | Z154: 0 | AA154: 0 | AB154: 0
B158: 3.2.2 - OPEX CONSISTENCY
B159: OPEX CONSISTENCY - CURRENT COST ALLOCATION APPROACH
D160: STANDARD CONTROL SERVICES | Q160: ALTERNATIVE CONTROL SERVICES
D161: EXPENDITURE ($0's) | Q161: EXPENDITURE ($0's)
D162: =dms_y1 -> 2006-07 | E162: =dms_y2 -> 2007-08 | F162: =dms_y3 -> 2008-09 | G162: =dms_y4 -> 2009-10 | H162: =dms_y5 -> 2010-11 | I162: =dms_y6 -> 2011-12 | J162: =dms_y7 -> 2012-13 | K162: =dms_y8 -> 2013-14 | L162: =dms_y9 -> 2014-15 | M162: =dms_y10 -> 2015-16 | N162: =dms_y11 -> 2016-17 | O162: =dms_y12 -> 2017-18 | Q162: =dms_y1 -> 2006-07 | R162: =dms_y2 -> 2007-08 | S162: =dms_y3 -> 2008-09 | T162: =dms_y4 -> 2009-10 | U162: =dms_y5 -> 2010-11 | V162: =dms_y6 -> 2011-12 | W162: =dms_y7 -> 2012-13 | X162: =dms_y8 -> 2013-14 | Y162: =dms_y9 -> 2014-15 | Z162: =dms_y10 -> 2015-16 | AA162: =dms_y11 -> 2016-17 | AB162: =dms_y12 -> 2017-18
A163: DOPEX0201 | B163: Opex for network services | D163: 111610523.2 | E163: 109937148.4 | F163: 120947170.6 | G163: 127829904.5 | H163: 132227118.7 | I163: 152459996.2 | J163: 175736152.5 | K163: 167626577.4 | L163: 176184380.8 | M163: 198792055.8 | N163: 205223638.4 | O163: 217736074.9 | Q163: 0 | R163: 0 | S163: 0 | T163: 0 | U163: 0 | V163: 0 | W163: 0 | X163: 0 | Y163: 0 | Z163: 0 | AA163: 0 | AB163: 0
A164: DOPEX0202 | B164: Opex for metering | D164: 0 | E164: 0 | F164: 0 | G164: 0 | H164: 0 | I164: 0 | J164: 0 | K164: 0 | L164: 0 | M164: 0 | N164: 0 | O164: 0 | Q164: 0 | R164: 0 | S164: 0 | T164: 0 | U164: 0 | V164: 0 | W164: 0 | X164: 0 | Y164: 0 | Z164: 7251011 | AA164: 14645313.5 | AB164: 15519335.47
A165: DOPEX0203 | B165: Opex for connection services | D165: 2216990.087 | E165: 2183750.792 | F165: 2272406.819 | G165: 2404857.054 | H165: 2723997.916 | I165: 3285714.154 | J165: 3928714.56 | K165: 13823014.02 | L165: 22656942.72 | M165: 21882139.04 | N165: 0 | O165: 2020063.055 | Q165: 11481875.43 | R165: 12984301.09 | S165: 13261065.59 | T165: 12271442.3 | U165: 10750967.68 | V165: 9846870.33 | W165: 10398556.06 | X165: 10511936.75 | Y165: 10990700.22 | Z165: 14962836.58 | AA165: 17120491.5 | AB165: 16744879.57
A166: DOPEX0204 | B166: Opex for public lighting | D166: 0 | E166: 0 | F166: 0 | G166: 0 | H166: 0 | I166: 0 | J166: 0 | K166: 0 | L166: 0 | M166: 0 | N166: 0 | O166: 0 | Q166: 4604564.007 | R166: 6064031.219 | S166: 7100728.538 | T166: 6981402.74 | U166: 7466799.577 | V166: 7923105.117 | W166: 7471110.583 | X166: 6881815.331 | Y166: 6133520.573 | Z166: 5124498.855 | AA166: 4680281 | AB166: 5389133.345
A167: DOPEX0205 | B167: Opex for amounts payable for easement levy or similar direct charges on DNSP | D167: 0 | E167: 0 | F167: 0 | G167: 0 | H167: 0 | I167: 0 | J167: 0 | K167: 0 | L167: 0 | M167: 0 | N167: 0 | O167: 0 | Q167: 0 | R167: 0 | S167: 0 | T167: 0 | U167: 0 | V167: 0 | W167: 0 | X167: 0 | Y167: 0 | Z167: 0 | AA167: 0 | AB167: 0
A168: DOPEX0206 | B168: Opex for transmission connection point planning | D168: 307521.5042 | E168: 316496.8625 | F168: 348215.625 | G168: 360305.2375 | H168: 347571.6 | I168: 357348.925 | J168: 364259.8042 | K168: 493900.5042 | L168: 556312 | M168: 435660 | N168: 383065.7 | O168: 374504.931 | Q168: 0 | R168: 0 | S168: 0 | T168: 0 | U168: 0 | V168: 0 | W168: 0 | X168: 0 | Y168: 0 | Z168: 0 | AA168: 0 | AB168: 0
B170: OPEX CONSISTENCY - A: HISTORICAL COST ALLOCATION APPROACH
D171: STANDARD CONTROL SERVICES | Q171: ALTERNATIVE CONTROL SERVICES
D172: EXPENDITURE ($0's) | Q172: EXPENDITURE ($0's)
D173: =dms_y1 -> 2006-07 | E173: =dms_y2 -> 2007-08 | F173: =dms_y3 -> 2008-09 | G173: =dms_y4 -> 2009-10 | H173: =dms_y5 -> 2010-11 | I173: =dms_y6 -> 2011-12 | J173: =dms_y7 -> 2012-13 | K173: =dms_y8 -> 2013-14 | L173: =dms_y9 -> 2014-15 | M173: =dms_y10 -> 2015-16 | N173: =dms_y11 -> 2016-17 | O173: =dms_y12 -> 2017-18 | Q173: =dms_y1 -> 2006-07 | R173: =dms_y2 -> 2007-08 | S173: =dms_y3 -> 2008-09 | T173: =dms_y4 -> 2009-10 | U173: =dms_y5 -> 2010-11 | V173: =dms_y6 -> 2011-12 | W173: =dms_y7 -> 2012-13 | X173: =dms_y8 -> 2013-14 | Y173: =dms_y9 -> 2014-15 | Z173: =dms_y10 -> 2015-16 | AA173: =dms_y11 -> 2016-17 | AB173: =dms_y12 -> 2017-18
A174: DOPEX0201 | B174: Opex for network services
A175: DOPEX0202 | B175: Opex for metering
A176: DOPEX0203 | B176: Opex for connection services
A177: DOPEX0204 | B177: Opex for public lighting
A178: DOPEX0205 | B178: Opex for amounts payable for easement levy or similar direct charges on DNSP
A179: DOPEX0206 | B179: Opex for transmission connection point planning
B181: OPEX CONSISTENCY - B: HISTORICAL COST ALLOCATION APPROACH
D182: STANDARD CONTROL SERVICES | Q182: ALTERNATIVE CONTROL SERVICES
D183: EXPENDITURE ($0's) | Q183: EXPENDITURE ($0's)
D184: =dms_y1 -> 2006-07 | E184: =dms_y2 -> 2007-08 | F184: =dms_y3 -> 2008-09 | G184: =dms_y4 -> 2009-10 | H184: =dms_y5 -> 2010-11 | I184: =dms_y6 -> 2011-12 | J184: =dms_y7 -> 2012-13 | K184: =dms_y8 -> 2013-14 | L184: =dms_y9 -> 2014-15 | M184: =dms_y10 -> 2015-16 | N184: =dms_y11 -> 2016-17 | O184: =dms_y12 -> 2017-18 | Q184: =dms_y1 -> 2006-07 | R184: =dms_y2 -> 2007-08 | S184: =dms_y3 -> 2008-09 | T184: =dms_y4 -> 2009-10 | U184: =dms_y5 -> 2010-11 | V184: =dms_y6 -> 2011-12 | W184: =dms_y7 -> 2012-13 | X184: =dms_y8 -> 2013-14 | Y184: =dms_y9 -> 2014-15 | Z184: =dms_y10 -> 2015-16 | AA184: =dms_y11 -> 2016-17 | AB184: =dms_y12 -> 2017-18
A185: DOPEX0201 | B185: Opex for network services
A186: DOPEX0202 | B186: Opex for metering
A187: DOPEX0203 | B187: Opex for connection services
A188: DOPEX0204 | B188: Opex for public lighting
A189: DOPEX0205 | B189: Opex for amounts payable for easement levy or similar direct charges on DNSP
A190: DOPEX0206 | B190: Opex for transmission connection point planning
B194: 3.2.4 - OPEX FOR HIGH VOLTAGE CUSTOMERS
D195: End user costs (not standard control services)
A196: DOPEX0401 | B196: Opex for high voltage customers

Sheet 3.2.3 Provisions
B1: =INDEX(dms_Worksheet_List,MATCH(dms_Model,dms_Model_List)) -> HISTORICAL ECONOMIC BENCHMARKING - FINANCIAL YEARS
B2: =INDEX(dms_TradingNameFull_List,MATCH(dms_TradingName,dms_TradingName_List)) -> Powercor Australia
B3: =dms_Header_Span -> 2006-07 to 2018-19
B4: 3.2 OPERATING EXPENDITURE
B6: There is ONE table on this worksheet. Each Provision has been grouped for ease of navigation. see the Instructions sheet on how to group or ungroup tables.
B8: 3.2.3 - PROVISIONS
B9: For each provision report:
C10: $0's
C11: =dms_y1 -> 2006-07 | D11: =dms_y2 -> 2007-08 | E11: =dms_y3 -> 2008-09 | F11: =dms_y4 -> 2009-10 | G11: =dms_y5 -> 2010-11 | H11: =dms_y6 -> 2011-12 | I11: =dms_y7 -> 2012-13 | J11: =dms_y8 -> 2013-14 | K11: =dms_y9 -> 2014-15 | L11: =dms_y10 -> 2015-16 | M11: =dms_y11 -> 2016-17 | N11: =dms_y12 -> 2017-18
A12: DOPEX03A | B12: Provision for Accident Compensation
B13: <Brief description of provision>
A14: DOPEX0301A | B14: Opening balance (the carrying amount at the beginning of the period) | C14: -155000 | D14: 0 | E14: 0 | F14: 0 | G14: 0 | H14: 0 | I14: 0 | J14: 0 | K14: 0 | L14: 0 | M14: 0 | N14: 0
B15: Additional provisions made in the period, including increases to existing provisions
A16: DOPEX0302A | B16: Opex component | C16: 0 | D16: 0 | E16: 0 | F16: 0 | G16: 0 | H16: 0 | I16: 0 | J16: 0 | K16: 0 | L16: 0 | M16: 0 | N16: 0
A17: DOPEX0303A | B17: Capex component | C17: 0 | D17: 0 | E17: 0 | F17: 0 | G17: 0 | H17: 0 | I17: 0 | J17: 0 | K17: 0 | L17: 0 | M17: 0 | N17: 0
A18: DOPEX0304A | B18: Other component | C18: 0 | D18: 0 | E18: 0 | F18: 0 | G18: 0 | H18: 0 | I18: 0 | J18: 0 | K18: 0 | L18: 0 | M18: 0 | N18: 0
B19: Amounts used (that is, incurred and charged against the provision) during the period
A20: DOPEX0305A | B20: Opex component | C20: 0 | D20: 0 | E20: 0 | F20: 0 | G20: 0 | H20: 0 | I20: 0 | J20: 0 | K20: 0 | L20: 0 | M20: 0 | N20: 0
A21: DOPEX0306A | B21: Capex component | C21: 0 | D21: 0 | E21: 0 | F21: 0 | G21: 0 | H21: 0 | I21: 0 | J21: 0 | K21: 0 | L21: 0 | M21: 0 | N21: 0
A22: DOPEX0307A | B22: Other component | C22: 0 | D22: 0 | E22: 0 | F22: 0 | G22: 0 | H22: 0 | I22: 0 | J22: 0 | K22: 0 | L22: 0 | M22: 0 | N22: 0
B23: Unused amounts reversed during the period
A24: DOPEX0308A | B24: Opex component | C24: 155000 | D24: 0 | E24: 0 | F24: 0 | G24: 0 | H24: 0 | I24: 0 | J24: 0 | K24: 0 | L24: 0 | M24: 0 | N24: 0
A25: DOPEX0309A | B25: Capex component | C25: 0 | D25: 0 | E25: 0 | F25: 0 | G25: 0 | H25: 0 | I25: 0 | J25: 0 | K25: 0 | L25: 0 | M25: 0 | N25: 0
A26: DOPEX0310A | B26: Other component | C26: 0 | D26: 0 | E26: 0 | F26: 0 | G26: 0 | H26: 0 | I26: 0 | J26: 0 | K26: 0 | L26: 0 | M26: 0 | N26: 0
B27: The increase during the period in the discounted amount arising from the passage of time and the effect of any change in the discount rate
A28: DOPEX0311A | B28: Opex component | C28: 0 | D28: 0 | E28: 0 | F28: 0 | G28: 0 | H28: 0 | I28: 0 | J28: 0 | K28: 0 | L28: 0 | M28: 0 | N28: 0
A29: DOPEX0312A | B29: Capex component | C29: 0 | D29: 0 | E29: 0 | F29: 0 | G29: 0 | H29: 0 | I29: 0 | J29: 0 | K29: 0 | L29: 0 | M29: 0 | N29: 0
A30: DOPEX0313A | B30: Other component | C30: 0 | D30: 0 | E30: 0 | F30: 0 | G30: 0 | H30: 0 | I30: 0 | J30: 0 | K30: 0 | L30: 0 | M30: 0 | N30: 0
A31: DOPEX0314A | B31: Closing balance (carrying amount at the end of the period) | C31: 0 | D31: 0 | E31: 0 | F31: 0 | G31: 0 | H31: 0 | I31: 0 | J31: 0 | K31: 0 | L31: 0 | M31: 0 | N31: 0
A32: DOPEX03B | B32: Provision for Uninsured Losses
B33: <Brief description of provision>
A34: DOPEX0301B | B34: Opening balance (the carrying amount at the beginning of the period) | C34: -430196.39 | D34: -270887.77 | E34: -209397.345 | F34: -503411.93 | G34: -986911.93 | H34: -986524.04 | I34: -1202115.15 | J34: -1136633.88 | K34: -1083624.305 | L34: -2188016.5 | M34: -2172951 | N34: -1090450.89
B35: Additional provisions made in the period, including increases to existing provisions
A36: DOPEX0302B | B36: Opex component | C36: -187798.92 | D36: -469635.115 | E36: -677753.3 | F36: -516500 | G36: -273250.08 | H36: -581229.08 | I36: -1006479 | J36: -898669.53 | K36: -1657789.53 | L36: -1508613 | M36: -498986 | N36: -8819728.54
A37: DOPEX0303B | B37: Capex component | C37: 0 | D37: 0 | E37: 0 | F37: 0 | G37: 0 | H37: 0 | I37: 0 | J37: 0 | K37: 0 | L37: 0 | M37: 0 | N37: 0
A38: DOPEX0304B | B38: Other component | C38: 0 | D38: 0 | E38: 0 | F38: 0 | G38: 0 | H38: 0 | I38: 0 | J38: 0 | K38: 0 | L38: 0 | M38: 0 | N38: 0
B39: Amounts used (that is, incurred and charged against the provision) during the period
A40: DOPEX0305B | B40: Opex component | C40: 347107.54 | D40: 531125.54 | E40: 383738.715 | F40: 0 | G40: 0 | H40: 116410.64 | I40: 544909.755 | J40: 428499.115 | K40: 0 | L40: 975000 | M40: 1250000 | N40: 615832.46
A41: DOPEX0306B | B41: Capex component | C41: 0 | D41: 0 | E41: 0 | F41: 0 | G41: 0 | H41: 0 | I41: 0 | J41: 0 | K41: 0 | L41: 0 | M41: 0 | N41: 0
A42: DOPEX0307B | B42: Other component | C42: 0 | D42: 0 | E42: 0 | F42: 0 | G42: 0 | H42: 0 | I42: 0 | J42: 0 | K42: 0 | L42: 0 | M42: 0 | N42: 0
B43: Unused amounts reversed during the period
A44: DOPEX0308B | B44: Opex component | C44: 0 | D44: 0 | E44: 0 | F44: 33000 | G44: 273637.97 | H44: 249227.33 | I44: 527050.515 | J44: 523179.79 | K44: 553397.635 | L44: 548679 | M44: 81993 | N44: 81993
A45: DOPEX0309B | B45: Capex component | C45: 0 | D45: 0 | E45: 0 | F45: 0 | G45: 0 | H45: 0 | I45: 0 | J45: 0 | K45: 0 | L45: 0 | M45: 0 | N45: 0
A46: DOPEX0310B | B46: Other component | C46: 0 | D46: 0 | E46: 0 | F46: 0 | G46: 0 | H46: 0 | I46: 0 | J46: 0 | K46: 0 | L46: 0 | M46: 0 | N46: 0
B47: The increase during the period in the discounted amount arising from the passage of time and the effect of any change in the discount rate
A48: DOPEX0311B | B48: Opex component | C48: 0 | D48: 0 | E48: 0 | F48: 0 | G48: 0 | H48: 0 | I48: 0 | J48: 0 | K48: 0 | L48: 0 | M48: 0 | N48: 0
A49: DOPEX0312B | B49: Capex component | C49: 0 | D49: 0 | E49: 0 | F49: 0 | G49: 0 | H49: 0 | I49: 0 | J49: 0 | K49: 0 | L49: 0 | M49: 0 | N49: 0
A50: DOPEX0313B | B50: Other component | C50: 0 | D50: 0 | E50: 0 | F50: 0 | G50: 0 | H50: 0 | I50: 0 | J50: 0 | K50: 0 | L50: 0 | M50: 0 | N50: 0
A51: DOPEX0314B | B51: Closing balance (carrying amount at the end of the period) | C51: -270887.77 | D51: -209397.345 | E51: -503411.93 | F51: -986911.93 | G51: -986524.04 | H51: -1202115.15 | I51: -1136633.88 | J51: -1083624.505 | K51: -2188016.7 | L51: -2172951 | M51: -1090451 | N51: -4802489.7
A52: DOPEX03C | B52: Provision for Customer Refunds
B53: <Brief description of provision>
A54: DOPEX0301C | B54: Opening balance (the carrying amount at the beginning of the period) | C54: 0 | D54: -375092.2 | E54: -406363.94 | F54: -31271.74 | G54: 2.98427949e-10 | H54: 2.98427949e-10 | I54: 2.98427949e-10 | J54: 1.492139745e-10 | K54: 0 | L54: 0 | M54: -820000 | N54: -1140000
B55: Additional provisions made in the period, including increases to existing provisions
A56: DOPEX0302C | B56: Opex component | C56: -375092.2 | D56: -375092.2 | E56: 0 | F56: 0 | G56: 0 | H56: 0 | I56: 0 | J56: 0 | K56: 0 | L56: -410000 | M56: -2065000 | N56: -1655000
A57: DOPEX0303C | B57: Capex component | C57: 0 | D57: 0 | E57: 0 | F57: 0 | G57: 0 | H57: 0 | I57: 0 | J57: 0 | K57: 0 | L57: 0 | M57: 0 | N57: 0
A58: DOPEX0304C | B58: Other component | C58: 0 | D58: 0 | E58: 0 | F58: 0 | G58: 0 | H58: 0 | I58: 0 | J58: 0 | K58: 0 | L58: 0 | M58: 0 | N58: 0
B59: Amounts used (that is, incurred and charged against the provision) during the period
A60: DOPEX0305C | B60: Opex component | C60: 0 | D60: 0 | E60: 31271.74 | F60: 31271.74 | G60: 0 | H60: 0 | I60: 0 | J60: 0 | K60: 0 | L60: 0 | M60: 0 | N60: 0
A61: DOPEX0306C | B61: Capex component | C61: 0 | D61: 0 | E61: 0 | F61: 0 | G61: 0 | H61: 0 | I61: 0 | J61: 0 | K61: 0 | L61: 0 | M61: 0 | N61: 0
A62: DOPEX0307C | B62: Other component | C62: 0 | D62: 0 | E62: 0 | F62: 0 | G62: 0 | H62: 0 | I62: 0 | J62: 0 | K62: 0 | L62: 0 | M62: 0 | N62: 0
B63: Unused amounts reversed during the period
A64: DOPEX0308C | B64: Opex component | C64: 0 | D64: 343820.46 | E64: 343820.46 | F64: 0 | G64: 0 | H64: 0 | I64: 0 | J64: 0 | K64: 0 | L64: 0 | M64: 1335000 | N64: 2065000
A65: DOPEX0309C | B65: Capex component | C65: 0 | D65: 0 | E65: 0 | F65: 0 | G65: 0 | H65: 0 | I65: 0 | J65: 0 | K65: 0 | L65: 0 | M65: 0 | N65: 0
A66: DOPEX0310C | B66: Other component | C66: 0 | D66: 0 | E66: 0 | F66: 0 | G66: 0 | H66: 0 | I66: 0 | J66: 0 | K66: 0 | L66: 0 | M66: 0 | N66: 0
B67: The increase during the period in the discounted amount arising from the passage of time and the effect of any change in the discount rate
A68: DOPEX0311C | B68: Opex component | C68: 0 | D68: 0 | E68: 0 | F68: 0 | G68: 0 | H68: 0 | I68: 0 | J68: 0 | K68: 0 | L68: 0 | M68: 0 | N68: 0
A69: DOPEX0312C | B69: Capex component | C69: 0 | D69: 0 | E69: 0 | F69: 0 | G69: 0 | H69: 0 | I69: 0 | J69: 0 | K69: 0 | L69: 0 | M69: 0 | N69: 0
A70: DOPEX0313C | B70: Other component | C70: 0 | D70: 0 | E70: 0 | F70: 0 | G70: 0 | H70: 0 | I70: 0 | J70: 0 | K70: 0 | L70: 0 | M70: 0 | N70: 0
A71: DOPEX0314C | B71: Closing balance (carrying amount at the end of the period) | C71: -375092.2 | D71: -406363.94 | E71: -31271.74 | F71: 2.98427949e-10 | G71: 2.98427949e-10 | H71: 2.98427949e-10 | I71: 2.98427949e-10 | J71: 1.492139745e-10 | K71: 0 | L71: -410000 | M71: -1140000 | N71: -730000
A72: DOPEX03D | B72: Provision for Stock Write Down
B73: <Brief description of provision>
A74: DOPEX0301D | B74: Opening balance (the carrying amount at the beginning of the period) | C74: -152539.055 | D74: -114043.94 | E74: -184077.16 | F74: -92565.945 | G74: -45198 | H74: -45330.55 | I74: -45330.55 | J74: -45330.55 | K74: -45330.775 | L74: -45331 | M74: -22665.5 | N74: 0
B75: Additional provisions made in the period, including increases to existing provisions
A76: DOPEX0302D | B76: Opex component | C76: -422500 | D76: -150000 | E76: 0 | F76: -132.55 | G76: -132.55 | H76: 0 | I76: 0 | J76: 0 | K76: 0 | L76: 0 | M76: 0 | N76: 0
A77: DOPEX0303D | B77: Capex component | C77: 0 | D77: 0 | E77: 0 | F77: 0 | G77: 0 | H77: 0 | I77: 0 | J77: 0 | K77: 0 | L77: 0 | M77: 0 | N77: 0
A78: DOPEX0304D | B78: Other component | C78: 0 | D78: 0 | E78: 0 | F78: 0 | G78: 0 | H78: 0 | I78: 0 | J78: 0 | K78: 0 | L78: 0 | M78: 0 | N78: 0
B79: Amounts used (that is, incurred and charged against the provision) during the period
A80: DOPEX0305D | B80: Opex component | C80: 460995.115 | D80: 79966.78 | E80: 91511.215 | F80: 47500.495 | G80: 0 | H80: 0 | I80: 0 | J80: 0 | K80: 0 | L80: 0 | M80: 0 | N80: 0
A81: DOPEX0306D | B81: Capex component | C81: 0 | D81: 0 | E81: 0 | F81: 0 | G81: 0 | H81: 0 | I81: 0 | J81: 0 | K81: 0 | L81: 0 | M81: 0 | N81: 0
A82: DOPEX0307D | B82: Other component | C82: 0 | D82: 0 | E82: 0 | F82: 0 | G82: 0 | H82: 0 | I82: 0 | J82: 0 | K82: 0 | L82: 0 | M82: 0 | N82: 0
B83: Unused amounts reversed during the period
A84: DOPEX0308D | B84: Opex component | C84: 0 | D84: 0 | E84: 0 | F84: 0 | G84: 0 | H84: 0 | I84: 0 | J84: 0 | K84: 0 | L84: 10252 | M84: 10252 | N84: 0
A85: DOPEX0309D | B85: Capex component | C85: 0 | D85: 0 | E85: 0 | F85: 0 | G85: 0 | H85: 0 | I85: 0 | J85: 0 | K85: 0 | L85: 0 | M85: 0 | N85: 0
A86: DOPEX0310D | B86: Other component | C86: 0 | D86: 0 | E86: 0 | F86: 0 | G86: 0 | H86: 0 | I86: 0 | J86: 0 | K86: 0 | L86: 0 | M86: 0 | N86: 0
B87: The increase during the period in the discounted amount arising from the passage of time and the effect of any change in the discount rate
A88: DOPEX0311D | B88: Opex component | C88: 0 | D88: 0 | E88: 0 | F88: 0 | G88: 0 | H88: 0 | I88: 0 | J88: 0 | K88: 0 | L88: 0 | M88: 0 | N88: 0
A89: DOPEX0312D | B89: Capex component | C89: 0 | D89: 0 | E89: 0 | F89: 0 | G89: 0 | H89: 0 | I89: 0 | J89: 0 | K89: 0 | L89: 0 | M89: 0 | N89: 0
A90: DOPEX0313D | B90: Other component | C90: 0 | D90: 0 | E90: 0 | F90: 0 | G90: 0 | H90: 0 | I90: 0 | J90: 0 | K90: 0 | L90: 0 | M90: 0 | N90: 0
A91: DOPEX0314D | B91: Closing balance (carrying amount at the end of the period) | C91: -114043.94 | D91: -184077.16 | E91: -92565.945 | F91: -45198 | G91: -45330.55 | H91: -45330.55 | I91: -45330.55 | J91: -45330.55 | K91: -45330.775 | L91: -35079 | M91: -12413.5 | N91: 0
A92: DOPEX03E | B92: Provision for Employee Entitlements
B93: <Brief description of provision>
A94: DOPEX0301E | B94: Opening balance (the carrying amount at the beginning of the period) | C94: -33682667.96 | D94: -34729698.99 | E94: -41168925.26 | F94: -45464657.85 | G94: -45501305.47 | H94: -47715806.01 | I94: -51293436.72 | J94: -54038384.72 | K94: -53031344.26 | L94: -52701916.5 | M94: -55486148 | N94: -58932435.48
B95: Additional provisions made in the period, including increases to existing provisions
A96: DOPEX0302E | B96: Opex component | C96: -794540.0893 | D96: -3476767.465 | E96: -5969982.41 | F96: -6244331.741 | G96: -6296293.794 | H96: -6335009.8 | I96: -7582780.015 | J96: -7692606.125 | K96: -7596184.591 | L96: -8964963 | M96: -6883690 | N96: -6763280.433
A97: DOPEX0303E | B97: Capex component | C97: -958347.1357 | D97: -5228906.329 | E97: -8128166.116 | F97: -8918724.575 | G97: -11536971.67 | H97: -11773353.76 | I97: -13048422.17 | J97: -12861292.4 | K97: -12949379.76 | L97: -15095146 | M97: -14860089.52 | N97: -14636707.2
A98: DOPEX0304E | B98: Other component | C98: 0 | D98: 0 | E98: 0 | F98: 0 | G98: 0 | H98: 0 | I98: 0 | J98: 0 | K98: 0 | L98: 0 | M98: 0 | N98: 0
B99: Amounts used (that is, incurred and charged against the provision) during the period
A100: DOPEX0305E | B100: Opex component | C100: 325105.7173 | D100: 2129382.139 | E100: 4906137.771 | F100: 5279904.894 | G100: 4748391.88 | H100: 5612425.841 | I100: 7019889.986 | J100: 7745150.881 | K100: 7752894.331 | L100: 8078984 | M100: 7958875.5 | N100: 8134645.871
A101: DOPEX0306E | B101: Capex component | C101: 380750.4777 | D101: 3236060.731 | E101: 5849109.965 | F101: 6688345.651 | G101: 8815708.008 | H101: 10072339.73 | I101: 11383358.92 | J101: 12790744.89 | K101: 13600080.01 | L101: 13105807.5 | M101: 12163042.77 | N101: 12371206.08
A102: DOPEX0307E | B102: Other component | C102: 0 | D102: 0 | E102: 0 | F102: 0 | G102: 0 | H102: 0 | I102: 0 | J102: 0 | K102: 0 | L102: 0 | M102: 0 | N102: 0
B103: Unused amounts reversed during the period
A104: DOPEX0308E | B104: Opex component | C104: 0 | D104: 0 | E104: 0 | F104: 0 | G104: 0 | H104: 0 | I104: 0 | J104: 0 | K104: 0 | L104: 0 | M104: 0 | N104: 0
A105: DOPEX0309E | B105: Capex component | C105: 0 | D105: 0 | E105: 0 | F105: 0 | G105: 0 | H105: 0 | I105: 0 | J105: 0 | K105: 0 | L105: 0 | M105: 0 | N105: 0
A106: DOPEX0310E | B106: Other component | C106: 0 | D106: 0 | E106: 0 | F106: 0 | G106: 0 | H106: 0 | I106: 0 | J106: 0 | K106: 0 | L106: 0 | M106: 0 | N106: 0
B107: The increase during the period in the discounted amount arising from the passage of time and the effect of any change in the discount rate
A108: DOPEX0311E | B108: Opex component | C108: 0 | D108: -3098995.346 | E108: -952831.7993 | F108: 3158158.147 | G108: 2054665.035 | H108: -1154032.73 | I108: -516994.72 | J108: 1025043.19 | K108: -477982.255 | L108: 91086 | M108: -1824426.5 | N108: -1013408.2
A109: DOPEX0312E | B109: Capex component | C109: 0 | D109: 0 | E109: 0 | F109: 0 | G109: 0 | H109: 0 | I109: 0 | J109: 0 | K109: 0 | L109: 0 | M109: 0 | N109: 0
A110: DOPEX0313E | B110: Other component | C110: 0 | D110: 0 | E110: 0 | F110: 0 | G110: 0 | H110: 0 | I110: 0 | J110: 0 | K110: 0 | L110: 0 | M110: 0 | N110: 0
A111: DOPEX0314E | B111: Closing balance (carrying amount at the end of the period) | C111: -34729698.99 | D111: -41168925.26 | E111: -45464657.85 | F111: -45501305.47 | G111: -47715806.01 | H111: -51293436.72 | I111: -54038384.72 | J111: -53031344.28 | K111: -52701916.53 | L111: -55486148 | M111: -58932435.5 | N111: -60839979.12
A112: DOPEX03F | B112: Provision for Doubtful Debt
B113: <Brief description of provision>
A114: DOPEX0301F | B114: Opening balance (the carrying amount at the beginning of the period) | C114: -1798344.545 | D114: -2360300 | E114: -2338902.66 | F114: -2052255.32 | G114: -1692255.32 | H114: -1688255.32 | I114: -1496001.86 | J114: -1251248.4 | K114: -1004248.2 | L114: -1643079 | M114: -2399808 | N114: -1696493.162
B115: Additional provisions made in the period, including increases to existing provisions
A116: DOPEX0302F | B116: Opex component | C116: -679955.455 | D116: -31500 | E116: -236250 | F116: -236250 | G116: -122250 | H116: -122250 | I116: -69750 | J116: -69750 | K116: -1055213 | L116: -1556361 | M116: -1439785 | N116: -2011451.324
A117: DOPEX0303F | B117: Capex component | C117: 0 | D117: 0 | E117: 0 | F117: 0 | G117: 0 | H117: 0 | I117: 0 | J117: 0 | K117: 0 | L117: 0 | M117: 0 | N117: 0
A118: DOPEX0304F | B118: Other component | C118: 0 | D118: 0 | E118: 0 | F118: 0 | G118: 0 | H118: 0 | I118: 0 | J118: 0 | K118: 0 | L118: 0 | M118: 0 | N118: 0
B119: Amounts used (that is, incurred and charged against the provision) during the period
A120: DOPEX0305F | B120: Opex component | C120: 118000 | D120: 0 | E120: 470000 | F120: 596250 | G120: 126250 | H120: 0 | I120: 0 | J120: 0 | K120: 85132 | L120: 785132 | M120: 1400000 | N120: 0
A121: DOPEX0306F | B121: Capex component | C121: 0 | D121: 0 | E121: 0 | F121: 0 | G121: 0 | H121: 0 | I121: 0 | J121: 0 | K121: 0 | L121: 0 | M121: 0 | N121: 0
A122: DOPEX0307F | B122: Other component | C122: 0 | D122: 0 | E122: 0 | F122: 0 | G122: 0 | H122: 0 | I122: 0 | J122: 0 | K122: 0 | L122: 0 | M122: 0 | N122: 0
B123: Unused amounts reversed during the period
A124: DOPEX0308F | B124: Opex component | C124: 0 | D124: 52897.34 | E124: 52897.34 | F124: 0 | G124: 0 | H124: 314503.46 | I124: 314503.46 | J124: 316750 | K124: 331250 | L124: 14500 | M124: 1443100 | N124: 2799187.505
A125: DOPEX0309F | B125: Capex component | C125: 0 | D125: 0 | E125: 0 | F125: 0 | G125: 0 | H125: 0 | I125: 0 | J125: 0 | K125: 0 | L125: 0 | M125: 0 | N125: 0
A126: DOPEX0310F | B126: Other component | C126: 0 | D126: 0 | E126: 0 | F126: 0 | G126: 0 | H126: 0 | I126: 0 | J126: 0 | K126: 0 | L126: 0 | M126: 0 | N126: 0
B127: The increase during the period in the discounted amount arising from the passage of time and the effect of any change in the discount rate
A128: DOPEX0311F | B128: Opex component | C128: 0 | D128: 0 | E128: 0 | F128: 0 | G128: 0 | H128: 0 | I128: 0 | J128: 0 | K128: 0 | L128: 0 | M128: 0 | N128: 0
A129: DOPEX0312F | B129: Capex component | C129: 0 | D129: 0 | E129: 0 | F129: 0 | G129: 0 | H129: 0 | I129: 0 | J129: 0 | K129: 0 | L129: 0 | M129: 0 | N129: 0
A130: DOPEX0313F | B130: Other component | C130: 0 | D130: 0 | E130: 0 | F130: 0 | G130: 0 | H130: 0 | I130: 0 | J130: 0 | K130: 0 | L130: 0 | M130: 0 | N130: 0
A131: DOPEX0314F | B131: Closing balance (carrying amount at the end of the period) | C131: -2360300 | D131: -2338902.66 | E131: -2052255.32 | F131: -1692255.32 | G131: -1688255.32 | H131: -1496001.86 | I131: -1251248.4 | J131: -1004248.4 | K131: -1643079.2 | L131: -2399808 | M131: -1696493 | N131: -908756.9811
A132: DOPEX03G | B132: Provision for Restorations (Vegetation Management)
B133: <Brief description of provision>
A134: DOPEX0301G | B134: Opening balance (the carrying amount at the beginning of the period) | C134: -14168935.8 | D134: -11977748.21 | E134: -10069704.35 | F134: -8355783.88 | G134: -3695124.94 | H134: -466 | I134: -466 | J134: -466 | K134: -466 | L134: -2938422.5 | M134: -4356459 | N134: -2678132
B135: Additional provisions made in the period, including increases to existing provisions
A136: DOPEX0302G | B136: Opex component | C136: -25000 | D136: 0 | E136: -1508000 | F136: -1776500 | G136: -268500 | H136: 0 | I136: 0 | J136: 0 | K136: -2937956.5 | L136: -1418036.5 | M136: 1390290.5 | N136: -2769948
A137: DOPEX0303G | B137: Capex component | C137: 0 | D137: 0 | E137: 0 | F137: 0 | G137: 0 | H137: 0 | I137: 0 | J137: 0 | K137: 0 | L137: 0 | M137: 0 | N137: 0
A138: DOPEX0304G | B138: Other component | C138: 0 | D138: 0 | E138: 0 | F138: 0 | G138: 0 | H138: 0 | I138: 0 | J138: 0 | K138: 0 | L138: 0 | M138: 0 | N138: 0
B139: Amounts used (that is, incurred and charged against the provision) during the period
A140: DOPEX0305G | B140: Opex component | C140: 112750.92 | D140: 852983.05 | E140: 3221920.47 | F140: 6437158.94 | G140: 3963158.94 | H140: 0 | I140: 0 | J140: 0 | K140: 0 | L140: 0 | M140: 288036.5 | N140: 1538036.5
A141: DOPEX0306G | B141: Capex component | C141: 0 | D141: 0 | E141: 0 | F141: 0 | G141: 0 | H141: 0 | I141: 0 | J141: 0 | K141: 0 | L141: 0 | M141: 0 | N141: 0
A142: DOPEX0307G | B142: Other component | C142: 0 | D142: 0 | E142: 0 | F142: 0 | G142: 0 | H142: 0 | I142: 0 | J142: 0 | K142: 0 | L142: 0 | M142: 0 | N142: 0
B143: Unused amounts reversed during the period
A144: DOPEX0308G | B144: Opex component | C144: 1548531.055 | D144: 1548531.055 | E144: 0 | F144: 0 | G144: 0 | H144: 0 | I144: 0 | J144: 0 | K144: 0 | L144: 0 | M144: 0 | N144: 0
A145: DOPEX0309G | B145: Capex component | C145: 0 | D145: 0 | E145: 0 | F145: 0 | G145: 0 | H145: 0 | I145: 0 | J145: 0 | K145: 0 | L145: 0 | M145: 0 | N145: 0
A146: DOPEX0310G | B146: Other component | C146: 0 | D146: 0 | E146: 0 | F146: 0 | G146: 0 | H146: 0 | I146: 0 | J146: 0 | K146: 0 | L146: 0 | M146: 0 | N146: 0
B147: The increase during the period in the discounted amount arising from the passage of time and the effect of any change in the discount rate
A148: DOPEX0311G | B148: Opex component | C148: 554905.615 | D148: -493470.24 | E148: 0 | F148: 0 | G148: 0 | H148: 0 | I148: 0 | J148: 0 | K148: 0 | L148: 0 | M148: 0 | N148: 0
A149: DOPEX0312G | B149: Capex component | C149: 0 | D149: 0 | E149: 0 | F149: 0 | G149: 0 | H149: 0 | I149: 0 | J149: 0 | K149: 0 | L149: 0 | M149: 0 | N149: 0
A150: DOPEX0313G | B150: Other component | C150: 0 | D150: 0 | E150: 0 | F150: 0 | G150: 0 | H150: 0 | I150: 0 | J150: 0 | K150: 0 | L150: 0 | M150: 0 | N150: 0
A151: DOPEX0314G | B151: Closing balance (carrying amount at the end of the period) | C151: -11977748.21 | D151: -10069704.35 | E151: -8355783.88 | F151: -3695124.94 | G151: -466 | H151: -466 | I151: -466 | J151: -466 | K151: -2938422.5 | L151: -4356459 | M151: -2678132 | N151: -3910043.5
A152: DOPEX03H | B152: Provision for Redundancies
B153: <Brief description of provision>
A154: DOPEX0301H | B154: Opening balance (the carrying amount at the beginning of the period) | C154: -185199.12 | D154: -36626.95 | E154: -855.66 | F154: -104855.66 | G154: -104855.66 | H154: -855.66 | I154: -855.66 | J154: -855.66 | K154: -855.83 | L154: -3367424.5 | M154: -4004924.5 | N154: -2707644.93
B155: Additional provisions made in the period, including increases to existing provisions
A156: DOPEX0302H | B156: Opex component | C156: 0 | D156: 0 | E156: -104000 | F156: -104000 | G156: 0 | H156: 0 | I156: 0 | J156: 0 | K156: -3366568.5 | L156: -4004068.5 | M156: -4645307.5 | N156: -5357807.5
A157: DOPEX0303H | B157: Capex component | C157: 0 | D157: 0 | E157: 0 | F157: 0 | G157: 0 | H157: 0 | I157: 0 | J157: 0 | K157: 0 | L157: 0 | M157: 0 | N157: 0
A158: DOPEX0304H | B158: Other component | C158: 0 | D158: 0 | E158: 0 | F158: 0 | G158: 0 | H158: 0 | I158: 0 | J158: 0 | K158: 0 | L158: 0 | M158: 0 | N158: 0
B159: Amounts used (that is, incurred and charged against the provision) during the period
A160: DOPEX0305H | B160: Opex component | C160: 70509.28 | D160: 0 | E160: 0 | F160: 104000 | G160: 104000 | H160: 0 | I160: 0 | J160: 0 | K160: 0 | L160: 3366568.5 | M160: 5942586.5 | N160: 5244392.775
A161: DOPEX0306H | B161: Capex component | C161: 0 | D161: 0 | E161: 0 | F161: 0 | G161: 0 | H161: 0 | I161: 0 | J161: 0 | K161: 0 | L161: 0 | M161: 0 | N161: 0
A162: DOPEX0307H | B162: Other component | C162: 0 | D162: 0 | E162: 0 | F162: 0 | G162: 0 | H162: 0 | I162: 0 | J162: 0 | K162: 0 | L162: 0 | M162: 0 | N162: 0
B163: Unused amounts reversed during the period
A164: DOPEX0308H | B164: Opex component | C164: 78062.89 | D164: 35771.29 | E164: 0 | F164: 0 | G164: 0 | H164: 0 | I164: 0 | J164: 0 | K164: 0 | L164: 0 | M164: 0 | N164: 0
A165: DOPEX0309H | B165: Capex component | C165: 0 | D165: 0 | E165: 0 | F165: 0 | G165: 0 | H165: 0 | I165: 0 | J165: 0 | K165: 0 | L165: 0 | M165: 0 | N165: 0
A166: DOPEX0310H | B166: Other component | C166: 0 | D166: 0 | E166: 0 | F166: 0 | G166: 0 | H166: 0 | I166: 0 | J166: 0 | K166: 0 | L166: 0 | M166: 0 | N166: 0
B167: The increase during the period in the discounted amount arising from the passage of time and the effect of any change in the discount rate
A168: DOPEX0311H | B168: Opex component | C168: 0 | D168: 0 | E168: 0 | F168: 0 | G168: 0 | H168: 0 | I168: 0 | J168: 0 | K168: 0 | L168: 0 | M168: 0 | N168: 0
A169: DOPEX0312H | B169: Capex component | C169: 0 | D169: 0 | E169: 0 | F169: 0 | G169: 0 | H169: 0 | I169: 0 | J169: 0 | K169: 0 | L169: 0 | M169: 0 | N169: 0
A170: DOPEX0313H | B170: Other component | C170: 0 | D170: 0 | E170: 0 | F170: 0 | G170: 0 | H170: 0 | I170: 0 | J170: 0 | K170: 0 | L170: 0 | M170: 0 | N170: 0
A171: DOPEX0314H | B171: Closing balance (carrying amount at the end of the period) | C171: -36626.95 | D171: -855.66 | E171: -104855.66 | F171: -104855.66 | G171: -855.66 | H171: -855.66 | I171: -855.66 | J171: -855.66 | K171: -3367424.33 | L171: -4004924.5 | M171: -2707645 | N171: -2821059.155
A172: DOPEX03I | B172: Provision for Environment
B173: <Brief description of provision>
A174: DOPEX0301I | B174: Opening balance (the carrying amount at the beginning of the period) | C174: 0 | D174: 0 | E174: 0 | F174: 0 | G174: 0 | H174: 0 | I174: 0 | J174: 0 | K174: 0 | L174: 0 | M174: -163000 | N174: -323000
B175: Additional provisions made in the period, including increases to existing provisions
A176: DOPEX0302I | B176: Opex component | C176: 0 | D176: 0 | E176: 0 | F176: 0 | G176: 0 | H176: 0 | I176: 0 | J176: 0 | K176: 0 | L176: -163000 | M176: -340024.5 | N176: -177024.5
A177: DOPEX0303I | B177: Capex component | C177: 0 | D177: 0 | E177: 0 | F177: 0 | G177: 0 | H177: 0 | I177: 0 | J177: 0 | K177: 0 | L177: 0 | M177: 0 | N177: 0
A178: DOPEX0304I | B178: Other component | C178: 0 | D178: 0 | E178: 0 | F178: 0 | G178: 0 | H178: 0 | I178: 0 | J178: 0 | K178: 0 | L178: 0 | M178: 0 | N178: 0
B179: Amounts used (that is, incurred and charged against the provision) during the period
A180: DOPEX0305I | B180: Opex component | C180: 0 | D180: 0 | E180: 0 | F180: 0 | G180: 0 | H180: 0 | I180: 0 | J180: 0 | K180: 0 | L180: 0 | M180: 180024.5 | N180: 180024.5
A181: DOPEX0306I | B181: Capex component | C181: 0 | D181: 0 | E181: 0 | F181: 0 | G181: 0 | H181: 0 | I181: 0 | J181: 0 | K181: 0 | L181: 0 | M181: 0 | N181: 0
A182: DOPEX0307I | B182: Other component | C182: 0 | D182: 0 | E182: 0 | F182: 0 | G182: 0 | H182: 0 | I182: 0 | J182: 0 | K182: 0 | L182: 0 | M182: 0 | N182: 0
B183: Unused amounts reversed during the period
A184: DOPEX0308I | B184: Opex component | C184: 0 | D184: 0 | E184: 0 | F184: 0 | G184: 0 | H184: 0 | I184: 0 | J184: 0 | K184: 0 | L184: 0 | M184: 0 | N184: 0
A185: DOPEX0309I | B185: Capex component | C185: 0 | D185: 0 | E185: 0 | F185: 0 | G185: 0 | H185: 0 | I185: 0 | J185: 0 | K185: 0 | L185: 0 | M185: 0 | N185: 0
A186: DOPEX0310I | B186: Other component | C186: 0 | D186: 0 | E186: 0 | F186: 0 | G186: 0 | H186: 0 | I186: 0 | J186: 0 | K186: 0 | L186: 0 | M186: 0 | N186: 0
B187: The increase during the period in the discounted amount arising from the passage of time and the effect of any change in the discount rate
A188: DOPEX0311I | B188: Opex component | C188: 0 | D188: 0 | E188: 0 | F188: 0 | G188: 0 | H188: 0 | I188: 0 | J188: 0 | K188: 0 | L188: 0 | M188: 0 | N188: 0
A189: DOPEX0312I | B189: Capex component | C189: 0 | D189: 0 | E189: 0 | F189: 0 | G189: 0 | H189: 0 | I189: 0 | J189: 0 | K189: 0 | L189: 0 | M189: 0 | N189: 0
A190: DOPEX0313I | B190: Other component | C190: 0 | D190: 0 | E190: 0 | F190: 0 | G190: 0 | H190: 0 | I190: 0 | J190: 0 | K190: 0 | L190: 0 | M190: 0 | N190: 0
A191: DOPEX0314I | B191: Closing balance (carrying amount at the end of the period) | C191: 0 | D191: 0 | E191: 0 | F191: 0 | G191: 0 | H191: 0 | I191: 0 | J191: 0 | K191: 0 | L191: -163000 | M191: -323000 | N191: -320000
A192: DOPEX03J | B192: <Provision name>
B193: <Brief description of provision>
A194: DOPEX0301J | B194: Opening balance (the carrying amount at the beginning of the period)
B195: Additional provisions made in the period, including increases to existing provisions
A196: DOPEX0302J | B196: Opex component
A197: DOPEX0303J | B197: Capex component
A198: DOPEX0304J | B198: Other component
B199: Amounts used (that is, incurred and charged against the provision) during the period
A200: DOPEX0305J | B200: Opex component
A201: DOPEX0306J | B201: Capex component
A202: DOPEX0307J | B202: Other component
... 169 more rows

Sheet 3.3 Assets (RAB)
B1: =INDEX(dms_Worksheet_List,MATCH(dms_Model,dms_Model_List)) -> HISTORICAL ECONOMIC BENCHMARKING - FINANCIAL YEARS
B2: =INDEX(dms_TradingNameFull_List,MATCH(dms_TradingName,dms_TradingName_List)) -> Powercor Australia
B3: =dms_Header_Span -> 2006-07 to 2018-19
B4: 3.3 ASSETS
B6: There are FOUR tables on this worksheet. Both ROWS and COLUMNS in each have been grouped (and sub-grouped) for ease of navigation. see the Instructions sheet on how to group or ungroup tables.
B8: 3.3.1 - REGULATORY ASSET BASE VALUES
C9: Network services | P9: Standard control services | AC9: Alternative control services
C10: $0's, Nominal | P10: $0's, Nominal | AC10: $0's, Nominal
C11: =dms_y1 -> 2006-07 | D11: =dms_y2 -> 2007-08 | E11: =dms_y3 -> 2008-09 | F11: =dms_y4 -> 2009-10 | G11: =dms_y5 -> 2010-11 | H11: =dms_y6 -> 2011-12 | I11: =dms_y7 -> 2012-13 | J11: =dms_y8 -> 2013-14 | K11: =dms_y9 -> 2014-15 | L11: =dms_y10 -> 2015-16 | M11: =dms_y11 -> 2016-17 | N11: =dms_y12 -> 2017-18 | P11: =dms_y1 -> 2006-07 | Q11: =dms_y2 -> 2007-08 | R11: =dms_y3 -> 2008-09 | S11: =dms_y4 -> 2009-10 | T11: =dms_y5 -> 2010-11 | U11: =dms_y6 -> 2011-12 | V11: =dms_y7 -> 2012-13 | W11: =dms_y8 -> 2013-14 | X11: =dms_y9 -> 2014-15 | Y11: =dms_y10 -> 2015-16 | Z11: =dms_y11 -> 2016-17 | AA11: =dms_y12 -> 2017-18 | AC11: =dms_y1 -> 2006-07 | AD11: =dms_y2 -> 2007-08 | AE11: =dms_y3 -> 2008-09 | AF11: =dms_y4 -> 2009-10 | AG11: =dms_y5 -> 2010-11 | AH11: =dms_y6 -> 2011-12 | AI11: =dms_y7 -> 2012-13 | AJ11: =dms_y8 -> 2013-14 | AK11: =dms_y9 -> 2014-15 | AL11: =dms_y10 -> 2015-16 | AM11: =dms_y11 -> 2016-17 | AN11: =dms_y12 -> 2017-18
B12: For total asset base:
A13: DRAB0101 | B13: Opening value | C13: 1315040751 | D13: =C18 -> 1419291768 | E13: =D18 -> 1516988534 | F13: 1622158281 | G13: 1735324198 | H13: 1869487197 | I13: 2050228181 | J13: 2239693037 | K13: 2442881284 | L13: 2653552501 | M13: 2815647841 | N13: 2964596681 | P13: 1716978006 | Q13: =P18 -> 1830195435 | R13: =Q18 -> 1935927983 | S13: 2051730865 | T13: 2177055526 | U13: 2325132495 | V13: 2531322006 | W13: 2749944085 | X13: 2982461035 | Y13: 3220840280 | Z13: 0 | AA13: 0 | AC13: 12897187.3 | AD13: 12867384.67 | AE13: 12836353.46 | AF13: 13134291.29 | AG13: 13828306.56 | AH13: 14587263.08 | AI13: 15479463.57 | AJ13: 17137032.98 | AK13: 19720198.99 | AL13: 189120313.5 | AM13: 346661281.9 | AN13: 321859676.8
A14: DRAB0102 | B14: Inflation addition | C14: 46019867.4 | D14: 40598292.17 | E14: 52576843.94 | F14: 49471361.93 | G14: 35843879.95 | H14: 59999561.93 | I14: 56531591.57 | J14: 47152251.28 | K14: 54633931.97 | L14: 49807358.46 | M14: 35836016.45 | N14: 44766739.69 | P14: 60031616.08 | Q14: 52457551.03 | R14: 66948432.76 | S14: 62724517.22 | T14: 44672723.41 | U14: 74082429.94 | V14: 69418803 | W14: 57615631.61 | X14: 66449857.53 | Y14: 60323743.39 | Z14: 42523505.62 | AA14: 52905763.85 | AC14: 0 | AD14: 0 | AE14: 0 | AF14: 0 | AG14: 0 | AH14: 0 | AI14: 0 | AJ14: 0 | AK14: 0 | AL14: 2522226 | AM14: 4121925.234 | AN14: 4335229.17
A15: DRAB0103 | B15: Straight line depreciation | C15: -79827757.52 | D15: -83728441.13 | E15: -89088690.32 | F15: -94911479.61 | G15: -94343445.67 | H15: -96814922.76 | I15: -107560199.2 | J15: -118235920.5 | K15: -130125053.6 | L15: -142860767.6 | M15: -154273563.2 | N15: -165391825.2 | P15: -109165307.2 | Q15: -113375535.2 | R15: -119259152.7 | S15: -125461939 | T15: -123389931.4 | U15: -125223793.7 | V15: -137694184.1 | W15: -150266241.8 | X15: -163972846.9 | Y15: -178659721 | Z15: -181950015.1 | AA15: -186817487.1 | AC15: -633802.637 | AD15: -662031.2084 | AE15: -699246.8584 | AF15: -755163.743 | AG15: -824480.6852 | AH15: -901676.4368 | AI15: -1003738.191 | AJ15: -1088622.522 | AK15: -1163597.037 | AL15: -21183396.04 | AM15: -41992632.29 | AN15: -43331144.94
A16: DRAB0105 | B16: Actual additions (recognised in RAB) | C16: 142106204.7 | D16: 144152018.3 | E16: 143513707 | F16: 161075118.8 | G16: 196099218.8 | H16: 219866538.1 | I16: 242147305.7 | J16: 275732584 | K16: 290721691.9 | L16: 259838896.1 | M16: 269573321.9 | N16: 304125392.3 | P16: 167271719.9 | Q16: 170693107.6 | R16: 170341038.8 | S16: 190620151.1 | T16: 230230830.6 | U16: 259641068.2 | V16: 288551302.6 | W16: 326628227.8 | X16: 339279876.6 | Y16: 299676750.2 | Z16: 305512738.1 | AA16: 345603363.8 | AC16: 604000 | AD16: 631000 | AE16: 997184.6867 | AF16: 1449179.017 | AG16: 1583437.205 | AH16: 1793876.925 | AI16: 2671324.81 | AJ16: 3631764.26 | AK16: 2785639.248 | AL16: 8474107.748 | AM16: 16339601.73 | AN16: 17246284.92
A17: DRAB0106 | B17: Disposals | C17: -4047297.302 | D17: -3325103.672 | E17: -1832113.909 | F17: -2469083.711 | G17: -3436653.83 | H17: -2310193.3 | I17: -1653842.52 | J17: -1460667.705 | K17: -4559353.197 | L17: -4690146.342 | M17: -2186935.891 | N17: -1319090.391 | P17: -4920599.735 | Q17: -4042575.335 | R17: -2227436.865 | S17: -2558068.14 | T17: -3436653.83 | U17: -2310193.3 | V17: -1653842.52 | W17: -1460667.705 | X17: -3377642.471 | Y17: -3508435.616 | Z17: -2186935.891 | AA17: -1319090.391 | AC17: 0 | AD17: 0 | AE17: 0 | AF17: 0 | AG17: 0 | AH17: 0 | AI17: 0 | AJ17: 0 | AK17: 0 | AL17: 0 | AM17: 0 | AN17: 0
A18: DRAB0107 | B18: Closing value | C18: =SUM(C13:C17) -> 1419291768 | D18: 1516988534 | E18: 1622158281 | F18: 1735324198 | G18: 1869487197 | H18: 2050228181 | I18: 2239693037 | J18: =SUM(J13:J17) -> 2442881284 | K18: 2653552501 | L18: 2815647841 | M18: 2964596681 | N18: =SUM(N13:N17) -> 3146777897 | P18: =SUM(P13:P17) -> 1830195435 | Q18: 1935927983 | R18: 2051730865 | S18: 2177055526 | T18: 2325132495 | U18: 2531322006 | V18: 2749944085 | W18: 2982461035 | X18: 3220840280 | AC18: =SUM(AC13:AC17) -> 12867384.67 | AD18: 12836353.46 | AE18: 13134291.29 | AF18: 13828306.56 | AG18: 14587263.08 | AH18: 15479463.57 | AI18: 17147050.19 | AJ18: 19680174.71 | AK18: 21342241.2 | AL18: 178933251.2 | AM18: 325130176.6 | AN18: 300110046
B21: 3.3.2 - ASSET VALUE ROLL FORWARD
C22: Network services | P22: Standard control services | AC22: Alternative control services
C23: $0's, Nominal | P23: $0's, Nominal | AC23: $0's, Nominal
C24: =dms_y1 -> 2006-07 | D24: =dms_y2 -> 2007-08 | E24: =dms_y3 -> 2008-09 | F24: =dms_y4 -> 2009-10 | G24: =dms_y5 -> 2010-11 | H24: =dms_y6 -> 2011-12 | I24: =dms_y7 -> 2012-13 | J24: =dms_y8 -> 2013-14 | K24: =dms_y9 -> 2014-15 | L24: =dms_y10 -> 2015-16 | M24: =dms_y11 -> 2016-17 | N24: =dms_y12 -> 2017-18 | P24: =dms_y1 -> 2006-07 | Q24: =dms_y2 -> 2007-08 | R24: =dms_y3 -> 2008-09 | S24: =dms_y4 -> 2009-10 | T24: =dms_y5 -> 2010-11 | U24: =dms_y6 -> 2011-12 | V24: =dms_y7 -> 2012-13 | W24: =dms_y8 -> 2013-14 | X24: =dms_y9 -> 2014-15 | Y24: =dms_y10 -> 2015-16 | Z24: =dms_y11 -> 2016-17 | AA24: =dms_y12 -> 2017-18 | AC24: =dms_y1 -> 2006-07 | AD24: =dms_y2 -> 2007-08 | AE24: =dms_y3 -> 2008-09 | AF24: =dms_y4 -> 2009-10 | AG24: =dms_y5 -> 2010-11 | AH24: =dms_y6 -> 2011-12 | AI24: =dms_y7 -> 2012-13 | AJ24: =dms_y8 -> 2013-14 | AK24: =dms_y9 -> 2014-15 | AL24: =dms_y10 -> 2015-16 | AM24: =dms_y11 -> 2016-17 | AN24: =dms_y12 -> 2017-18
B25: For overhead network assets less than 33kV
A26: DRAB0201 | B26: Opening value | C26: 561639513.9 | D26: =C31 -> 605912899.2 | E26: =D31 -> 650130410.2 | F26: 699609452.5 | G26: 753308911.7 | H26: 813074157.6 | I26: 896423589.1 | J26: 990449372.4 | K26: 1087079864 | L26: 1178200206 | M26: 1243135786 | N26: 1298712905 | P26: 1716978006 | Q26: =P31 -> 1830195435 | R26: =Q31 -> 1935927983 | S26: 2051730865 | T26: 2177055526 | U26: 2325132495 | V26: 2531322006 | W26: 2749944085 | X26: 2982461035 | Y26: 3220840280 | Z26: 3398672617 | AA26: 3562571910 | AC26: 0 | AD26: =AC31 -> 0 | AE26: =AD31 -> 0 | AF26: 0 | AG26: 0 | AH26: 0 | AI26: 0 | AJ26: 0 | AK26: 0 | AL26: 0 | AM26: 0 | AN26: 0
A27: DRAB0202 | B27: Inflation addition | C27: 19649477.11 | D27: 17322795.51 | E27: 22557014.83 | F27: 21286384.48 | G27: 15402146.62 | H27: 25699248.32 | I27: 24332453.25 | J27: 20590936.92 | K27: 24035146.91 | L27: 21903353.41 | M27: 15652790.8 | N27: 19279833.77 | P27: 60031616.08 | Q27: 52457551.03 | R27: 66948432.76 | S27: 62724517.22 | T27: 44672723.41 | U27: 74082429.94 | V27: 69418803 | W27: 57615631.61 | X27: 66449857.53 | Y27: 60323743.39 | Z27: 42523505.62 | AA27: 52905763.85 | AC27: 0 | AD27: 0 | AE27: 0 | AF27: 0 | AG27: 0 | AH27: 0 | AI27: 0 | AJ27: 0 | AK27: 0 | AL27: 0 | AM27: 0 | AN27: 0
A28: DRAB0203 | B28: Straight line depreciation | C28: -30007301.88 | D28: -31180499.48 | E28: -32521409.72 | F28: -33831180.41 | G28: -32396118.65 | H28: -31799498.98 | I28: -34665483.44 | J28: -37819202.09 | K28: -41050526.13 | L28: -45304516.88 | M28: -49534272.12 | N28: -52419628.32 | P28: -109165307.2 | Q28: -113375535.2 | R28: -119259152.7 | S28: -125461939 | T28: -123389931.4 | U28: -125223793.7 | V28: -137694184.1 | W28: -150266241.8 | X28: -163972846.9 | Y28: -178659721 | Z28: -181950015.1 | AA28: -186817487.1 | AC28: 0 | AD28: 0 | AE28: 0 | AF28: 0 | AG28: 0 | AH28: 0 | AI28: 0 | AJ28: 0 | AK28: 0 | AL28: 0 | AM28: 0 | AN28: 0
A29: DRAB0205 | B29: Actual additions (recognised in RAB) | C29: 56595196.19 | D29: 59688750.31 | E29: 60332486.44 | F29: 66444373.79 | G29: 76759217.96 | H29: 89449682.12 | I29: 104358813.6 | J29: 113858757.2 | K29: 108098825.3 | L29: 88262953.17 | M29: 89458601.04 | N29: 101656167.6 | P29: 167271719.9 | Q29: 170693107.6 | R29: 170341038.8 | S29: 190620151.1 | T29: 230230830.6 | U29: 259641068.2 | V29: 288551302.6 | W29: 326628227.8 | X29: 339279876.6 | Y29: 299676750.2 | Z29: 305512738.1 | AA29: 345603363.8 | AC29: 0 | AD29: 0 | AE29: 0 | AF29: 0 | AG29: 0 | AH29: 0 | AI29: 0 | AJ29: 0 | AK29: 0 | AL29: 0 | AM29: 0 | AN29: 0
A30: DRAB0206 | B30: Disposals | C30: -1963986.118 | D30: -1613535.396 | E30: -889049.1643 | F30: -200118.7411 | G30: 0 | H30: 0 | I30: 0 | J30: 0 | K30: 36895.09625 | L30: 73790.1925 | M30: 0 | N30: 0 | P30: -4920599.735 | Q30: -4042575.335 | R30: -2227436.865 | S30: -2558068.14 | T30: -3436653.83 | U30: -2310193.3 | V30: -1653842.52 | W30: -1460667.705 | X30: -3377642.471 | Y30: -3508435.616 | Z30: -2186935.891 | AA30: -1319090.391 | AC30: 0 | AD30: 0 | AE30: 0 | AF30: 0 | AG30: 0 | AH30: 0 | AI30: 0 | AJ30: 0 | AK30: 0 | AL30: 0 | AM30: 0 | AN30: 0
A31: DRAB0207 | B31: Closing value | C31: =SUM(C26:C30) -> 605912899.2 | D31: 650130410.2 | E31: 699609452.5 | F31: 753308911.7 | G31: 813074157.6 | H31: 896423589.1 | I31: 990449372.4 | J31: =SUM(J26:J30) -> 1087079864 | K31: 1178200206 | L31: 1243135786 | M31: 1298712905 | N31: =SUM(N26:N30) -> 1367229278 | P31: =SUM(P26:P30) -> 1830195435 | Q31: 1935927983 | R31: 2051730865 | S31: 2177055526 | T31: 2325132495 | U31: 2531322006 | V31: 2749944085 | W31: 2982461035 | X31: 3220840280 | Y31: 3398672617 | Z31: 3562571910 | AA31: 3772944460 | AC31: =SUM(AC26:AC30) -> 0 | AD31: 0 | AE31: 0 | AF31: 0 | AG31: 0 | AH31: 0 | AI31: 0 | AJ31: 0 | AK31: 0 | AL31: 0 | AM31: 0 | AN31: 0
B32: For underground network assets less than 33kV
A33: DRAB0301 | B33: Opening value | C33: 286044616.3 | D33: =C38 -> 308593178.5 | E33: =D38 -> 331113283.7 | F33: 356313102 | G33: 383662390.6 | H33: 414101001.9 | I33: 456551106.6 | J33: 504438707.9 | K33: 553652894.8 | L33: 600060746.1 | M33: 633132622.7 | N33: 661438208.6 | P33: 682826843.9 | Q33: =P38 -> 736653284.6 | R33: =Q38 -> 790411794.6 | S33: 850567139 | T33: 915853557.2 | U33: 988514602.6 | V33: 1089848693 | W33: 1204162817 | X33: 1321754662 | Y33: 1432737330 | Z33: 1511884480 | AA33: 1578290632 | AC33: 0 | AD33: =AC38 -> 0 | AE33: =AD38 -> 0 | AF33: 0 | AG33: 0 | AH33: 0 | AI33: 0 | AJ33: 0 | AK33: 0 | AL33: 0 | AM33: 0 | AN33: 0
A34: DRAB0302 | B34: Inflation addition | C34: 10007535.08 | D34: 8822549.47 | E34: 11488352.39 | F34: 10841216.7 | G34: 7844357.475 | H34: 13088700.92 | I34: 12392588.27 | J34: 10487023.27 | K34: 12241169.3 | L34: 11155440.54 | M34: 7972011.06 | N34: 9819274.673 | P34: 23889327.78 | Q34: 21060608.26 | R34: 27424237.19 | S34: 25879437.56 | T34: 18725532.84 | U34: 31244483.67 | V34: 29582769.46 | W34: 25058522.86 | X34: 29274305.63 | Y34: 26699141.43 | Z34: 18803134.22 | AA34: 23229365.83 | AC34: 0 | AD34: 0 | AE34: 0 | AF34: 0 | AG34: 0 | AH34: 0 | AI34: 0 | AJ34: 0 | AK34: 0 | AL34: 0 | AM34: 0 | AN34: 0
A35: DRAB0303 | B35: Straight line depreciation | C35: -15282804.96 | D35: -15880317.87 | E35: -16563247.3 | F35: -17230317.28 | G35: -16499436.2 | H35: -16195576.09 | I35: -17655230.2 | J35: -19261428.16 | K35: -20907150.77 | L35: -23073720.6 | M35: -25227947.08 | N35: -26697467.15 | P35: -36482104.14 | Q35: -37908447.54 | R35: -39538691.65 | S35: -41131077.09 | T35: -39386365.99 | U35: -38661011.18 | V35: -42145401.21 | W35: -46022987.07 | X35: -49998681.21 | Y35: -55236483.19 | Z35: -59295496.38 | AA35: -62816616.62 | AC35: 0 | AD35: 0 | AE35: 0 | AF35: 0 | AG35: 0 | AH35: 0 | AI35: 0 | AJ35: 0 | AK35: 0 | AL35: 0 | AM35: 0 | AN35: 0
A36: DRAB0305 | B36: Actual additions (recognised in RAB) | C36: 28824095.84 | D36: 30399651.83 | E36: 30727508.49 | F36: 33840310.26 | G36: 39093690 | H36: 45556979.82 | I36: 53150243.25 | J36: 57988591.82 | K36: 55055041.95 | L36: 44952575.1 | M36: 45561521.99 | N36: 51773777.89 | P36: 68806980.7 | Q36: 72568044.06 | R36: 73350681.86 | S36: 80781356.95 | T36: 93321878.62 | U36: 108750617.8 | V36: 126876755.5 | W36: 138556309.8 | X36: 131662105.6 | Y36: 107594617 | Z36: 106898514 | AA36: 121783713 | AC36: 0 | AD36: 0 | AE36: 0 | AF36: 0 | AG36: 0 | AH36: 0 | AI36: 0 | AJ36: 0 | AK36: 0 | AL36: 0 | AM36: 0 | AN36: 0
A37: DRAB0306 | B37: Disposals | C37: -1000263.767 | D37: -821778.2077 | E37: -452795.2909 | F37: -101921.0491 | G37: 0 | H37: 0 | I37: 0 | J37: 0 | K37: 18790.77841 | L37: 37581.55681 | M37: 0 | N37: 0 | P37: -2387763.698 | Q37: -1961694.743 | R37: -1080883.057 | S37: -243299.207 | T37: 0 | U37: 0 | V37: 0 | W37: 0 | X37: 44937.45464 | Y37: 89874.90927 | Z37: 0 | AA37: 0 | AC37: 0 | AD37: 0 | AE37: 0 | AF37: 0 | AG37: 0 | AH37: 0 | AI37: 0 | AJ37: 0 | AK37: 0 | AL37: 0 | AM37: 0 | AN37: 0
A38: DRAB0307 | B38: Closing value | C38: =SUM(C33:C37) -> 308593178.5 | D38: 331113283.7 | E38: 356313102 | F38: 383662390.6 | G38: 414101001.9 | H38: 456551106.6 | I38: 504438707.9 | J38: =SUM(J33:J37) -> 553652894.8 | K38: 600060746.1 | L38: 633132622.7 | M38: 661438208.6 | N38: =SUM(N33:N37) -> 696333794.1 | P38: =SUM(P33:P37) -> 736653284.6 | Q38: 790411794.6 | R38: 850567139 | S38: 915853557.2 | T38: 988514602.6 | U38: 1089848693 | V38: 1204162817 | W38: 1321754662 | X38: 1432737330 | Y38: 1511884480 | Z38: 1578290632 | AA38: 1660487094 | AC38: =SUM(AC33:AC37) -> 0 | AD38: 0 | AE38: 0 | AF38: 0 | AG38: 0 | AH38: 0 | AI38: 0 | AJ38: 0 | AK38: 0 | AL38: 0 | AM38: 0 | AN38: 0
B39: For distribution substations and transformers
A40: DRAB0401 | B40: Opening value | C40: 138018753.3 | D40: =C45 -> 148898610 | E40: =D45 -> 159764736.1 | F40: 171923844.5 | G40: 185120089.1 | H40: 199806955.9 | I40: 220289461.7 | J40: 243395602 | K40: 267141830.2 | L40: 289533979.6 | M40: 305491418.1 | N40: 319149084.3 | P40: 167799642.6 | Q40: =P45 -> 181027092 | R40: =Q45 -> 194237847.9 | S40: 209020578.5 | T40: 225064232.6 | U40: 242920146.7 | V40: 267822249.3 | W40: 295914099.1 | X40: 324811424.7 | Y40: 352084593.7 | Z40: 371534419.9 | AA40: 387853240 | AC40: 0 | AD40: =AC45 -> 0 | AE40: =AD45 -> 0 | AF40: 0 | AG40: 0 | AH40: 0 | AI40: 0 | AJ40: 0 | AK40: 0 | AL40: 0 | AM40: 0 | AN40: 0
A41: DRAB0402 | B41: Inflation addition | C41: 4828713.556 | D41: 4256948.775 | E41: 5543219.428 | F41: 5230971.424 | G41: 3784963.525 | H41: 6315400.051 | I41: 5979520.28 | J41: 5060070.335 | K41: 5906459.445 | L41: 5382587.073 | M41: 3846557.577 | N41: 4737876.442 | P41: 5870625.474 | Q41: 5175488.592 | R41: 6739303.296 | S41: 6359680.222 | T41: 4601661.091 | U41: 7678100.593 | V41: 7269746.625 | W41: 6157946.512 | X41: 7193943.921 | Y41: 6561116.09 | Z41: 4620730.764 | AA41: 5708444.711 | AC41: 0 | AD41: 0 | AE41: 0 | AF41: 0 | AG41: 0 | AH41: 0 | AI41: 0 | AJ41: 0 | AK41: 0 | AL41: 0 | AM41: 0 | AN41: 0
A42: DRAB0403 | B42: Straight line depreciation | C42: -7374072.323 | D42: -7662376.951 | E42: -7991895.717 | F42: -8313762.169 | G42: -7961106.363 | H42: -7814491.496 | I42: -8518785.963 | J42: -9293788.977 | K42: -10087862.94 | L42: -11133249.54 | M42: -12172680.58 | N42: -12881735.65 | P42: -8965207.053 | Q42: -9315720.388 | R42: -9716340.81 | S42: -10107657.75 | T42: -9678907.907 | U42: -9500657.331 | V42: -10356920.39 | W42: -11309808.41 | X42: -12286805.82 | Y42: -13573956.62 | Z42: -14571429.07 | AA42: -15436718.57 | AC42: 0 | AD42: 0 | AE42: 0 | AF42: 0 | AG42: 0 | AH42: 0 | AI42: 0 | AJ42: 0 | AK42: 0 | AL42: 0 | AM42: 0 | AN42: 0
A43: DRAB0405 | B43: Actual additions (recognised in RAB) | C43: 13907850.55 | D43: 14668068.58 | E43: 14826261.97 | F43: 16328213.04 | G43: 18863009.65 | H43: 21981597.28 | I43: 25645405.98 | J43: 27979946.81 | K43: 26564486.17 | L43: 21689967.62 | M43: 21983789.23 | N43: 24981250.73 | P43: 16908806.2 | Q43: 17833059.68 | R43: 18025387.13 | S43: 19851420.53 | T43: 22933160.91 | U43: 26724659.36 | V43: 31179023.54 | W43: 34049187.54 | X43: 32354987.88 | Y43: 26440580.56 | Z43: 26269518.4 | AA43: 29927446.02 | AC43: 0 | AD43: 0 | AE43: 0 | AF43: 0 | AG43: 0 | AH43: 0 | AI43: 0 | AJ43: 0 | AK43: 0 | AL43: 0 | AM43: 0 | AN43: 0
A44: DRAB0406 | B44: Disposals | C44: -482635.0513 | D44: -396514.3802 | E44: -218477.2514 | F44: -49177.69935 | G44: 0 | H44: 0 | I44: 0 | J44: 0 | K44: 9066.696808 | L44: 18133.39362 | M44: 0 | N44: 0 | P44: -586775.2547 | Q44: -482071.9627 | R44: -265619.0107 | S44: -59788.97924 | T44: 0 | U44: 0 | V44: 0 | W44: 0 | X44: 11043.04685 | Y44: 22086.0937 | Z44: 0 | AA44: 0 | AC44: 0 | AD44: 0 | AE44: 0 | AF44: 0 | AG44: 0 | AH44: 0 | AI44: 0 | AJ44: 0 | AK44: 0 | AL44: 0 | AM44: 0 | AN44: 0
A45: DRAB0407 | B45: Closing value | C45: =SUM(C40:C44) -> 148898610 | D45: 159764736.1 | E45: 171923844.5 | F45: 185120089.1 | G45: 199806955.9 | H45: 220289461.7 | I45: 243395602 | J45: =SUM(J40:J44) -> 267141830.2 | K45: 289533979.6 | L45: 305491418.1 | M45: 319149084.3 | N45: =SUM(N40:N44) -> 335986475.9 | P45: =SUM(P40:P44) -> 181027092 | Q45: 194237847.9 | R45: 209020578.5 | S45: 225064232.6 | T45: 242920146.7 | U45: 267822249.3 | V45: 295914099.1 | W45: 324811424.7 | X45: 352084593.7 | Y45: 371534419.9 | Z45: 387853240 | AA45: 408052412.1 | AC45: =SUM(AC40:AC44) -> 0 | AD45: 0 | AE45: 0 | AF45: 0 | AG45: 0 | AH45: 0 | AI45: 0 | AJ45: 0 | AK45: 0 | AL45: 0 | AM45: 0 | AN45: 0
B46: For overhead network assets 33kV and above
A47: DRAB0501 | B47: Opening value | C47: 96003690.47 | D47: =C52 -> 103571549 | E47: =D52 -> 111129856.6 | F47: 119587542.7 | G47: 128766644.4 | H47: 138982599.7 | I47: 153229911.1 | J47: 169302181.6 | K47: 185819687.3 | L47: 201395316.8 | M47: 212495061.9 | N47: 221995121.2 | P47: 116718812.2 | Q47: =P52 -> 125919619.6 | R47: =Q52 -> 135108815.2 | S47: 145391451.8 | T47: 156551167.1 | U47: 168971462.3 | V47: 186292976.2 | W47: 205833228.4 | X47: 225933757 | Y47: 244904547.7 | Z47: 258433543.2 | AA47: 269784659.8 | AC47: 0 | AD47: =AC52 -> 0 | AE47: =AD52 -> 0 | AF47: 0 | AG47: 0 | AH47: 0 | AI47: 0 | AJ47: 0 | AK47: 0 | AL47: 0 | AM47: 0 | AN47: 0
A48: DRAB0502 | B48: Inflation addition | C48: 3358777.778 | D48: 2961067.121 | E48: 3855776.91 | F48: 3638582.073 | G48: 2632761.549 | H48: 4392893.698 | I48: 4159260.972 | J48: 3519705.943 | K48: 4108440.996 | L48: 3744043.617 | M48: 2675605.475 | N48: 3295592.899 | P48: 4083515.445 | Q48: 3599989.08 | R48: 4687754.179 | S48: 4423694.294 | T48: 3200843.628 | U48: 5340766.925 | V48: 5056722.279 | W48: 4283371.474 | X48: 5003995.101 | Y48: 4563809.879 | Z48: 3214108.134 | AA48: 3970705.038 | AC48: 0 | AD48: 0 | AE48: 0 | AF48: 0 | AG48: 0 | AH48: 0 | AI48: 0 | AJ48: 0 | AK48: 0 | AL48: 0 | AM48: 0 | AN48: 0
A49: DRAB0503 | B49: Straight line depreciation | C49: -5129289.606 | D49: -5329829.805 | E49: -5559037.915 | F49: -5782923.195 | G49: -5537621.321 | H49: -5435638.308 | I49: -5925534.546 | J49: -6464614.546 | K49: -7016960.002 | L49: -7744114.594 | M49: -8467126.601 | N49: -8960334.249 | P49: -6236058.088 | Q49: -6479869.692 | R49: -6758535.005 | S49: -7030728.958 | T49: -6732497.262 | U49: -6608508.943 | V49: -7204112.162 | W49: -7866926.197 | X49: -8546510.344 | Y49: -9441832.506 | Z49: -10135658.77 | AA49: -10737540.49 | AC49: 0 | AD49: 0 | AE49: 0 | AF49: 0 | AG49: 0 | AH49: 0 | AI49: 0 | AJ49: 0 | AK49: 0 | AL49: 0 | AM49: 0 | AN49: 0
A50: DRAB0505 | B50: Actual additions (recognised in RAB) | C50: 9674083.753 | D50: 10202879.55 | E50: 10312916.4 | F50: 11357650.12 | G50: 13120815.08 | H50: 15290055.96 | I50: 17838544.1 | J50: 19462414.26 | K50: 18477841.93 | L50: 15087202.73 | M50: 15291580.46 | N50: 17376568.07 | P50: 11761501.66 | Q50: 12404397.96 | R50: 12538177.93 | S50: 13808338.26 | T50: 15951948.76 | U50: 18589255.91 | V50: 21687642.1 | W50: 23684083.38 | X50: 22505624.54 | Y50: 18391655.37 | Z50: 18272667.2 | AA50: 20817064.32 | AC50: 0 | AD50: 0 | AE50: 0 | AF50: 0 | AG50: 0 | AH50: 0 | AI50: 0 | AJ50: 0 | AK50: 0 | AL50: 0 | AM50: 0 | AN50: 0
A51: DRAB0506 | B51: Disposals | C51: -335713.4082 | D51: -275809.2137 | E51: -151969.3659 | F51: -34207.24005 | G51: 0 | H51: 0 | I51: 0 | J51: 0 | K51: 6306.652778 | L51: 12613.30556 | M51: 0 | N51: 0 | P51: -408151.7082 | Q51: -335321.7326 | R51: -184760.4378 | S51: -41588.28071 | T51: 0 | U51: 0 | V51: 0 | W51: 0 | X51: 7681.371019 | Y51: 15362.74204 | Z51: 0 | AA51: 0 | AC51: 0 | AD51: 0 | AE51: 0 | AF51: 0 | AG51: 0 | AH51: 0 | AI51: 0 | AJ51: 0 | AK51: 0 | AL51: 0 | AM51: 0 | AN51: 0
A52: DRAB0507 | B52: Closing value | C52: =SUM(C47:C51) -> 103571549 | D52: 111129856.6 | E52: 119587542.7 | F52: 128766644.4 | G52: 138982599.7 | H52: 153229911.1 | I52: 169302181.6 | J52: =SUM(J47:J51) -> 185819687.3 | K52: 201395316.8 | L52: 212495061.9 | M52: 221995121.2 | N52: =SUM(N47:N51) -> 233706948 | P52: =SUM(P47:P51) -> 125919619.6 | Q52: 135108815.2 | R52: 145391451.8 | S52: 156551167.1 | T52: 168971462.3 | U52: 186292976.2 | V52: 205833228.4 | W52: 225933757 | X52: 244904547.7 | Y52: 258433543.2 | Z52: 269784659.8 | AA52: 283834888.6 | AC52: =SUM(AC47:AC51) -> 0 | AD52: 0 | AE52: 0 | AF52: 0 | AG52: 0 | AH52: 0 | AI52: 0 | AJ52: 0 | AK52: 0 | AL52: 0 | AM52: 0 | AN52: 0
B53: For underground network assets 33kV and above
A54: DRAB0601 | B54: Opening value | C54: 2582901.293 | D54: =C59 -> 2786508.378 | E54: =D59 -> 2989858.505 | F54: 3217405.676 | G54: 3464361.951 | H54: 3739213.928 | I54: 4122526.265 | J54: 4554937.645 | K54: 4999327.715 | L54: 5418377.375 | M54: 5717006.921 | N54: 5972598.222 | P54: 3140224.814 | Q54: =P59 -> 3387765.06 | R54: =Q59 -> 3634992.902 | S54: 3911638.887 | T54: 4211881.961 | U54: 4546039.91 | V54: 5012061.169 | W54: 5537775.779 | X54: 6078564.172 | Y54: 6588957.882 | Z54: 6952944.211 | AA54: 7258336.477 | AC54: 0 | AD54: =AC59 -> 0 | AE54: =AD59 -> 0 | AF54: 0 | AG54: 0 | AH54: 0 | AI54: 0 | AJ54: 0 | AK54: 0 | AL54: 0 | AM54: 0 | AN54: 0
A55: DRAB0602 | B55: Inflation addition | C55: 90365.18725 | D55: 79665.10515 | E55: 103736.5451 | F55: 97893.09447 | G55: 70832.31046 | H55: 118187.2359 | I55: 111901.5372 | J55: 94694.82877 | K55: 110534.2671 | L55: 100730.5557 | M55: 71985.0956 | N55: 88665.24943 | P55: 109863.6654 | Q55: 96854.78136 | R55: 126120.2176 | S55: 119015.9009 | T55: 86116.09725 | U55: 143688.995 | V55: 136047.0045 | W55: 115240.6295 | X55: 134628.4227 | Y55: 122785.4294 | Z55: 86472.80052 | AA55: 106828.593 | AC55: 0 | AD55: 0 | AE55: 0 | AF55: 0 | AG55: 0 | AH55: 0 | AI55: 0 | AJ55: 0 | AK55: 0 | AL55: 0 | AM55: 0 | AN55: 0
A56: DRAB0603 | B56: Straight line depreciation | C56: -137999.3695 | D56: -143394.7406 | E56: -149561.3986 | F56: -155584.8502 | G56: -148985.2026 | H56: -146241.4325 | I56: -159421.6927 | J56: -173925.2021 | K56: -188785.6079 | L56: -208349.1569 | M56: -227801.2076 | N56: -241070.5131 | P56: -167776.0763 | Q56: -174335.6295 | R56: -181832.8933 | S56: -189156.0504 | T56: -181132.369 | U56: -177796.564 | V56: -193820.7847 | W56: -211653.2578 | X56: -229936.9171 | Y56: -254025.0395 | Z56: -272691.8714 | AA56: -288884.803 | AC56: 0 | AD56: 0 | AE56: 0 | AF56: 0 | AG56: 0 | AH56: 0 | AI56: 0 | AJ56: 0 | AK56: 0 | AL56: 0 | AM56: 0 | AN56: 0
A57: DRAB0605 | B57: Actual additions (recognised in RAB) | C57: 260273.3636 | D57: 274500.1848 | E57: 277460.6369 | F57: 305568.349 | G57: 353004.8695 | H57: 411366.533 | I57: 479931.5359 | J57: 523620.4434 | K57: 497131.3248 | L57: 405908.7966 | M57: 411407.4133 | N57: 467502.4463 | P57: 316433.6465 | Q57: 333730.2491 | R57: 337329.4904 | S57: 371502.1222 | T57: 429174.2212 | U57: 500128.8272 | V57: 583488.3904 | W57: 637201.021 | X57: 605495.5434 | Y57: 494812.617 | Z57: 491611.3371 | AA57: 560066.2025 | AC57: 0 | AD57: 0 | AE57: 0 | AF57: 0 | AG57: 0 | AH57: 0 | AI57: 0 | AJ57: 0 | AK57: 0 | AL57: 0 | AM57: 0 | AN57: 0
A58: DRAB0606 | B58: Disposals | C58: -9032.096495 | D58: -7420.42281 | E58: -4088.612321 | F58: -920.3180016 | G58: 0 | H58: 0 | I58: 0 | J58: 0 | K58: 169.6753691 | L58: 339.3507382 | M58: 0 | N58: 0 | P58: -10980.9901 | Q58: -9021.558781 | R58: -4970.829469 | S58: -1118.898904 | T58: 0 | U58: 0 | V58: 0 | W58: 0 | X58: 206.6610465 | Y58: 413.322093 | Z58: 0 | AA58: 0 | AC58: 0 | AD58: 0 | AE58: 0 | AF58: 0 | AG58: 0 | AH58: 0 | AI58: 0 | AJ58: 0 | AK58: 0 | AL58: 0 | AM58: 0 | AN58: 0
A59: DRAB0607 | B59: Closing value | C59: =SUM(C54:C58) -> 2786508.378 | D59: 2989858.505 | E59: 3217405.676 | F59: 3464361.951 | G59: 3739213.928 | H59: 4122526.265 | I59: 4554937.645 | J59: =SUM(J54:J58) -> 4999327.715 | K59: 5418377.375 | L59: 5717006.921 | M59: 5972598.222 | N59: =SUM(N54:N58) -> 6287695.405 | P59: =SUM(P54:P58) -> 3387765.06 | Q59: 3634992.902 | R59: 3911638.887 | S59: 4211881.961 | T59: 4546039.91 | U59: 5012061.169 | V59: 5537775.779 | W59: 6078564.172 | X59: 6588957.882 | Y59: 6952944.211 | Z59: 7258336.477 | AA59: 7636346.469 | AC59: =SUM(AC54:AC58) -> 0 | AD59: 0 | AE59: 0 | AF59: 0 | AG59: 0 | AH59: 0 | AI59: 0 | AJ59: 0 | AK59: 0 | AL59: 0 | AM59: 0 | AN59: 0
B60: Zone substations and transformers
A61: DRAB0701 | B61: Opening value | C61: 73112844.5 | D61: =C66 -> 78876244.43 | E61: =D66 -> 84632370.78 | F61: 91073430.29 | G61: 98063893.22 | H61: 105843985.3 | I61: 116694208.4 | J61: 128934252.6 | K61: 141513371.3 | L61: 153375192.3 | M61: 161828346 | N61: 169063238.5 | P61: 88888711.75 | Q61: =P66 -> 95895704.83 | R61: =Q66 -> 102893854.9 | S61: 110724729 | T61: 119223553.6 | U61: 128682389 | V61: 141873810.6 | W61: 156754940.8 | X61: 172062756.8 | Y61: 186510206.3 | Z61: 0 | AA61: 0 | AC61: 0 | AD61: =AC66 -> 0 | AE61: =AD66 -> 0 | AF61: 0 | AG61: 0 | AH61: 0 | AI61: 0 | AJ61: 0 | AK61: 0 | AL61: 0 | AM61: 0 | AN61: 0
A62: DRAB0702 | B62: Inflation addition | C62: 2557920.39 | D62: 2255038.727 | E62: 2936416.468 | F62: 2771008.947 | G62: 2005013.399 | H62: 3345464.662 | I62: 3167538.656 | J62: 2680477.303 | K62: 3128836.05 | L62: 2851324.663 | M62: 2037641.862 | N62: 2509801.134 | P62: 3109853.676 | Q62: 2741617.958 | R62: 3570019.451 | S62: 3368921.251 | T62: 2437643.608 | U62: 4067329.701 | V62: 3851011.85 | W62: 3262056.604 | X62: 3810856.79 | Y62: 3475628.166 | Z62: 2447745.453 | AA62: 3023941.461 | AC62: 0 | AD62: 0 | AE62: 0 | AF62: 0 | AG62: 0 | AH62: 0 | AI62: 0 | AJ62: 0 | AK62: 0 | AL62: 0 | AM62: 0 | AN62: 0
A63: DRAB0703 | B63: Straight line depreciation | C63: -3906276.431 | D63: -4059000.397 | E63: -4233556.78 | F63: -4404059.493 | G63: -4217246.697 | H63: -4139580.223 | I63: -4512667 | J63: -4923210.303 | K63: -5343856.085 | L63: -5897629.978 | M63: -6448249.066 | N63: -6823857.723 | P63: -4749150.195 | Q63: -4934828.056 | R63: -5147049.207 | S63: -5354342.01 | T63: -5127219.829 | U63: -5032794.931 | V63: -5486384.218 | W63: -5991158.766 | X63: -6508704.809 | Y63: -7190549.025 | Z63: -7718941.336 | AA63: -8177311.976 | AC63: 0 | AD63: 0 | AE63: 0 | AF63: 0 | AG63: 0 | AH63: 0 | AI63: 0 | AJ63: 0 | AK63: 0 | AL63: 0 | AM63: 0 | AN63: 0
A64: DRAB0705 | B64: Actual additions (recognised in RAB) | C64: 7367422.832 | D64: 7770134.066 | E64: 7853934.046 | F64: 8649564.442 | G64: 9992325.376 | H64: 11644338.65 | I64: 13585172.55 | J64: 14821851.75 | K64: 14072038.04 | L64: 11489853.22 | M64: 11645499.71 | N64: 13233348.77 | P64: 8957122.773 | Q64: 9446728.711 | R64: 9548610.566 | S64: 10515917.49 | T64: 12148411.63 | U64: 14156886.78 | V64: 16516502.61 | W64: 18036918.13 | X64: 17139447.66 | Y64: 14006401.23 | Z64: 13915784.27 | AA64: 15853502.91 | AC64: 0 | AD64: 0 | AE64: 0 | AF64: 0 | AG64: 0 | AH64: 0 | AI64: 0 | AJ64: 0 | AK64: 0 | AL64: 0 | AM64: 0 | AN64: 0
A65: DRAB0706 | B65: Disposals | C65: -255666.8613 | D65: -210046.0519 | E65: -115734.224 | F65: -26050.96336 | G65: 0 | H65: 0 | I65: 0 | J65: 0 | K65: 4802.912488 | L65: 9605.824976 | M65: 0 | N65: 0 | P65: -310833.1797 | Q65: -255368.5756 | R65: -140706.6863 | S65: -31672.08975 | T65: 0 | U65: 0 | V65: 0 | W65: 0 | X65: 5849.846836 | Y65: 11699.69367 | Z65: 0 | AA65: 0 | AC65: 0 | AD65: 0 | AE65: 0 | AF65: 0 | AG65: 0 | AH65: 0 | AI65: 0 | AJ65: 0 | AK65: 0 | AL65: 0 | AM65: 0 | AN65: 0
A66: DRAB0707 | B66: Closing value | C66: =SUM(C61:C65) -> 78876244.43 | D66: 84632370.78 | E66: 91073430.29 | F66: 98063893.22 | G66: 105843985.3 | H66: 116694208.4 | I66: 128934252.6 | J66: =SUM(J61:J65) -> 141513371.3 | K66: 153375192.3 | L66: 161828346 | M66: 169063238.5 | N66: =SUM(N61:N65) -> 177982530.7 | P66: =SUM(P61:P65) -> 95895704.83 | Q66: 102893854.9 | R66: 110724729 | S66: 119223553.6 | T66: 128682389 | U66: 141873810.6 | V66: 156754940.8 | W66: 172062756.8 | X66: 186510206.3 | AC66: =SUM(AC61:AC65) -> 0 | AD66: 0 | AE66: 0 | AF66: 0 | AG66: 0 | AH66: 0 | AI66: 0 | AJ66: 0 | AK66: 0 | AL66: 0 | AM66: 0 | AN66: 0
B67: For easements
A68: DRAB0801 | B68: Opening value | D68: =C72 -> 0 | E68: =D72 -> 0 | F68: 0 | G68: 0 | H68: 0 | I68: 0 | J68: 0 | K68: 0 | L68: 0 | M68: 0 | N68: 0 | Q68: =P72 -> 0 | R68: 0 | S68: 0 | T68: 0 | U68: 0 | V68: 0 | W68: 0 | X68: 0 | Y68: 0 | Z68: 0 | AA68: 0 | AD68: =AC72 -> 0 | AE68: 0 | AF68: 0 | AG68: 0 | AH68: 0 | AI68: 0 | AJ68: 0 | AK68: 0 | AL68: 0 | AM68: 0 | AN68: 0
A69: DRAB0802 | B69: Inflation addition
A70: DRAB0805 | B70: Actual additions (recognised in RAB)
A71: DRAB0806 | B71: Disposals
A72: DRAB0807 | B72: Closing value | C72: =SUM(C68:C71) -> 0 | D72: 0 | E72: 0 | F72: 0 | G72: 0 | H72: 0 | I72: 0 | J72: =SUM(J68:J71) -> 0 | K72: 0 | L72: 0 | M72: 0 | N72: =SUM(N68:N71) -> 0 | P72: =SUM(P68:P71) -> 0 | Q72: 0 | R72: 0 | S72: 0 | T72: 0 | U72: 0 | V72: 0 | W72: 0 | X72: 0 | Y72: 0 | Z72: 0 | AA72: 0 | AC72: =SUM(AC68:AC71) -> 0 | AD72: 0 | AE72: 0 | AF72: 0 | AG72: 0 | AH72: 0 | AI72: 0 | AJ72: 0 | AK72: 0 | AL72: 0 | AM72: 0 | AN72: 0
B73: For meters
A74: DRAB0901 | B74: Opening value | C74: 0 | D74: =C79 -> 0 | E74: =D79 -> 0 | F74: 0 | G74: 0 | H74: 0 | I74: 0 | J74: 0 | K74: 0 | L74: 0 | M74: 0 | N74: 0 | P74: 127922898.1 | Q74: =P79 -> 118509847.6 | R74: =Q79 -> 108422445.4 | S74: 98622414.45 | T74: 88441924.88 | U74: 77096358.89 | V74: 66326822.56 | W74: 54648842.1 | X74: 41930294.89 | Y74: 29697026.36 | Z74: 18240933.29 | AA74: 11571361.29 | AC74: 0 | AD74: =AC79 -> 0 | AE74: =AD79 -> 0 | AF74: 0 | AG74: 0 | AH74: 0 | AI74: 0 | AJ74: 0 | AK74: 0 | AL74: 0 | AM74: -11393787.5 | AN74: -34385342
A75: DRAB0902 | B75: Inflation addition | C75: 0 | D75: 0 | E75: 0 | F75: 0 | G75: 0 | H75: 0 | I75: 0 | J75: 0 | K75: 0 | L75: 0 | M75: 0 | N75: 0 | P75: 4432129.864 | Q75: 3483737.424 | R75: 3622245.669 | S75: 3155747.792 | T75: 1612020.559 | U75: 2111919.22 | V75: 1610376.888 | W75: 935087.0046 | X75: 703850.2926 | Y75: 383894.9851 | Z75: 100294.5 | AA75: 0 | AC75: 0 | AD75: 0 | AE75: 0 | AF75: 0 | AG75: 0 | AH75: 0 | AI75: 0 | AJ75: 0 | AK75: 0 | AL75: 2522226 | AM75: 4121925.234 | AN75: 4335229.17
A76: DRAB0903 | B76: Straight line depreciation | C76: 0 | D76: 0 | E76: 0 | F76: 0 | G76: 0 | H76: 0 | I76: 0 | J76: 0 | K76: 0 | L76: 0 | M76: 0 | N76: 0 | P76: -13845180.44 | Q76: -13571139.59 | R76: -13422276.64 | S76: -13336237.36 | T76: -12957586.55 | U76: -12881455.56 | V76: -13288357.34 | W76: -13653634.22 | X76: -13909572.63 | Y76: -13784895.66 | Z76: -6769866.5 | AA76: 0 | AC76: 0 | AD76: 0 | AE76: 0 | AF76: 0 | AG76: 0 | AH76: 0 | AI76: 0 | AJ76: 0 | AK76: 0 | AL76: -19920117.5 | AM76: -40622414.24 | AN76: -41833686.54
A77: DRAB0905 | B77: Actual additions (recognised in RAB) | C77: 0 | D77: 0 | E77: 0 | F77: 0 | G77: 0 | H77: 0 | I77: 0 | J77: 0 | K77: 0 | L77: 0 | M77: 0 | N77: 0 | P77: 0 | Q77: 0 | R77: 0 | S77: 0 | T77: 0 | U77: 0 | V77: 0 | W77: 0 | X77: 0 | Y77: 0 | Z77: 0 | AA77: 0 | AC77: 0 | AD77: 0 | AE77: 0 | AF77: 0 | AG77: 0 | AH77: 0 | AI77: 0 | AJ77: 0 | AK77: 0 | AL77: 6004104 | AM77: 13508934.51 | AN77: 13959732.08
A78: DRAB0906 | B78: Disposals | C78: 0 | D78: 0 | E78: 0 | F78: 0 | G78: 0 | H78: 0 | I78: 0 | J78: 0 | K78: 0 | L78: 0 | M78: 0 | N78: 0 | P78: 0 | Q78: 0 | R78: 0 | S78: 0 | T78: 0 | U78: 0 | V78: 0 | W78: 0 | X78: 972453.8048 | Y78: 1944907.61 | Z78: 0 | AA78: 0 | AC78: 0 | AD78: 0 | AE78: 0 | AF78: 0 | AG78: 0 | AH78: 0 | AI78: 0 | AJ78: 0 | AK78: 0 | AL78: 0 | AM78: 0 | AN78: 0
A79: DRAB0907 | B79: Closing value | C79: =SUM(C74:C78) -> 0 | D79: 0 | E79: 0 | F79: 0 | G79: 0 | H79: 0 | I79: 0 | J79: =SUM(J74:J78) -> 0 | K79: 0 | L79: 0 | M79: 0 | N79: =SUM(N74:N78) -> 0 | P79: =SUM(P74:P78) -> 118509847.6 | Q79: 108422445.4 | R79: 98622414.45 | S79: 88441924.88 | T79: 77096358.89 | U79: 66326822.56 | V79: 54648842.1 | W79: 41930294.89 | X79: 29697026.36 | Y79: 18240933.29 | Z79: 11571361.29 | AA79: 11571361.29 | AC79: =SUM(AC74:AC78) -> 0 | AD79: 0 | AE79: 0 | AF79: 0 | AG79: 0 | AH79: 0 | AI79: 0 | AJ79: 0 | AK79: 0 | AL79: -11393787.5 | AM79: -34385342 | AN79: -57924067.29
B80: For “other” asset items with long lives
A81: DRAB1001 | B81: Opening value | C81: 72566979.47 | D81: =C86 -> 88268050.39 | E81: =D86 -> 98727428.9 | F81: 109183569.3 | G81: 119292234.1 | H81: 130513619.3 | I81: 135602288.9 | J81: 133082223.1 | K81: 138980749.7 | L81: 149074210.2 | M81: 159476081 | N81: 189951711.3 | P81: 96843749.75 | Q81: =P86 -> 111237761.4 | R81: =Q86 -> 120158647.9 | S81: 129046695.1 | T81: 137616691.1 | U81: 147522508.1 | V81: 151767237.3 | W81: 148273044.6 | X81: 153022574.2 | Y81: 162125911.5 | Z81: 171423311.2 | AA81: 201202967 | AC81: 12897187.3 | AD81: =AC86 -> 12867384.67 | AE81: =AD86 -> 12836353.46 | AF81: 13134291.29 | AG81: 13828306.56 | AH81: 14587263.08 | AI81: 15479463.57 | AJ81: 17147050.19 | AK81: 19690191.93 | AL81: 21312234.14 | AM81: 22518959.35 | AN81: 23979408.52
A82: DRAB1002 | B82: Inflation addition | C82: 2575681.453 | D82: 2507960.348 | E82: 3462776.543 | F82: 3314127.187 | G82: 2771771.347 | H82: 4858248.205 | I82: 4383527.78 | J82: 3245804.687 | K82: 3577300.301 | L82: 3185412.779 | M82: 2344635.705 | N82: 3529016.917 | P82: 3418000.143 | Q82: 3180759.59 | R82: 4181959.216 | S82: 3946370.349 | T82: 3139904.232 | U82: 5401816.793 | V82: 4840738.688 | W82: 3567490.91 | X82: 3892744.798 | Y82: 3434951.797 | Z82: 2439740.205 | AA82: 3529016.917 | AC82: 0 | AD82: 0 | AE82: 0 | AF82: 0 | AG82: 0 | AH82: 0 | AI82: 0 | AJ82: 0 | AK82: 0 | AL82: 0 | AM82: 0 | AN82: 0
A83: DRAB1003 | B83: Straight line depreciation | C83: -6834384.184 | D83: -7566922.434 | E83: -8509022.102 | F83: -9604479.441 | G83: -13021865.69 | H83: -16858305.82 | I83: -18463760.41 | J83: -19790037.29 | K83: -21714474.4 | L83: -23884953.7 | M83: -25977817.63 | N83: -28396434.03 | P83: -8983762.129 | Q83: -9778213.721 | R83: -10796297.94 | S83: -11775391.39 | T83: -14705566.74 | U83: -18245814.83 | V83: -19895098.32 | W83: -21260720.51 | X83: -23212725.69 | Y83: -25431647.32 | Z83: -26768896.63 | AA83: -28396434.03 | AC83: -633802.637 | AD83: -662031.2084 | AE83: -699246.8584 | AF83: -755163.743 | AG83: -824480.6852 | AH83: -901676.4368 | AI83: -1003738.191 | AJ83: -1088622.522 | AK83: -1163597.037 | AL83: -1263278.537 | AM83: -1370218.051 | AN83: -1497458.402
A84: DRAB1005 | B84: Actual additions (recognised in RAB) | C84: 19959773.65 | D84: 15518340.59 | E84: 15502385.99 | F84: 18455704.74 | G84: 24908133.33 | H84: 19398920.55 | I84: 13214009.38 | J84: 23903426.91 | K84: 34311187.13 | L84: 37312757.35 | M84: 56295748.19 | N84: 71899922.04 | P84: 19959773.65 | Q84: 15518340.59 | R84: 15502385.99 | S84: 18455704.74 | T84: 24908133.33 | U84: 19398920.55 | V84: 13214009.38 | W84: 23903426.91 | X84: 34311187.13 | Y84: 37312757.35 | Z84: 56295748.19 | AA84: 71899922.04 | AC84: 604000 | AD84: 631000 | AE84: 997184.6867 | AF84: 1449179.017 | AG84: 1583437.205 | AH84: 1793876.925 | AI84: 2671324.81 | AJ84: 3631764.26 | AK84: 2785639.248 | AL84: 2470003.748 | AM84: 2830667.22 | AN84: 3286552.845
A85: DRAB1006 | B85: Disposals | C85: 0 | D85: 0 | E85: 0 | F85: -2056687.7 | G85: -3436653.83 | H85: -2310193.3 | I85: -1653842.52 | J85: -1460667.705 | K85: -6080552.541 | L85: -6211345.686 | M85: -2186935.891 | N85: -1319090.391 | P85: 0 | Q85: 0 | R85: 0 | S85: -2056687.7 | T85: -3436653.83 | U85: -2310193.3 | V85: -1653842.52 | W85: -1460667.705 | X85: -5887868.963 | Y85: -6018662.108 | Z85: -2186935.891 | AA85: -1319090.391 | AC85: 0 | AD85: 0 | AE85: 0 | AF85: 0 | AG85: 0 | AH85: 0 | AI85: 0 | AJ85: 0 | AK85: 0 | AL85: 0 | AM85: 0 | AN85: 0
A86: DRAB1007 | B86: Closing value | C86: =SUM(C81:C85) -> 88268050.39 | D86: 98727428.9 | E86: 109183569.3 | F86: 119292234.1 | G86: 130513619.3 | H86: 135602288.9 | I86: 133082223.1 | J86: =SUM(J81:J85) -> 138980749.7 | K86: 149074210.2 | L86: 159476081 | M86: 189951711.3 | N86: =SUM(N81:N85) -> 235665125.9 | P86: =SUM(P81:P85) -> 111237761.4 | Q86: 120158647.9 | R86: 129046695.1 | S86: 137616691.1 | T86: 147522508.1 | U86: 151767237.3 | V86: 148273044.6 | W86: 153022574.2 | X86: 162125911.5 | Y86: 171423311.2 | Z86: 201202967 | AA86: 246916381.6 | AC86: =SUM(AC81:AC85) -> 12867384.67 | AD86: 12836353.46 | AE86: 13134291.29 | AF86: 13828306.56 | AG86: 14587263.08 | AH86: 15479463.57 | AI86: 17147050.19 | AJ86: 19690191.93 | AK86: 21312234.14 | AL86: 22518959.35 | AM86: 23979408.52 | AN86: 25768502.96
B87: For “other” asset items with short lives
A88: DRAB1101 | B88: Opening value | C88: 85071451.54 | D88: =C93 -> 82384728.18 | E88: =D93 -> 78500589.03 | F88: 71249933.52 | G88: 63645672.8 | H88: 63425663.51 | I88: 67315089.1 | J88: 65535759.35 | K88: 63693558.22 | L88: 76494472.84 | M88: 95892719.63 | N88: 99835014.42 | P88: 85071451.54 | Q88: =P93 -> 82384728.18 | R88: =Q93 -> 78500589.03 | S88: 71249933.52 | T88: 63645672.8 | U88: 63425663.51 | V88: 67315089.1 | W88: 65535759.35 | X88: 63693558.22 | Y88: 76494472.84 | Z88: 95892719.63 | AA88: 99835014.42 | AC88: 0 | AD88: =AC93 -> 0 | AE88: =AD93 -> 0 | AF88: 0 | AG88: 0 | AH88: 0 | AI88: 0 | AJ88: 0 | AK88: 0 | AL88: 0 | AM88: 0 | AN88: 0
A89: DRAB1102 | B89: Inflation addition | C89: 2951396.84 | D89: 2392267.107 | E89: 2629550.832 | F89: 2291178.029 | G89: 1332033.727 | H89: 2181418.835 | I89: 2004800.815 | J89: 1473537.999 | K89: 1526044.707 | L89: 1484466.319 | M89: 1234789.381 | N89: 1506678.604 | P89: 2951396.84 | Q89: 2392267.107 | R89: 2629550.832 | S89: 2291178.029 | T89: 1332033.727 | U89: 2181418.835 | V89: 2004800.815 | W89: 1473537.999 | X89: 1526044.707 | Y89: 1484466.319 | Z89: 1234789.381 | AA89: 1506678.604 | AC89: 0 | AD89: 0 | AE89: 0 | AF89: 0 | AG89: 0 | AH89: 0 | AI89: 0 | AJ89: 0 | AK89: 0 | AL89: 0 | AM89: 0 | AN89: 0
A90: DRAB1103 | B90: Straight line depreciation | C90: -11155628.77 | D90: -11906099.46 | E90: -13560959.39 | F90: -15589172.77 | G90: -14561065.54 | H90: -14425590.41 | I90: -17659315.89 | J90: -20509713.93 | K90: -23815437.66 | L90: -25614232.67 | M90: -26217668.45 | N90: -28971297.53 | P90: -11155628.77 | Q90: -11906099.46 | R90: -13560959.39 | S90: -15589172.77 | T90: -14561065.54 | U90: -14425590.41 | V90: -17659315.89 | W90: -20509713.93 | X90: -23815437.66 | Y90: -25614232.67 | Z90: -26217668.45 | AA90: -28971297.53 | AC90: 0 | AD90: 0 | AE90: 0 | AF90: 0 | AG90: 0 | AH90: 0 | AI90: 0 | AJ90: 0 | AK90: 0 | AL90: 0 | AM90: 0 | AN90: 0
A91: DRAB1105 | B91: Actual additions (recognised in RAB) | C91: 5517508.567 | D91: 5629693.203 | E91: 3680753.047 | F91: 5693734.023 | G91: 13009022.52 | H91: 16133597.17 | I91: 13875185.33 | J91: 17193974.79 | K91: 33645140.05 | L91: 40637678.07 | M91: 28925173.85 | N91: 22736854.83 | P91: 5517508.567 | Q91: 5629693.203 | R91: 3680753.047 | S91: 5693734.023 | T91: 13009022.52 | U91: 16133597.17 | V91: 13875185.33 | W91: 17193974.79 | X91: 33645140.05 | Y91: 40637678.07 | Z91: 28925173.85 | AA91: 22736854.83 | AC91: 0 | AD91: 0 | AE91: 0 | AF91: 0 | AG91: 0 | AH91: 0 | AI91: 0 | AJ91: 0 | AK91: 0 | AL91: 0 | AM91: 0 | AN91: 0
A92: DRAB1106 | B92: Disposals | C92: 0 | D92: 0 | E92: 0 | F92: 0 | G92: 0 | H92: 0 | I92: 0 | J92: 0 | K92: 1445167.532 | L92: 2890335.064 | M92: 0 | N92: 0 | P92: 0 | Q92: 0 | R92: 0 | S92: 0 | T92: 0 | U92: 0 | V92: 0 | W92: 0 | X92: 1445167.532 | Y92: 2890335.064 | Z92: 0 | AA92: 0 | AC92: 0 | AD92: 0 | AE92: 0 | AF92: 0 | AG92: 0 | AH92: 0 | AI92: 0 | AJ92: 0 | AK92: 0 | AL92: 0 | AM92: 0 | AN92: 0
A93: DRAB1107 | B93: Closing value | C93: =SUM(C88:C92) -> 82384728.18 | D93: 78500589.03 | E93: 71249933.52 | F93: 63645672.8 | G93: 63425663.51 | H93: 67315089.1 | I93: 65535759.35 | J93: =SUM(J88:J92) -> 63693558.22 | K93: 76494472.84 | L93: 95892719.63 | M93: 99835014.42 | N93: =SUM(N88:N92) -> 95107250.32 | P93: =SUM(P88:P92) -> 82384728.18 | Q93: 78500589.03 | R93: 71249933.52 | S93: 63645672.8 | T93: 63425663.51 | U93: 67315089.1 | V93: 65535759.35 | W93: 63693558.22 | X93: 76494472.84 | Y93: 95892719.63 | Z93: 99835014.42 | AA93: 95107250.32 | AC93: =SUM(AC88:AC92) -> 0 | AD93: 0 | AE93: 0 | AF93: 0 | AG93: 0 | AH93: 0 | AI93: 0 | AJ93: 0 | AK93: 0 | AL93: 0 | AM93: 0 | AN93: 0
B98: 3.3.3 - TOTAL DISAGGREGATED RAB ASSET VALUES
C99: Network services | P99: Standard control services | AC99: Alternative control services
C100: $0's, Nominal | P100: $0's, Nominal | AC100: $0's, Nominal
C101: =dms_y1 -> 2006-07 | D101: =dms_y2 -> 2007-08 | E101: =dms_y3 -> 2008-09 | F101: =dms_y4 -> 2009-10 | G101: =dms_y5 -> 2010-11 | H101: =dms_y6 -> 2011-12 | I101: =dms_y7 -> 2012-13 | J101: =dms_y8 -> 2013-14 | K101: =dms_y9 -> 2014-15 | L101: =dms_y10 -> 2015-16 | M101: =dms_y11 -> 2016-17 | N101: =dms_y12 -> 2017-18 | P101: =dms_y1 -> 2006-07 | Q101: =dms_y2 -> 2007-08 | R101: =dms_y3 -> 2008-09 | S101: =dms_y4 -> 2009-10 | T101: =dms_y5 -> 2010-11 | U101: =dms_y6 -> 2011-12 | V101: =dms_y7 -> 2012-13 | W101: =dms_y8 -> 2013-14 | X101: =dms_y9 -> 2014-15 | Y101: =dms_y10 -> 2015-16 | Z101: =dms_y11 -> 2016-17 | AA101: =dms_y12 -> 2017-18 | AC101: =dms_y1 -> 2006-07 | AD101: =dms_y2 -> 2007-08 | AE101: =dms_y3 -> 2008-09 | AF101: =dms_y4 -> 2009-10 | AG101: =dms_y5 -> 2010-11 | AH101: =dms_y6 -> 2011-12 | AI101: =dms_y7 -> 2012-13 | AJ101: =dms_y8 -> 2013-14 | AK101: =dms_y9 -> 2014-15 | AL101: =dms_y10 -> 2015-16 | AM101: =dms_y11 -> 2016-17 | AN101: =dms_y12 -> 2017-18
A102: DRAB1201 | B102: Overhead network assets less than 33kV (wires and poles) | C102: 583776206.6 | D102: 628021654.7 | E102: 674869931.3 | F102: 725289648.4 | G102: 780852467.1 | H102: 852409805.8 | I102: 941097413.3 | J102: 1035344768 | K102: 1119868903 | L102: 1190606787 | M102: 1275757440 | N102: 1336398701 | P102: 709740064.2 | Q102: 763532539.6 | R102: 820489466.8 | S102: 881788459.1 | T102: 949340301.9 | U102: 1036337870 | V102: 1144161977 | W102: 1259938937 | X102: 1363976874 | Y102: 1451579956 | Z102: 1526968165 | AA102: 1600971376 | AC102: 0 | AD102: 0 | AE102: 0 | AF102: 0 | AG102: 0 | AH102: 0 | AI102: 0 | AJ102: 0 | AK102: 0 | AL102: 0 | AM102: 0 | AN102: 0
A103: DRAB1202 | B103: Underground network assets less than 33kV (cables) | C103: 297318897.4 | D103: 319853231.1 | E103: 343713192.9 | F103: 369392099.4 | G103: 397690402.5 | H103: 434134760.5 | I103: 479303613.4 | J103: 527304061.9 | K103: 570352446.4 | L103: 606379591.6 | M103: 649747063.3 | N103: 680631693.9 | P103: 361472651.6 | Q103: 388869313.7 | R103: 417877640.2 | S103: 449097392.9 | T103: 483501740.3 | U103: 527809851.3 | V103: 582724978.5 | W103: 641690516.4 | X103: 694677336.3 | Y103: 739293937 | Z103: 777689367.7 | AA103: 815379316.5 | AC103: 0 | AD103: 0 | AE103: 0 | AF103: 0 | AG103: 0 | AH103: 0 | AI103: 0 | AJ103: 0 | AK103: 0 | AL103: 0 | AM103: 0 | AN103: 0
A104: DRAB1203 | B104: Distribution substations including transformers | C104: 143458681.7 | D104: 154331673.1 | E104: 165844290.3 | F104: 178234562.5 | G104: 191888714 | H104: 209473400.3 | I104: 231267723.4 | J104: 254428313.3 | K104: 275199493.8 | L104: 292582577.3 | M104: 313507719.9 | N104: 328410088.9 | P104: 174413367.3 | Q104: 187632470 | R104: 201629213.2 | S104: 216692986.9 | T104: 233293352.2 | U104: 254672360.6 | V104: 281169336.8 | W104: 309620667.7 | X104: 335187220.6 | Y104: 356715183.8 | Z104: 375241277.9 | AA104: 393426865.4 | AC104: 0 | AD104: 0 | AE104: 0 | AF104: 0 | AG104: 0 | AH104: 0 | AI104: 0 | AJ104: 0 | AK104: 0 | AL104: 0 | AM104: 0 | AN104: 0
A105: DRAB1204 | B105: Overhead network assets 33kV and above (wires and towers / poles etc) | C105: 99787619.73 | D105: 107350702.8 | E105: 115358699.7 | F105: 123977179.6 | G105: 133474794.2 | H105: 145706427.6 | I105: 160866218.5 | J105: 176976363.3 | K105: 191424472.3 | L105: 203515785.8 | M105: 218070988.4 | N105: 228436931.7 | P105: 121319215.9 | Q105: 130514217.4 | R105: 140250133.5 | S105: 150728259.3 | T105: 162275214.3 | U105: 177146118.8 | V105: 195577001.9 | W105: 215367303.6 | X105: 233150998.7 | Y105: 248125259.2 | Z105: 261011721.1 | AA105: 273661586.5 | AC105: 0 | AD105: 0 | AE105: 0 | AF105: 0 | AG105: 0 | AH105: 0 | AI105: 0 | AJ105: 0 | AK105: 0 | AL105: 0 | AM105: 0 | AN105: 0
A106: DRAB1205 | B106: Underground network assets 33kV and above(cables, ducts etc) | C106: 2684704.836 | D106: 2888183.441 | E106: 3103632.09 | F106: 3335505.292 | G106: 3591030.897 | H106: 3920113.054 | I106: 4327974.912 | J106: 4761405.27 | K106: 5150119.903 | L106: 5475304.934 | M106: 5866900.834 | N106: 6145910.051 | P106: 3263994.937 | Q106: 3511378.981 | R106: 3773315.895 | S106: 4055221.356 | T106: 4365882.8 | U106: 4765972.404 | V106: 5261840.338 | W106: 5794282.326 | X106: 6272738.196 | Y106: 6675804.691 | Z106: 7022504.479 | AA106: 7362642.647 | AC106: 0 | AD106: 0 | AE106: 0 | AF106: 0 | AG106: 0 | AH106: 0 | AI106: 0 | AJ106: 0 | AK106: 0 | AL106: 0 | AM106: 0 | AN106: 0
A107: DRAB1206 | B107: Zone substations and transformers | C107: 75994544.47 | D107: 81754307.6 | E107: 87852900.53 | F107: 94416414.74 | G107: 101649445.2 | H107: 110964602.8 | I107: 122509736.5 | J107: 134778624.3 | K107: 145781767.4 | L107: 154990022.4 | M107: 166074724 | N107: 173969081.6 | P107: 92392208.29 | Q107: 99394779.85 | R107: 106809291.9 | S107: 114789043.3 | T107: 123582775.4 | U107: 134907903.8 | V107: 148944179.7 | W107: 164015738.4 | X107: 177559140 | Y107: 188963274.1 | Z107: 198777124.8 | AA107: 208410498.8 | AC107: 0 | AD107: 0 | AE107: 0 | AF107: 0 | AG107: 0 | AH107: 0 | AI107: 0 | AJ107: 0 | AK107: 0 | AL107: 0 | AM107: 0 | AN107: 0
A108: DRAB1207 | B108: Easements | C108: 0 | D108: 0 | E108: 0 | F108: 0 | G108: 0 | H108: 0 | I108: 0 | J108: 0 | K108: 0 | N108: 0 | P108: 0 | Q108: 0 | R108: 0 | S108: 0 | T108: 0 | U108: 0 | V108: 0 | W108: 0 | X108: 0 | AA108: 0 | AC108: 0 | AD108: 0 | AE108: 0 | AF108: 0 | AG108: 0 | AH108: 0 | AI108: 0 | AJ108: 0 | AK108: 0 | AL108: 0 | AM108: 0 | AN108: 0
A109: DRAB1208 | B109: Meters | C109: 0 | D109: 0 | E109: 0 | F109: 0 | G109: 0 | H109: 0 | I109: 0 | J109: 0 | K109: 0 | N109: 2.911245105e-09 | P109: 123216372.9 | Q109: 113466146.5 | R109: 103522429.9 | S109: 88775997.97 | T109: 73256798.5 | U109: 62199247.33 | V109: 50975488.94 | W109: 38777207.26 | X109: 25618824.82 | Y109: 12744866.92 | Z109: 3335000 | AA109: 3.552713679e-09 | AC109: 0 | AD109: 0 | AE109: 0 | AF109: 0 | AG109: 0 | AH109: 0 | AI109: 0 | AJ109: 0 | AK109: 0 | AL109: 162031000 | AM109: 312566359.8 | AN109: 286030857.4
A110: DRAB1209 | B110: “Other” assets with long lives | C110: 80417514.93 | D110: 93497739.64 | E110: 103955499.1 | F110: 125646633.9 | G110: 147720391 | H110: 155875418.4 | I110: 157159720.3 | J110: 158860772.2 | K110: 164969108.9 | L110: 172823180.4 | M110: 204489779.9 | N110: 254474352 | P110: 104040755.6 | Q110: 115698204.6 | R110: 124602671.5 | S110: 144879074 | T110: 165664361.3 | U110: 172739634.4 | V110: 173114902.6 | W110: 173754389.1 | X110: 178616580.6 | Y110: 185287594.6 | Z110: 210466279.9 | AA110: 254474352 | AC110: 12882285.99 | AD110: 12851869.06 | AE110: 12985322.37 | AF110: 13481298.92 | AG110: 14207784.82 | AH110: 15033363.33 | AI110: 16313256.88 | AJ110: 18408603.59 | AK110: 20531219.84 | AL110: 21995641.34 | AM110: 23329228.42 | AN110: 24954004.06
A111: DRAB1210 | B111: “Other” assets with short lives | C111: 83728089.86 | D111: 80442658.61 | E111: 74875261.28 | F111: 70100660.66 | G111: 68841383.16 | H111: 70676091.31 | I111: 71731139.23 | J111: 69907535.17 | K111: 74717768.95 | L111: 89590470.96 | M111: 100690041.9 | N111: 100020602.2 | P111: 83728089.86 | Q111: 80442658.61 | R111: 74875261.28 | S111: 70100660.66 | T111: 68841383.16 | U111: 70676091.31 | V111: 71731139.23 | W111: 69907535.17 | X111: 74717768.95 | Y111: 89590470.96 | Z111: 100690041.9 | AA111: 100020602.2 | AC111: 0 | AD111: 0 | AE111: 0 | AF111: 0 | AG111: 0 | AH111: 0 | AI111: 0 | AJ111: 0 | AK111: 0 | AL111: 0 | AM111: 0 | AN111: 0
A112: DRAB13 | B112: Value of Capital Contributions or Contributed Assets (included in the above) | C112: 0 | D112: 0 | E112: 0 | F112: 0 | G112: 0 | H112: 0 | I112: 0 | J112: 0 | K112: 0 | L112: 0 | M112: 0 | N112: 0 | P112: 0 | Q112: 0 | R112: 0 | S112: 0 | T112: 0 | U112: 0 | V112: 0 | W112: 0 | X112: 0 | Y112: 0 | Z112: 0 | AA112: 0 | AC112: 0 | AD112: 0 | AE112: 0 | AF112: 0 | AG112: 0 | AH112: 0 | AI112: 0 | AJ112: 0 | AK112: 0 | AL112: 0 | AM112: 0 | AN112: 0
B115: 3.3.4 - ASSET LIVES
C116: Network services | P116: Standard control services | AC116: Alternative control services
C117: Service Life (Years) | P117: Service Life (Years) | AC117: Service Life (Years)
C118: =dms_y1 -> 2006-07 | D118: =dms_y2 -> 2007-08 | E118: =dms_y3 -> 2008-09 | F118: =dms_y4 -> 2009-10 | G118: =dms_y5 -> 2010-11 | H118: =dms_y6 -> 2011-12 | I118: =dms_y7 -> 2012-13 | J118: =dms_y8 -> 2013-14 | K118: =dms_y9 -> 2014-15 | L118: =dms_y10 -> 2015-16 | M118: =dms_y11 -> 2016-17 | N118: =dms_y12 -> 2017-18 | P118: =dms_y1 -> 2006-07 | Q118: =dms_y2 -> 2007-08 | R118: =dms_y3 -> 2008-09 | S118: =dms_y4 -> 2009-10 | T118: =dms_y5 -> 2010-11 | U118: =dms_y6 -> 2011-12 | V118: =dms_y7 -> 2012-13 | W118: =dms_y8 -> 2013-14 | X118: =dms_y9 -> 2014-15 | Y118: =dms_y10 -> 2015-16 | Z118: =dms_y11 -> 2016-17 | AA118: =dms_y12 -> 2017-18 | AC118: =dms_y1 -> 2006-07 | AD118: =dms_y2 -> 2007-08 | AE118: =dms_y3 -> 2008-09 | AF118: =dms_y4 -> 2009-10 | AG118: =dms_y5 -> 2010-11 | AH118: =dms_y6 -> 2011-12 | AI118: =dms_y7 -> 2012-13 | AJ118: =dms_y8 -> 2013-14 | AK118: =dms_y9 -> 2014-15 | AL118: =dms_y10 -> 2015-16 | AM118: =dms_y11 -> 2016-17 | AN118: =dms_y12 -> 2017-18
B119: ESTIMATED SERVICE LIFE OF NEW ASSETS
A120: DRAB1401 | B120: Overhead network assets less than 33kV (wires and poles) | C120: 50.9 | D120: 50.9 | E120: 50.9 | F120: 50.9 | G120: 50.9 | H120: 50.9 | I120: 50.9 | J120: 50.9 | K120: 50.9 | L120: 50.95 | M120: 51 | N120: 50.95 | P120: 50.9 | Q120: 50.9 | R120: 50.9 | S120: 50.9 | T120: 50.9 | U120: 50.9 | V120: 50.9 | W120: 50.9 | X120: 50.9 | Y120: 50.95 | Z120: 51 | AA120: 50.95 | AC120: 0 | AD120: 0 | AE120: 0 | AF120: 0 | AG120: 0 | AH120: 0 | AI120: 0 | AJ120: 0 | AK120: 0 | AL120: 0 | AM120: 0 | AN120: 0
A121: DRAB1402 | B121: Underground network assets less than 33kV (cables) | C121: 50.9 | D121: 50.9 | E121: 50.9 | F121: 50.9 | G121: 50.9 | H121: 50.9 | I121: 50.9 | J121: 50.9 | K121: 50.9 | L121: 50.95 | M121: 51 | N121: 50.95 | P121: 50.9 | Q121: 50.9 | R121: 50.9 | S121: 50.9 | T121: 50.9 | U121: 50.9 | V121: 50.9 | W121: 50.9 | X121: 50.9 | Y121: 50.95 | Z121: 51 | AA121: 50.95 | AC121: 0 | AD121: 0 | AE121: 0 | AF121: 0 | AG121: 0 | AH121: 0 | AI121: 0 | AJ121: 0 | AK121: 0 | AL121: 0 | AM121: 0 | AN121: 0
A122: DRAB1403 | B122: Distribution substations including transformers | C122: 50.9 | D122: 50.9 | E122: 50.9 | F122: 50.9 | G122: 50.9 | H122: 50.9 | I122: 50.9 | J122: 50.9 | K122: 50.9 | L122: 50.95 | M122: 51 | N122: 50.95 | P122: 50.9 | Q122: 50.9 | R122: 50.9 | S122: 50.9 | T122: 50.9 | U122: 50.9 | V122: 50.9 | W122: 50.9 | X122: 50.9 | Y122: 50.95 | Z122: 51 | AA122: 50.95 | AC122: 0 | AD122: 0 | AE122: 0 | AF122: 0 | AG122: 0 | AH122: 0 | AI122: 0 | AJ122: 0 | AK122: 0 | AL122: 0 | AM122: 0 | AN122: 0
A123: DRAB1404 | B123: Overhead network assets 33kV and above (wires and towers / poles etc) | C123: 50.9 | D123: 50.9 | E123: 50.9 | F123: 50.9 | G123: 50.9 | H123: 50.9 | I123: 50.9 | J123: 50.9 | K123: 50.9 | L123: 50.95 | M123: 51 | N123: 50.95 | P123: 50.9 | Q123: 50.9 | R123: 50.9 | S123: 50.9 | T123: 50.9 | U123: 50.9 | V123: 50.9 | W123: 50.9 | X123: 50.9 | Y123: 50.95 | Z123: 51 | AA123: 50.95 | AC123: 0 | AD123: 0 | AE123: 0 | AF123: 0 | AG123: 0 | AH123: 0 | AI123: 0 | AJ123: 0 | AK123: 0 | AL123: 0 | AM123: 0 | AN123: 0
A124: DRAB1405 | B124: Underground network assets 33kV and above(cables, ducts etc) | C124: 50.9 | D124: 50.9 | E124: 50.9 | F124: 50.9 | G124: 50.9 | H124: 50.9 | I124: 50.9 | J124: 50.9 | K124: 50.9 | L124: 50.95 | M124: 51 | N124: 50.95 | P124: 50.9 | Q124: 50.9 | R124: 50.9 | S124: 50.9 | T124: 50.9 | U124: 50.9 | V124: 50.9 | W124: 50.9 | X124: 50.9 | Y124: 50.95 | Z124: 51 | AA124: 50.95 | AC124: 0 | AD124: 0 | AE124: 0 | AF124: 0 | AG124: 0 | AH124: 0 | AI124: 0 | AJ124: 0 | AK124: 0 | AL124: 0 | AM124: 0 | AN124: 0
A125: DRAB1406 | B125: Zone substations and transformers | C125: 50.9 | D125: 50.9 | E125: 50.9 | F125: 50.9 | G125: 50.9 | H125: 50.9 | I125: 50.9 | J125: 50.9 | K125: 50.9 | L125: 50.95 | M125: 51 | N125: 50.95 | P125: 50.9 | Q125: 50.9 | R125: 50.9 | S125: 50.9 | T125: 50.9 | U125: 50.9 | V125: 50.9 | W125: 50.9 | X125: 50.9 | Y125: 50.95 | Z125: 51 | AA125: 50.95 | AC125: 0 | AD125: 0 | AE125: 0 | AF125: 0 | AG125: 0 | AH125: 0 | AI125: 0 | AJ125: 0 | AK125: 0 | AL125: 0 | AM125: 0 | AN125: 0
A126: DRAB1407 | B126: Meters | C126: 0 | D126: 0 | E126: 0 | F126: 0 | G126: 0 | H126: 0 | I126: 0 | J126: 0 | K126: 0 | L126: 0 | M126: 0 | N126: 0 | P126: 0 | Q126: 0 | R126: 0 | S126: 0 | T126: 0 | U126: 0 | V126: 0 | W126: 0 | X126: 0 | Y126: 0 | Z126: 0 | AA126: 0 | AC126: 0 | AD126: 0 | AE126: 0 | AF126: 0 | AG126: 0 | AH126: 0 | AI126: 0 | AJ126: 0 | AK126: 0 | AL126: 7 | AM126: 14 | AN126: 14.5
A127: DRAB1408 | B127: “Other” assets with long lives | C127: 14.6 | D127: 14.6 | E127: 14.6 | F127: 14.6 | G127: 14.75 | H127: 14.9 | I127: 14.9 | J127: 14.9 | K127: 14.9 | L127: 14.95 | M127: 15 | N127: 14.9 | P127: 14.6 | Q127: 14.6 | R127: 14.6 | S127: 14.6 | T127: 14.75 | U127: 14.9 | V127: 14.9 | W127: 14.9 | X127: 14.9 | Y127: 14.95 | Z127: 15 | AA127: 14.9 | AC127: 23 | AD127: 23 | AE127: 23 | AF127: 23 | AG127: 23 | AH127: 23 | AI127: 23 | AJ127: 23 | AK127: 26.95 | AL127: 28.45 | AM127: 27.5 | AN127: 27.5
A128: DRAB1409 | B128: “Other” assets with short lives | C128: 6 | D128: 6 | E128: 6 | F128: 6 | G128: 6 | H128: 6 | I128: 6 | J128: 6 | K128: 6 | L128: 6 | M128: 6 | N128: 6 | P128: 6 | Q128: 6 | R128: 6 | S128: 6 | T128: 6 | U128: 6 | V128: 6 | W128: 6 | X128: 6 | Y128: 6 | Z128: 6 | AA128: 6 | AC128: 0 | AD128: 0 | AE128: 0 | AF128: 0 | AG128: 0 | AH128: 0 | AI128: 0 | AJ128: 0 | AK128: 0 | AL128: 0 | AM128: 0 | AN128: 0
B130: ESTIMATED RESIDUAL SERVICE LIFE
A131: DRAB1501 | B131: Overhead network assets less than 33kV (wires and poles) | C131: 19.72927069 | D131: 21.05136036 | E131: 22.37351489 | F131: 23.69710151 | G131: 25.02261963 | H131: 26.03253834 | I131: 26.65222625 | J131: 26.92663569 | K131: 26.88592592 | L131: 26.92189801 | M131: 26.5 | N131: 25.5 | P131: 19.72927069 | Q131: 21.05136036 | R131: 22.37351489 | S131: 23.69710151 | T131: 25.02261963 | U131: 26.03253834 | V131: 26.65222625 | W131: 26.92663569 | X131: 26.88592592 | Y131: 26.92189801 | Z131: 26.5 | AA131: 25.5 | AC131: 0 | AD131: 0 | AE131: 0 | AF131: 0 | AG131: 0 | AH131: 0 | AI131: 0 | AJ131: 0 | AK131: 0 | AL131: 0 | AM131: 0 | AN131: 0
A132: DRAB1502 | B132: Underground network assets less than 33kV (cables) | C132: 19.72927069 | D132: 21.05136036 | E132: 22.37351489 | F132: 23.69710151 | G132: 25.02261963 | H132: 26.03253834 | I132: 26.65222625 | J132: 26.92663569 | K132: 26.88592592 | L132: 26.92189801 | M132: 26.5 | N132: 25.5 | P132: 19.72927069 | Q132: 21.05136036 | R132: 22.37351489 | S132: 23.69710151 | T132: 25.02261963 | U132: 26.03253834 | V132: 26.65222625 | W132: 26.92663569 | X132: 26.88592592 | Y132: 26.92189801 | Z132: 26.5 | AA132: 25.5 | AC132: 0 | AD132: 0 | AE132: 0 | AF132: 0 | AG132: 0 | AH132: 0 | AI132: 0 | AJ132: 0 | AK132: 0 | AL132: 0 | AM132: 0 | AN132: 0
A133: DRAB1503 | B133: Distribution substations including transformers | C133: 19.72927069 | D133: 21.05136036 | E133: 22.37351489 | F133: 23.69710151 | G133: 25.02261963 | H133: 26.03253834 | I133: 26.65222625 | J133: 26.92663569 | K133: 26.88592592 | L133: 26.92189801 | M133: 26.5 | N133: 25.5 | P133: 19.72927069 | Q133: 21.05136036 | R133: 22.37351489 | S133: 23.69710151 | T133: 25.02261963 | U133: 26.03253834 | V133: 26.65222625 | W133: 26.92663569 | X133: 26.88592592 | Y133: 26.92189801 | Z133: 26.5 | AA133: 25.5 | AC133: 0 | AD133: 0 | AE133: 0 | AF133: 0 | AG133: 0 | AH133: 0 | AI133: 0 | AJ133: 0 | AK133: 0 | AL133: 0 | AM133: 0 | AN133: 0
A134: DRAB1504 | B134: Overhead network assets 33kV and above (wires and towers / poles etc) | C134: 19.72927069 | D134: 21.05136036 | E134: 22.37351489 | F134: 23.69710151 | G134: 25.02261963 | H134: 26.03253834 | I134: 26.65222625 | J134: 26.92663569 | K134: 26.88592592 | L134: 26.92189801 | M134: 26.5 | N134: 25.5 | P134: 19.72927069 | Q134: 21.05136036 | R134: 22.37351489 | S134: 23.69710151 | T134: 25.02261963 | U134: 26.03253834 | V134: 26.65222625 | W134: 26.92663569 | X134: 26.88592592 | Y134: 26.92189801 | Z134: 26.5 | AA134: 25.5 | AC134: 0 | AD134: 0 | AE134: 0 | AF134: 0 | AG134: 0 | AH134: 0 | AI134: 0 | AJ134: 0 | AK134: 0 | AL134: 0 | AM134: 0 | AN134: 0
A135: DRAB1505 | B135: Underground network assets 33kV and above (cables, ducts etc) | C135: 19.72927069 | D135: 21.05136036 | E135: 22.37351489 | F135: 23.69710151 | G135: 25.02261963 | H135: 26.03253834 | I135: 26.65222625 | J135: 26.92663569 | K135: 26.88592592 | L135: 26.92189801 | M135: 26.5 | N135: 25.5 | P135: 19.72927069 | Q135: 21.05136036 | R135: 22.37351489 | S135: 23.69710151 | T135: 25.02261963 | U135: 26.03253834 | V135: 26.65222625 | W135: 26.92663569 | X135: 26.88592592 | Y135: 26.92189801 | Z135: 26.5 | AA135: 25.5 | AC135: 0 | AD135: 0 | AE135: 0 | AF135: 0 | AG135: 0 | AH135: 0 | AI135: 0 | AJ135: 0 | AK135: 0 | AL135: 0 | AM135: 0 | AN135: 0
A136: DRAB1506 | B136: Zone substations and transformers | C136: 19.72927069 | D136: 21.05136036 | E136: 22.37351489 | F136: 23.69710151 | G136: 25.02261963 | H136: 26.03253834 | I136: 26.65222625 | J136: 26.92663569 | K136: 26.88592592 | L136: 26.92189801 | M136: 26.5 | N136: 25.5 | P136: 19.72927069 | Q136: 21.05136036 | R136: 22.37351489 | S136: 23.69710151 | T136: 25.02261963 | U136: 26.03253834 | V136: 26.65222625 | W136: 26.92663569 | X136: 26.88592592 | Y136: 26.92189801 | Z136: 26.5 | AA136: 25.5 | AC136: 0 | AD136: 0 | AE136: 0 | AF136: 0 | AG136: 0 | AH136: 0 | AI136: 0 | AJ136: 0 | AK136: 0 | AL136: 0 | AM136: 0 | AN136: 0
A137: DRAB1507 | B137: Meters | C137: 9.42547507 | D137: 8.62251017 | E137: 7.81954527 | F137: 7.016580369 | G137: 6.213615469 | H137: 5.355938767 | I137: 4.417197054 | J137: 3.405839639 | K137: 2.333374959 | L137: 1.394860116 | M137: 0.5 | N137: 0 | P137: 9.42547507 | Q137: 8.62251017 | R137: 7.81954527 | S137: 7.016580369 | T137: 6.213615469 | U137: 5.355938767 | V137: 4.417197054 | W137: 3.405839639 | X137: 2.333374959 | Y137: 1.394860116 | Z137: 0.5 | AA137: 0 | AC137: 0 | AD137: 0 | AE137: 0 | AF137: 0 | AG137: 0 | AH137: 0 | AI137: 0 | AJ137: 0 | AK137: 0 | AL137: 4 | AM137: 8 | AN137: 7.5
A138: DRAB1508 | B138: “Other” assets with long lives | C138: 9.918313986 | D138: 9.835450589 | E138: 9.734900583 | F138: 9.623365324 | G138: 9.510418837 | H138: 9.229923102 | I138: 8.640583561 | J138: 7.883691152 | K138: 7.405296506 | L138: 7.164438391 | M138: 7.5 | N138: 8.5 | P138: 10.51655901 | Q138: 10.37925797 | R138: 10.25545058 | S138: 10.11786039 | T138: 9.949444371 | U138: 9.590311704 | V138: 8.954188291 | W138: 8.158789115 | X138: 7.531003652 | Y138: 7.164438391 | Z138: 7.5 | AA138: 8.5 | AC138: 20.3544691 | AD138: 19.45034897 | AE138: 18.37142858 | AF138: 17.41568322 | AG138: 16.77711213 | AH138: 16.19907186 | AI138: 15.43973099 | AJ138: 15.72909707 | AK138: 16.9065 | AL138: 16.75 | AM138: 16.5 | AN138: 16.5
A139: DRAB1509 | B139: “Other” assets with short lives | C139: 7.9689635 | D139: 7.351601234 | E139: 6.734238967 | F139: 6.116876701 | G139: 5.499514434 | H139: 4.898494096 | I139: 4.270231866 | J139: 3.573579345 | K139: 2.949737836 | L139: 3.343312912 | M139: 4 | N139: 3.5 | P139: 7.9689635 | Q139: 7.351601234 | R139: 6.734238967 | S139: 6.116876701 | T139: 5.499514434 | U139: 4.898494096 | V139: 4.270231866 | W139: 3.573579345 | X139: 2.949737836 | Y139: 3.343312912 | Z139: 4 | AA139: 3.5 | AC139: 0 | AD139: 0 | AE139: 0 | AF139: 0 | AG139: 0 | AH139: 0 | AI139: 0 | AJ139: 0 | AK139: 0 | AL139: 0 | AM139: 0 | AN139: 0

Sheet 3.4 Operational data
B1: =INDEX(dms_Worksheet_List,MATCH(dms_Model,dms_Model_List)) -> HISTORICAL ECONOMIC BENCHMARKING - FINANCIAL YEARS
B2: =INDEX(dms_TradingNameFull_List,MATCH(dms_TradingName,dms_TradingName_List)) -> Powercor Australia
B3: =dms_Header_Span -> 2006-07 to 2018-19
B4: 3.4 OPERATIONAL DATA
B6: There are THREE tables on this worksheet. Each table has been grouped for ease of navigation. See the Instructions sheet on how to group or ungroup tables.
B8: 3.4.1 - ENERGY DELIVERY
D9: Standard control services
D10: VOLUMES (0's) (GWh)
C11: Units | D11: =dms_y1 -> 2006-07 | E11: =dms_y2 -> 2007-08 | F11: =dms_y3 -> 2008-09 | G11: =dms_y4 -> 2009-10 | H11: =dms_y5 -> 2010-11 | I11: =dms_y6 -> 2011-12 | J11: =dms_y7 -> 2012-13 | K11: =dms_y8 -> 2013-14 | L11: =dms_y9 -> 2014-15 | M11: =dms_y10 -> 2015-16 | N11: =dms_y11 -> 2016-17 | O11: =dms_y12 -> 2017-18
A12: DOPED01 | B12: Total energy delivered | C12: GWh | D12: 10223.50042 | E12: 10404.76433 | F12: 10500.52227 | G12: 10584.41154 | H12: 10574.39127 | I12: 10607.24136 | J12: 10649.84372 | K12: 10444.42161 | L12: 10522.80847 | M12: 10684.82751 | N12: 10688.66 | O12: 10736.51739
B14: 3.4.1.1 - Energy grouping - delivery by chargeable quantity
A15: DOPED0201 | B15: Energy Delivery where time of use is not a determinant | C15: GWh | D15: 2621.46034 | E15: 2659.059142 | F15: 2759.637638 | G15: 2803.944575 | H15: 2687.840332 | I15: 2544.886374 | J15: 2439.391431 | K15: 2345.843819 | L15: 2374.8993 | M15: 2467.154473 | N15: 2522.465 | O15: 2566.302623
A16: DOPED0202 | B16: Energy Delivery at On-peak times | C16: GWh | D16: 3666.480854 | E16: 3769.217127 | F16: 3781.775853 | G16: 3834.930787 | H16: 3919.118504 | I16: 4008.64114 | J16: 4090.016482 | K16: 4070.114118 | L16: 4148.77781 | M16: 4199.899897 | N16: 4159.255 | O16: 4118.924676
A17: DOPED0203 | B17: Energy Delivery at Shoulder times | C17: GWh | D17: 0 | E17: 0 | F17: 0 | G17: 0 | H17: 0 | I17: 0 | J17: 0.02805523612 | K17: 2.038146364 | L17: 6.187187734 | M17: 9.177096606 | N17: 8.87 | O17: 7.71953337
A18: DOPED0204 | B18: Energy Delivery at Off-peak times | C18: GWh | D18: 3272.340635 | E18: 3339.445565 | F18: 3338.339239 | G18: 3350.139942 | H18: 3399.456881 | I18: 3518.385782 | J18: 3620.213614 | K18: 3542.292918 | L18: 3486.882854 | M18: 3492.770004 | N18: 3510.405 | O18: 3582.594572
A19: DOPED0205 | B19: Controlled load energy deliveries | C19: GWh | D19: 572.3177382 | E19: 543.2522943 | F19: 524.8314033 | G19: 496.5233976 | H19: 466.437504 | I19: 432.9889724 | J19: 396.4227749 | K19: 379.5048682 | L19: 408.3568253 | M19: 426.9382197 | N19: 410.34 | O19: 391.7292639
A20: DOPED0206 | B20: Energy Delivery to unmetered supplies | C20: GWh | D20: 90.90085012 | E20: 93.79020262 | F20: 95.93813909 | G20: 98.87283988 | H20: 101.5380498 | I20: 102.3390941 | J20: 103.7713684 | K20: 104.6275312 | L20: 97.70449065 | M20: 88.88803241 | N20: 77.33 | O20: 69.25172057
B22: 3.4.1.2 - Energy - received from TNSP and other DNSPs by time of receipt
A23: DOPED0301 | B23: Energy into DNSP network at On-peak times | C23: GWh | D23: 5413 | E23: 5608 | F23: 5704.5 | G23: 5821.305746 | H23: 5780.400784 | I23: 5616.828849 | J23: 5582.997039 | K23: 5372.429567 | L23: 5413.774271 | M23: 5576.265862 | N23: 5436.137959 | O23: 5212.726943
A24: DOPED0302 | B24: Energy into DNSP network at Shoulder times | C24: GWh | D24: 0 | E24: 0 | F24: 0 | G24: 0 | H24: 0 | I24: 0 | J24: 0 | K24: 0 | L24: 0 | M24: 0 | N24: 0 | O24: 0
A25: DOPED0303 | B25: Energy into DNSP network at Off-peak times | C25: GWh | D25: 5187.5 | E25: 5276 | F25: 5299 | G25: 5330.994301 | H25: 5260.171802 | I25: 5199.216103 | J25: 5176.571903 | K25: 4937.947808 | L25: 4944.656196 | M25: 4972.231025 | N25: 4937.690785 | O25: 4789.390692
A26: DOPED0304 | B26: Energy received from TNSP and other DNSPs not included in the above categories | C26: GWh | D26: 0 | E26: 0 | F26: 0 | G26: 0 | H26: 0 | I26: 0 | J26: 0 | K26: 0 | L26: 0 | M26: 0 | N26: 0 | O26: 0
B28: 3.4.1.3 - Energy - received into DNSP system from embedded generation by time of receipt
A29: DOPED0401 | B29: Energy into DNSP network at On-peak times from non-residential embedded generation | C29: GWh | D29: 177.5 | E29: 200 | F29: 187.5 | G29: 169 | H29: 191.5 | I29: 266 | J29: 284.8988828 | K29: 320.3058759 | L29: 316.8796015 | M29: 0 | N29: 313.9613369 | O29: 404.3179315
A30: DOPED0402 | B30: Energy into DNSP network at Shoulder times from non-residential embedded generation | C30: GWh | D30: 0 | E30: 0 | F30: 0 | G30: 0 | H30: 0 | I30: 0 | J30: 0 | K30: 0 | L30: 0 | M30: 0 | N30: 0 | O30: 0
A31: DOPED0403 | B31: Energy into DNSP network at Off-peak times from non-residential embedded generation | C31: GWh | D31: 158 | E31: 173.5 | F31: 167.5 | G31: 162.5 | H31: 199 | I31: 263 | J31: 287.5609069 | K31: 333.5939093 | L31: 302.485956 | M31: 0 | N31: 349.0170122 | O31: 466.8810152
A32: DOPED0404 | B32: Energy received from embedded generation not included in above categories from non-residential embedded generation | C32: GWh | D32: 0 | E32: 0 | F32: 0 | G32: 0 | H32: 0 | I32: 0 | J32: 0 | K32: 0 | L32: 0 | M32: 0 | N32: 0 | O32: 0
A33: DOPED0405 | B33: Energy into DNSP network at On-peak times from residential embedded generation | C33: GWh | D33: 0 | E33: 0 | F33: 0 | G33: 0 | H33: 4.5 | I33: 22.5 | J33: 0 | K33: 0 | L33: 136.4475549 | M33: 0 | N33: 174.8887615 | O33: 192.4752264
A34: DOPED0406 | B34: Energy into DNSP network at Shoulder times from residential embedded generation | C34: GWh | D34: 0 | E34: 0 | F34: 0 | G34: 0 | H34: 0 | I34: 0 | J34: 0 | K34: 0 | L34: 0 | M34: 0 | N34: 0 | O34: 0
A35: DOPED0407 | B35: Energy into DNSP network at Off-peak times from residential embedded generation | C35: GWh | D35: 0 | E35: 0 | F35: 0 | G35: 0 | H35: 2 | I35: 9 | J35: 0 | K35: 0 | L35: 56.50915322 | M35: 0 | N35: 70.37096028 | O35: 79.15622423
A36: DOPED0408 | B36: Energy received from embedded generation not included in above categories from residential embedded generation | C36: GWh | D36: 0 | E36: 0 | F36: 0 | G36: 0 | H36: 0 | I36: 0 | J36: 0 | K36: 0 | L36: 0 | M36: 0 | N36: 0 | O36: 0
B38: 3.4.1.4 - Energy grouping - customer type or class
A39: DOPED0501 | B39: Residential customers energy deliveries | C39: GWh | D39: 3416.749796 | E39: 3461.455469 | F39: 3579.495463 | G39: 3628.911016 | H39: 3532.289881 | I39: 3454.916372 | J39: 3420.438508 | K39: 3336.287906 | L39: 3359.80164 | M39: 3436.237208 | N39: 3499.595 | O39: 3546.234864
A40: DOPED0502 | B40: Non residential customers not on demand tariffs energy deliveries | C40: GWh | D40: 2068.211917 | E40: 2065.950727 | F40: 2108.048648 | G40: 2102.466437 | H40: 2059.981515 | I40: 2080.21039 | J40: 2101.734231 | K40: 2089.891953 | L40: 2103.152693 | M40: 2087.827912 | N40: 1523.25 | O40: 989.6806639
A41: DOPED0503 | B41: Non-residential low voltage demand tariff customers energy deliveries | C41: GWh | D41: 1846.101644 | E41: 1955.42523 | F41: 2045.251913 | G41: 2094.610618 | H41: 2124.706538 | I41: 2178.273434 | J41: 2240.227917 | K41: 2275.870738 | L41: 2324.167055 | M41: 2357.874175 | N41: 2897.575 | O41: 3447.888151
A42: DOPED0504 | B42: Non-residential high voltage demand tariff customers energy deliveries | C42: GWh | D42: 2892.43706 | E42: 2921.932904 | F42: 2767.726249 | G42: 2758.42347 | H42: 2857.413337 | I42: 2893.841166 | J42: 2887.443069 | K42: 2742.371016 | L42: 2735.687079 | M42: 2802.388214 | N42: 2767.74 | O42: 2752.71371
A43: DOPED0505 | B43: Other Customer Class Energy Deliveries | C43: GWh | D43: 0 | E43: 0 | F43: 0 | G43: 0 | H43: 0 | I43: 0 | J43: 0 | K43: 0 | L43: 0 | M43: 0 | N43: 0 | O43: 0
B46: 3.4.2 - CUSTOMER NUMBERS
D47: Standard control services
D48: VOLUMES (0's)
D49: =dms_y1 -> 2006-07 | E49: =dms_y2 -> 2007-08 | F49: =dms_y3 -> 2008-09 | G49: =dms_y4 -> 2009-10 | H49: =dms_y5 -> 2010-11 | I49: =dms_y6 -> 2011-12 | J49: =dms_y7 -> 2012-13 | K49: =dms_y8 -> 2013-14 | L49: =dms_y9 -> 2014-15 | M49: =dms_y10 -> 2015-16 | N49: =dms_y11 -> 2016-17 | O49: =dms_y12 -> 2017-18
B50: 3.4.2.1 - Distribution customer numbers by customer type or class
A51: DOPCN0101 | B51: Residential customer numbers | D51: 564936.6068 | E51: 576261.4007 | F51: 588003.871 | G51: 601001.393 | H51: 616037.2364 | I51: 630222.5571 | J51: 641655.8155 | K51: 652593.5255 | L51: 664254.9755 | M51: 678096.8784 | N51: 693380 | O51: 709409.5
A52: DOPCN0102 | B52: Non residential customers not on demand tariff customer numbers | D52: 96885.24028 | E52: 97553.21906 | F52: 98176.69963 | G52: 98427.50771 | H52: 98408.79824 | I52: 98296.03573 | J52: 98076.57866 | K52: 97867.74048 | L52: 97723.94588 | M52: 100826.7757 | N52: 102451 | O52: 99497
A53: DOPCN0103 | B53: Low voltage demand tariff customer numbers | D53: 1698.769655 | E53: 1832.011448 | F53: 1974.860809 | G53: 2094.702574 | H53: 2194.06505 | I53: 2291.910541 | J53: 2392.790001 | K53: 2498.473245 | L53: 2594.857814 | M53: 2671.321134 | N53: 4769 | O53: 8899.5
A54: DOPCN0104 | B54: High voltage demand tariff customer numbers | D54: 160.0418502 | E54: 164.8456341 | F54: 167.8796028 | G54: 169.6494179 | H54: 170.4079101 | I54: 171.419233 | J54: 174.4532017 | K54: 178.4984933 | L54: 183.5948616 | M54: 193.834292 | N54: 203 | O54: 207
A55: DOPCN0105 | B55: Unmetered Customer Numbers | D55: 6213.315118 | E55: 6277.534123 | F55: 6357.175802 | G55: 6418.866499 | H55: 6440.10428 | I55: 6439.598619 | J55: 6437.828804 | K55: 6438.840127 | L55: 6443.499776 | M55: 6561.694805 | N55: 7141.5 | O55: 8052
A56: DOPCN0106 | B56: Other Customer Numbers | D56: 0 | E56: 0 | F56: 0 | G56: 0 | H56: 0 | I56: 0 | J56: 0 | K56: 0 | L56: 0 | M56: 0 | N56: 0 | O56: 0
A57: DOPCN01 | C57: Total customer numbers | D57: =SUM(D51:D56) -> 669893.9737 | E57: 682089.011 | F57: 694680.4869 | G57: 708112.1192 | H57: 723250.6118 | I57: 737421.5213 | J57: 748737.4661 | K57: 759577.0779 | L57: 771200.8739 | M57: 788350.5044 | N57: 807944.5 | O57: 826065
B59: 3.4.2.2 - Distribution customer numbers by location on the network
A60: DOPCN0201 | B60: Customers on CBD network | D60: 0 | E60: 0 | F60: 0 | G60: 0 | H60: 0 | I60: 0 | J60: 0 | K60: 0 | L60: 0 | M60: 0 | N60: 0 | O60: 0
A61: DOPCN0202 | B61: Customers on Urban network | D61: 212190.0456 | E61: 241765.9278 | F61: 247907.3687 | G61: 253730.9106 | H61: 259431.0718 | I61: 265826.8827 | J61: 284181.2497 | K61: 301488.0665 | L61: 306101.7336 | M61: 312908.7023 | N61: 317131.5 | O61: 319684.1769
A62: DOPCN0203 | B62: Customers on Short rural network | D62: 257706.9601 | E62: 239338.4016 | F62: 243135.8394 | G62: 248663.1861 | H62: 254907.6252 | I62: 260373.0516 | J62: 273158.6044 | K62: 285738.6865 | L62: 290111.3411 | M62: 296562.7161 | N62: 290972 | O62: 289235.2437
A63: DOPCN0204 | B63: Customers on Long rural network | D63: 199996.968 | E63: 200984.6816 | F63: 203637.2788 | G63: 205718.0225 | H63: 208911.9149 | I63: 211221.587 | J63: 191397.612 | K63: 172350.325 | L63: 174987.7993 | M63: 178879.0859 | N63: 199841 | O63: 217145.5794
A64: DOPCN02 | C64: Total customer numbers | D64: =SUM(D60:D63) -> 669893.9737 | E64: 682089.011 | F64: 694680.4869 | G64: 708112.1192 | H64: 723250.6118 | I64: 737421.5213 | J64: 748737.4661 | K64: 759577.0779 | L64: 771200.8739 | M64: 788350.5044 | N64: 807944.5 | O64: 826065
B68: 3.4.3 - SYSTEM DEMAND
D69: Standard control services
D70: VOLUMES (0's)
C71: Units | D71: =dms_y1 -> 2006-07 | E71: =dms_y2 -> 2007-08 | F71: =dms_y3 -> 2008-09 | G71: =dms_y4 -> 2009-10 | H71: =dms_y5 -> 2010-11 | I71: =dms_y6 -> 2011-12 | J71: =dms_y7 -> 2012-13 | K71: =dms_y8 -> 2013-14 | L71: =dms_y9 -> 2014-15 | M71: =dms_y10 -> 2015-16 | N71: =dms_y11 -> 2016-17 | O71: =dms_y12 -> 2017-18
B72: 3.4.3.1 - Annual system maximum demand characteristics at the zone substation level – MW measure
A73: DOPSD0101 | B73: Non-coincident Summated Raw System Annual Maximum Demand | C73: MW | D73: 2152.396972 | E73: 2258.959512 | F73: 2436.54 | G73: 2329.86 | H73: 2285 | I73: 1898.831904 | J73: 2211.372021 | K73: 2205.835394 | L73: 2060.641969 | M73: 2244.80188 | N73: 2240.24122 | O73: 2266.78
A74: DOPSD0102 | B74: Non–coincident Summated Weather Adjusted System Annual Maximum Demand 10% POE | C74: MW | D74: 2315.979142 | E74: 2270.25431 | F74: 2375.6265 | G74: 2369.46762 | H74: 2431.5 | I74: 2054.801249 | J74: 2360.226296 | K74: 2275.341284 | L74: 2431.555133 | M74: 2546.438424 | N74: 2664.66394 | O74: 2491.542233
A75: DOPSD0103 | B75: Non–coincident Summated Weather Adjusted System Annual Maximum Demand 50% POE | C75: MW | D75: 2171.768545 | E75: 2121.162982 | F75: 2209.94178 | G75: 2199.38784 | H75: 2315 | I75: 1954.542096 | J75: 2216.158017 | K75: 2070.739547 | L75: 2210.327425 | M75: 2287.668722 | N75: 2376.189716 | O75: 2238.381031
A76: DOPSD0104 | B76: Coincident Raw System Annual Maximum Demand | C76: MW | D76: 1821.64 | E76: 1963.5 | F76: 2126.12 | G76: 2121.2 | H76: 1957 | I76: 1421.527478 | J76: 1779.430545 | K76: 1930.016274 | L76: 1633.267932 | M76: 1889.001669 | N76: 1805.22 | O76: 1924.99
A77: DOPSD0105 | B77: Coincident Weather Adjusted System Annual Maximum Demand 10% POE | C77: MW | D77: 1960.08464 | E77: 1973.3175 | F77: 2072.967 | G77: 2157.2604 | H77: 2036.713786 | I77: 1783.081009 | J77: 2228 | K77: 2301 | L77: 2191 | M77: 2335 | N77: 2465 | O77: 2230
A78: DOPSD0106 | B78: Coincident Weather Adjusted System Annual Maximum Demand 50% POE | C78: MW | D78: 1838.03476 | E78: 1843.7265 | F78: 1928.39084 | G78: 2002.4128 | H78: 1939.129103 | I78: 1616.703341 | J78: 2111 | K78: 2112 | L78: 2009 | M78: 2118 | N78: 2115 | O78: 2002
B80: 3.4.3.2 - Annual system maximum demand characteristics at the transmission connection point – MW measure
A81: DOPSD0107 | B81: Non-coincident Summated Raw System Annual Maximum Demand | C81: MW | D81: 2183.549 | E81: 2313.63 | F81: 2516.69 | G81: 2446.64 | H81: 2383.48 | I81: 2309.948609 | J81: 2469.359743 | K81: 2585.065511 | L81: 2480.272277 | M81: 2632.888722 | N81: 2607.809882 | O81: 2883.052983
A82: DOPSD0108 | B82: Non–coincident Summated Weather Adjusted System Annual Maximum Demand 10% POE | C82: MW | D82: 2349.498724 | E82: 2325.19815 | F82: 2453.77275 | G82: 2488.23288 | H82: 2540.7 | I82: 2681.771831 | J82: 2711.769789 | K82: 2688.362071 | L82: 2992.012311 | M82: 3088.118878 | N82: 3159.155463 | O82: 3199.329368
A83: DOPSD0109 | B83: Non–coincident Summated Weather Adjusted System Annual Maximum Demand 50% POE | C83: MW | D83: 2203.200941 | E83: 2172.49857 | F83: 2282.63783 | G83: 2309.62816 | H83: 2404.1 | I83: 2499.434469 | J83: 2497.114728 | K83: 2417.561983 | L83: 2683.577479 | M83: 2734.492917 | N83: 2837.718327 | O83: 2861.809844
A84: DOPSD0110 | B84: Coincident Raw System Annual Maximum Demand | C84: MW | D84: 2027.88 | E84: 2135.28 | F84: 2333.33 | G84: 2299.59 | H84: 2196.25 | I84: 2114.790768 | J84: 2221.862272 | K84: 2326.64244 | L84: 2054.073084 | M84: 2204.039204 | N84: 2156.332444 | O84: 2269.498224
A85: DOPSD0111 | B85: Coincident Weather Adjusted System Annual Maximum Demand 10% POE | C85: MW | D85: 2181.99888 | E85: 2145.9564 | F85: 2274.99675 | G85: 2338.68303 | H85: 2422.46375 | I85: 2437.872356 | J85: 2531 | K85: 2425 | L85: 2426 | M85: 2535 | N85: 2639 | O85: 2698
A86: DOPSD0112 | B86: Coincident Weather Adjusted System Annual Maximum Demand 50% POE | C86: MW | D86: 2046.13092 | E86: 2005.02792 | F86: 2116.33031 | G86: 2170.81296 | H86: 2244.5675 | I86: 2193.829411 | J86: 2349 | K86: 2177 | L86: 2171 | M86: 2312 | N86: 2321 | O86: 2397
B88: 3.4.3.3 - Annual system maximum demand characteristics at the zone substation level – MVA measure
A89: DOPSD0201 | B89: Non–coincident Summated Raw System Annual Maximum Demand | C89: MVA | D89: 2242.895447 | E89: 2372.007833 | F89: 2519.09 | G89: 2402.96 | H89: 2370 | I89: 1912.724249 | J89: 2228.319095 | K89: 2199.671347 | L89: 2031.761033 | M89: 2238.610269 | N89: 2248.339868 | O89: 2265.47
A90: DOPSD0202 | B90: Non–coincident Summated Weather Adjusted System Annual Maximum Demand 10% POE | C90: MVA | D90: 2413.355501 | E90: 2383.867872 | F90: 2456.11275 | G90: 2443.81032 | H90: 2540.1 | I90: 2081.534922 | J90: 2386.813851 | K90: 2268.38814 | L90: 2395.576443 | M90: 2543.910524 | N90: 2677.77202 | O90: 2478.913654
A91: DOPSD0203 | B91: Non–coincident Summated Weather Adjusted System Annual Maximum Demand 50% POE | C91: MVA | D91: 2263.081506 | E91: 2227.315355 | F91: 2284.81463 | G91: 2268.39424 | H91: 2401 | I91: 1973.849748 | J91: 2238.741695 | K91: 2061.430124 | L91: 2177.478443 | M91: 2281.924383 | N91: 2385.428969 | O91: 2227.250373
A92: DOPSD0204 | B92: Coincident Raw System Annual Maximum Demand | C92: MVA | D92: 1901.04 | E92: 2045.87 | F92: 2185.98 | G92: 2183.17 | H92: 2014 | I92: 1410.514493 | J92: 1814.718402 | K92: 2004.893392 | L92: 1690.351312 | M92: 1916.995847 | N92: 1828.59 | O92: 1954.44
A93: DOPSD0205 | B93: Coincident Weather Adjusted System Annual Maximum Demand 10% POE | C93: MVA | D93: 2045.51904 | E93: 2056.09935 | F93: 2131.3305 | G93: 2220.28389 | H93: 2111.391139 | I93: 1760.062103 | J93: 2262 | K93: 2346 | L93: 2218 | M93: 2377 | N93: 2433 | O93: 2352
A94: DOPSD0206 | B94: Coincident Weather Adjusted System Annual Maximum Demand 50% POE | C94: MVA | D94: 1918.14936 | E94: 1921.07193 | F94: 1982.68386 | G94: 2060.91248 | H94: 1995.767932 | I94: 1606.553684 | J94: 2143 | K94: 2152 | L94: 2032 | M94: 2154 | N94: 2169 | O94: 2118
B96: 3.4.3.4 - Annual system maximum demand characteristics at the transmission connection point – MVA measure
A97: DOPSD0207 | B97: Non–coincident Summated Raw System Annual Maximum Demand | C97: MVA | D97: 2328.157287 | E97: 2476.81771 | F97: 2694.62 | G97: 2588.24 | H97: 2531.62 | I97: 2404.291579 | J97: 2535.700037 | K97: 2650.670417 | L97: 2544.602893 | M97: 2690.131208 | N97: 2669.463396 | O97: 2946.478994
A98: DOPSD0208 | B98: Non–coincident Summated Weather Adjusted System Annual Maximum Demand 10% POE | C98: MVA | D98: 2505.097241 | E98: 2489.201798 | F98: 2627.2545 | G98: 2632.24008 | H98: 2711.810979 | I98: 2791.300812 | J98: 2784.622521 | K98: 2756.588482 | L98: 3069.615887 | M98: 3155.25867 | N98: 3233.843819 | O98: 3269.713334
A99: DOPSD0209 | B99: Non–coincident Summated Weather Adjusted System Annual Maximum Demand 50% POE | C99: MVA | D99: 2349.110703 | E99: 2325.731829 | F99: 2444.02034 | G99: 2443.29856 | H99: 2404.1 | I99: 2601.516425 | J99: 2564.20067 | K99: 2478.915913 | L99: 2753.181206 | M99: 2793.944413 | N99: 2904.807307 | O99: 2924.768515
A100: DOPSD0210 | B100: Coincident Raw System Annual Maximum Demand | C100: MVA | D100: 2170.63 | E100: 2286.13 | F100: 2486.98 | G100: 2435.5 | H100: 2333.99 | I100: 2200.947918 | J100: 2308.583483 | K100: 2422.147319 | L100: 2103.070798 | M100: 2299.528613 | N100: 2249.75497 | O100: 2367.823627
A101: DOPSD0211 | B101: Coincident Weather Adjusted System Annual Maximum Demand 10% POE | C101: MVA | D101: 2335.59788 | E101: 2297.56065 | F101: 2424.8055 | G101: 2476.9035 | H101: 2574.39097 | I101: 2530.682736 | J101: 2643 | K101: 2537 | L101: 2507 | M101: 2627 | N101: 2733 | O101: 2764
A102: DOPSD0212 | B102: Coincident Weather Adjusted System Annual Maximum Demand 50% POE | C102: MVA | D102: 2190.16567 | E102: 2146.67607 | F102: 2255.69086 | G102: 2299.112 | H102: 2385.33778 | I102: 2277.47041 | J102: 2453 | K102: 2277 | L102: 2242 | M102: 2397 | N102: 2404 | O102: 2456
B104: 3.4.3.5 - Power factor conversion between MVA and MW
A105: DOPSD0301 | B105: Average overall network power factor conversion between MVA and MW | C105: Factor | D105: 0.9342356827 | E105: 0.934015126 | F105: 0.9382182406 | G105: 0.9441962636 | H105: 0.9409851799 | I105: 0.9632746055 | J105: 0.9576029352 | K105: 0.9560825648 | L105: 0.9683318466 | M105: 0.9645390071 | N105: 0.9654742097 | O105: 0.9759771987
A106: DOPSD0302 | B106: Average power factor conversion for low voltage distribution lines | C106: Factor | D106: 0.85 | E106: 0.85 | F106: 0.85 | G106: 0.85 | H106: 0.85 | I106: 0.85 | J106: 0.85 | K106: 0.85 | L106: 0.85 | M106: 0.85 | N106: 0.85 | O106: 0.85
A107: DOPSD0303 | B107: Average power factor conversion for 3.3 kV lines | C107: Factor | D107: 0 | E107: 0 | F107: 0 | G107: 0 | H107: 0 | I107: - | J107: - | K107: - | L107: - | M107: - | N107: - | O107: -
A108: DOPSD0304 | B108: Average power factor conversion for 6.6 kV lines | C108: Factor | D108: 0 | E108: 0 | F108: 0 | G108: 0 | H108: 0 | I108: - | J108: - | K108: - | L108: - | M108: - | N108: - | O108: -
A109: DOPSD0305 | B109: Average power factor conversion for 7.6 kV lines | C109: Factor | D109: 0 | E109: 0 | F109: 0 | G109: 0 | H109: 0 | I109: - | J109: - | K109: - | L109: - | M109: - | N109: - | O109: -
A110: DOPSD0306 | B110: Average power factor conversion for 11 kV lines | C110: Factor | D110: 0.9 | E110: 0.9 | F110: 0.9 | G110: 0.9 | H110: 0.9 | I110: 0.9 | J110: 0.9 | K110: 0.9 | L110: 0.9 | M110: 0.9 | N110: 0.9 | O110: 0.9
A111: DOPSD0307 | B111: Average power factor conversion for SWER lines | C111: Factor | D111: 0.9 | E111: 0.9 | F111: 0.9 | G111: 0.9 | H111: 0.9 | I111: 0.9 | J111: 0.9 | K111: 0.9 | L111: 0.9 | M111: 0.9 | N111: 0.9 | O111: 0.9
A112: DOPSD0308 | B112: Average power factor conversion for 22 kV lines | C112: Factor | D112: 0.9 | E112: 0.9 | F112: 0.9 | G112: 0.9 | H112: 0.9 | I112: 0.9 | J112: 0.9 | K112: 0.9 | L112: 0.9 | M112: 0.9 | N112: 0.9 | O112: 0.9
A113: DOPSD0309 | B113: Average power factor conversion for 33 kV lines | C113: Factor | D113: 0 | E113: 0 | F113: 0 | G113: 0 | H113: 0 | I113: - | J113: - | K113: - | L113: - | M113: - | N113: - | O113: -
A114: DOPSD0310 | B114: Average power factor conversion for 44 kV lines | C114: Factor | D114: 0 | E114: 0 | F114: 0 | G114: 0 | H114: 0 | I114: - | J114: - | K114: - | L114: - | M114: - | N114: - | O114: -
A115: DOPSD0311 | B115: Average power factor conversion for 66 kV lines | C115: Factor | D115: 0.95 | E115: 0.95 | F115: 0.95 | G115: 0.95 | H115: 0.95 | I115: 0.95 | J115: 0.95 | K115: 0.95 | L115: 0.95 | M115: 0.95 | N115: 0.95 | O115: 0.95
A116: DOPSD0312 | B116: Average power factor conversion for 110 kV lines | C116: Factor | D116: 0 | E116: 0 | F116: 0 | G116: 0 | H116: 0 | I116: - | J116: - | K116: - | L116: - | M116: - | N116: - | O116: -
A117: DOPSD0313 | B117: Average power factor conversion for 132 kV lines | C117: Factor | D117: 0 | E117: 0 | F117: 0 | G117: 0 | H117: 0 | I117: - | J117: - | K117: - | L117: - | M117: - | N117: - | O117: -
A118: DOPSD0314 | B118: Average power factor conversion for 220 kV lines | C118: Factor | D118: 0 | E118: 0 | F118: 0 | G118: 0 | H118: 0 | I118: - | J118: - | K118: - | L118: - | M118: - | N118: - | O118: -
B120: 3.4.3.6 - Demand supplied (for customers charged on this basis) – MW measure
A121: DOPSD0401 | B121: Summated Chargeable Contracted Maximum Demand | C121: MW | D121: 1322.0935 | E121: 1362.213 | F121: 1461.158 | G121: 1546.002323 | H121: 1778.600828 | I121: 1830.88793 | J121: 1681.054464 | K121: 1682.011781 | L121: 1699.843445 | M121: 1708.255704 | N121: 849 | O121: 0
A122: DOPSD0402 | B122: Summated Chargeable Measured Maximum Demand | C122: MW | D122: 0 | E122: 0 | F122: 0 | G122: 0 | H122: 0 | I122: 0 | J122: 0 | K122: 0 | L122: 0 | M122: 906 | N122: 1098 | O122: 381.3731254
B124: 3.4.3.7 - Demand supplied (for customers charged on this basis) – MVA measure
A125: DOPSD0403 | B125: Summated Chargeable Contracted Maximum Demand | C125: MVA | D125: 0 | E125: 0 | F125: 0 | G125: 0 | H125: 0 | I125: 0 | J125: 0 | K125: 0 | L125: 0 | M125: 0 | N125: 0 | O125: 0
A126: DOPSD0404 | B126: Summated Chargeable Measured Maximum Demand | C126: MVA | D126: 0 | E126: 0 | F126: 0 | G126: 0 | H126: 0 | I126: 0 | J126: 0 | K126: 0 | L126: 0 | M126: 0 | N126: 1535 | O126: 1549.763827

Sheet 3.5 Physical assets
B1: =INDEX(dms_Worksheet_List,MATCH(dms_Model,dms_Model_List)) -> HISTORICAL ECONOMIC BENCHMARKING - FINANCIAL YEARS
B2: =INDEX(dms_TradingNameFull_List,MATCH(dms_TradingName,dms_TradingName_List)) -> Powercor Australia
B3: =dms_Header_Span -> 2006-07 to 2018-19
B4: 3.5 PHYSICAL ASSETS
B6: There are THREE tables on this worksheet. Each table has been grouped (and sub-grouped) for ease of navigation. See the Instructions sheet on how to group or ungroup tables.
B8: 3.5.1 - NETWORK CAPACITIES
D9: VOLUMES (0's)
D10: =dms_y1 -> 2006-07 | E10: =dms_y2 -> 2007-08 | F10: =dms_y3 -> 2008-09 | G10: =dms_y4 -> 2009-10 | H10: =dms_y5 -> 2010-11 | I10: =dms_y6 -> 2011-12 | J10: =dms_y7 -> 2012-13 | K10: =dms_y8 -> 2013-14 | L10: =dms_y9 -> 2014-15 | M10: =dms_y10 -> 2015-16 | N10: =dms_y11 -> 2016-17 | O10: =dms_y12 -> 2017-18
B11: Circuit length
B12: 3.5.1.1 - Overhead network length of circuit at each voltage
A13: DPA0101 | B13: Overhead low voltage distribution | C13: km | D13: 9529.837712 | E13: 9556.502241 | F13: 9552.074349 | G13: 9537.484373 | H13: 9489.276585 | I13: 9571.5 | J13: 9691 | K13: 9671.598705 | L13: 9656.533485 | M13: 9619.98478 | N13: 9584.585 | O13: 9567.56565
A14: DPA0102 | B14: Overhead 2.2 kV | C14: km | D14: 0 | E14: 0 | F14: 0 | G14: 0 | H14: 0 | I14: 0 | J14: 0 | K14: 0 | L14: 0 | M14: 0 | N14: 0 | O14: 0
A15: DPA0103 | B15: Overhead 6.6kv | C15: km | D15: 0 | E15: 0 | F15: 0 | G15: 0 | H15: 0 | I15: 0 | J15: 0 | K15: 0 | L15: 0 | M15: 0 | N15: 0 | O15: 0
A16: DPA0104 | B16: Overhead 7.6 kV | C16: km | D16: 0 | E16: 0 | F16: 0 | G16: 0 | H16: 0 | I16: 0 | J16: 0 | K16: 0 | L16: 0 | M16: 0 | N16: 0 | O16: 0
A17: DPA0105 | B17: Overhead 11 kV | C17: km | D17: 47.85701407 | E17: 47.92478792 | F17: 47.90258254 | G17: 47.82941544 | H17: 47.91738767 | I17: 48 | J17: 48 | K17: 50.648765 | L17: 54.04943 | M17: 54.750665 | N17: 54.685 | O17: 54.76675
A18: DPA0106 | B18: Overhead SWER | C18: km | D18: 21657.3444 | E18: 21687.46418 | F18: 21677.41555 | G18: 21644.30516 | H18: 21686.86534 | I18: 21721.5 | J18: 21697 | K18: 21654.95332 | L18: 21595.03359 | M18: 21519.48027 | N18: 21454.235 | O18: 21406.97428
A19: DPA0107 | B19: Overhead 22 kV | C19: km | D19: 33998.01445 | E19: 34048.56495 | F19: 34032.78895 | G19: 33980.80678 | H19: 34031.30738 | I19: 34102 | J19: 34187 | K19: 34368.50482 | L19: 34505.67606 | M19: 34528.17125 | N19: 34532.375 | O19: 34537.4915
A20: DPA0108 | B20: Overhead 33 kV | C20: km | D20: 0 | E20: 0 | F20: 0 | G20: 0 | H20: 0 | I20: 0 | J20: 0 | K20: 0 | L20: 0 | M20: 0 | N20: 0 | O20: 0
A21: DPA0109 | B21: Overhead 44 kV | C21: km | D21: 0 | E21: 0 | F21: 0 | G21: 0 | H21: 0 | I21: 0 | J21: 0 | K21: 0 | L21: 0 | M21: 0 | N21: 0 | O21: 0
A22: DPA0110 | B22: Overhead 66 kV | C22: km | D22: 3152.477823 | E22: 3158.043837 | F22: 3156.580595 | G22: 3151.759188 | H22: 3152.056192 | I22: 3163 | J22: 3172.5 | K22: 3132.81079 | L22: 3092.747325 | M22: 3122.286535 | N22: 3178.805 | O22: 3195.13763
A23: DPA0111 | B23: Overhead 110kV | C23: km | D23: 0 | E23: 0 | F23: 0 | G23: 0 | H23: 0 | I23: 0 | J23: 0 | K23: 0 | L23: 0 | M23: 0 | N23: 0 | O23: 0
A24: DPA0112 | B24: Overhead 132 kV | C24: km | D24: 0 | E24: 0 | F24: 0 | G24: 0 | H24: 0 | I24: 0 | J24: 0 | K24: 0 | L24: 0 | M24: 0 | N24: 0 | O24: 0
A25: DPA0113 | B25: Overhead 220kV | C25: km | D25: 0 | E25: 0 | F25: 0 | G25: 0 | H25: 0 | I25: 0 | J25: 0 | K25: 0 | L25: 0 | M25: 0 | N25: 0 | O25: 0
A26: DPA0114 | B26: Other | C26: km | D26: 0 | E26: 0 | F26: 0 | G26: 0 | H26: 0 | I26: 0 | J26: 0 | K26: 0 | L26: 0 | M26: 0 | N26: 0 | O26: 0
A27: DPA01 | B27: Total overhead circuit km | C27: km | D27: =SUM(D13:D26) -> 68385.5314 | E27: =SUM(E13:E26) -> 68498.5 | F27: 68466.76203 | G27: 68362.18491 | H27: 68407.42288 | I27: 68606 | J27: 68795.5 | K27: 68878.51639 | L27: 68904.03989 | M27: 68844.6735 | N27: 68804.685 | O27: 68761.93581
B28: 3.5.1.2 - Underground network circuit length at each voltage
A29: DPA0201 | B29: Underground low voltage distribution | C29: km | D29: 2356.330915 | E29: 2433.844925 | F29: 2803.788706 | G29: 3351.407971 | H29: 3375.04467 | I29: 3284 | J29: 3433 | K29: 3565.24382 | L29: 3693.907085 | M29: 3842.863265 | N29: 4049.725 | O29: 4295.443295
A30: DPA0202 | B30: Underground 5 kV | C30: km | D30: 0 | E30: 0 | F30: 0 | G30: 0 | H30: 0 | I30: 0 | J30: 0 | K30: 0 | L30: 0 | M30: 0 | N30: 0 | O30: 0
A31: DPA0203 | B31: Underground 6.6 Kv | C31: km | D31: 0 | E31: 0 | F31: 0 | G31: 0 | H31: 0 | I31: 0 | J31: 0 | K31: 0 | L31: 0 | M31: 0 | N31: 0 | O31: 0
A32: DPA0204 | B32: Underground 7.6 kV | C32: km | D32: 0 | E32: 0 | F32: 0 | G32: 0 | H32: 0 | I32: 0 | J32: 0 | K32: 0 | L32: 0 | M32: 0 | N32: 0 | O32: 0
A33: DPA0205 | B33: Underground 11 kV | C33: km | D33: 14.38495824 | E33: 14.45188065 | F33: 16.64856266 | G33: 19.90026049 | H33: 22.00734503 | I33: 19.5 | J33: 16 | K33: 16.3284375 | L33: 16.7933325 | M33: 17.164895 | N33: 17.5 | O33: 17.5998805
A34: DPA0206 | B34: Underground SWER | C34: km | D34: 46.78319412 | E34: 48.17293549 | F34: 55.49520886 | G34: 66.33420163 | H34: 67.52448342 | I34: 65 | J34: 65.5 | K34: 70.462725 | L34: 101.57745 | M34: 159.064725 | N34: 234.115 | O34: 295.24618
A35: DPA0207 | B35: Underground 22 kV | C35: km | D35: 998.4912591 | E35: 1028.306892 | F35: 1184.609266 | G35: 1415.980073 | H35: 1440.638011 | I35: 1387.5 | J35: 1430 | K35: 1501.377067 | L35: 1596.699002 | M35: 1696.021935 | N35: 1788.21 | O35: 1892.645062
A36: DPA0208 | B36: Underground 33 kV | C36: km | D36: 0 | E36: 0 | F36: 0 | G36: 0 | H36: 0 | I36: 0 | J36: 0 | K36: 0 | L36: 0 | M36: 0 | N36: 0 | O36: 0
A37: DPA0209 | B37: Underground 66 kV | C37: km | D37: 2.159224344 | E37: 2.223366253 | F37: 2.561317332 | G37: 3.061578537 | H37: 3.116514619 | I37: 3 | J37: 3 | K37: 3.291125 | L37: 3.587575 | M37: 3.64645 | N37: 3.62 | O37: 3.5192505
A38: DPA0210 | B38: Underground 110 kV | C38: km | D38: 0 | E38: 0 | F38: 0 | G38: 0 | H38: 0 | I38: 0 | J38: 0 | K38: 0 | L38: 0 | M38: 0 | N38: 0 | O38: 0
A39: DPA0211 | B39: Underground 132 kV | C39: km | D39: 0 | E39: 0 | F39: 0 | G39: 0 | H39: 0 | I39: 0 | J39: 0 | K39: 0 | L39: 0 | M39: 0 | N39: 0 | O39: 0
A40: DPA0212 | B40: Other | C40: km | D40: 0 | E40: 0 | F40: 0 | G40: 0 | H40: 0 | I40: 0 | J40: 0 | K40: 0 | L40: 0 | M40: 0 | N40: 0 | O40: 0
A41: DPA02 | B41: Total underground circuit km | C41: km | D41: =SUM(D29:D40) -> 3418.149551 | E41: =SUM(E29:E40) -> 3527 | F41: 4063.103061 | G41: 4856.684085 | H41: 4908.331025 | I41: 4759 | J41: 4947.5 | K41: 5156.703174 | L41: 5412.564445 | M41: 5718.76127 | N41: 6093.17 | O41: 6504.453669
B43: Circuit Capacity MVA
B44: 3.5.1.3 - Estimated overhead network weighted average MVA capacity by voltage class
A45: DPA0301 | B45: Overhead low voltage distribution | C45: MVA | D45: 0.2 | E45: 0.2 | F45: 0.2 | G45: 0.2 | H45: 0.2 | I45: 0.2 | J45: 0.2 | K45: 0.2 | L45: 0.2 | M45: 0.1 | N45: 0.1 | O45: 0.2
A46: DPA0302 | B46: Overhead 6.6 kV | C46: MVA | D46: 0 | E46: 0 | F46: 0 | G46: 0 | H46: 0 | I46: 0 | J46: 0 | K46: 0 | L46: 0 | M46: 0 | N46: 0 | O46: 0
A47: DPA0303 | B47: Overhead 7.6 kV | C47: MVA | D47: 0 | E47: 0 | F47: 0 | G47: 0 | H47: 0 | I47: 0 | J47: 0 | K47: 0 | L47: 0 | M47: 0 | N47: 0 | O47: 0
A48: DPA0304 | B48: Overhead 11 kV | C48: MVA | D48: 4 | E48: 4 | F48: 4 | G48: 4 | H48: 4 | I48: 4 | J48: 4 | K48: 4 | L48: 4 | M48: 4 | N48: 4 | O48: 4
A49: DPA0305 | B49: Overhead SWER | C49: MVA | D49: 0.07 | E49: 0.075 | F49: 0.08 | G49: 0.08 | H49: 0.08 | I49: 0.08 | J49: 0.08 | K49: 0.08 | L49: 0.08 | M49: 0.04 | N49: 0.04 | O49: 0.08
A50: DPA0306 | B50: Overhead 22 kV | C50: MVA | D50: 8 | E50: 8 | F50: 8 | G50: 8 | H50: 8 | I50: 8 | J50: 8 | K50: 8 | L50: 8 | M50: 8 | N50: 8 | O50: 8
A51: DPA0307 | B51: Overhead 33 kV | C51: MVA | D51: 0 | E51: 0 | F51: 0 | G51: 0 | H51: 0 | I51: 0 | J51: 0 | K51: 0 | L51: 0 | M51: 0 | N51: 0 | O51: 0
A52: DPA0308 | B52: Overhead 44 kV | C52: MVA | D52: 0 | E52: 0 | F52: 0 | G52: 0 | H52: 0 | I52: 0 | J52: 0 | K52: 0 | L52: 0 | M52: 0 | N52: 0 | O52: 0
A53: DPA0309 | B53: Overhead 66 kV | C53: MVA | D53: 50 | E53: 50 | F53: 50 | G53: 50 | H53: 50 | I53: 50 | J53: 50 | K53: 50 | L53: 50 | M53: 50 | N53: 50 | O53: 50
A54: DPA0310 | B54: Overhead 110 kV | C54: MVA | D54: 0 | E54: 0 | F54: 0 | G54: 0 | H54: 0 | I54: 0 | J54: 0 | K54: 0 | L54: 0 | M54: 0 | N54: 0 | O54: 0
A55: DPA0311 | B55: Overhead 132 kV | C55: MVA | D55: 0 | E55: 0 | F55: 0 | G55: 0 | H55: 0 | I55: 0 | J55: 0 | K55: 0 | L55: 0 | M55: 0 | N55: 0 | O55: 0
A56: DPA0312 | B56: Overhead 220 kV | C56: MVA | D56: 0 | E56: 0 | F56: 0 | G56: 0 | H56: 0 | I56: 0 | J56: 0 | K56: 0 | L56: 0 | M56: 0 | N56: 0 | O56: 0
A57: DPA0313 | B57: Other | C57: MVA | D57: 0 | E57: 0 | F57: 0 | G57: 0 | H57: 0 | I57: 0 | J57: 0 | K57: 0 | L57: 0 | M57: 0 | N57: 0 | O57: 0
B58: 3.5.1.4 - Estimated underground network weighted average MVA capacity by voltage class
A59: DPA0401 | B59: Underground low voltage distribution | C59: MVA | D59: 0.2 | E59: 0.2 | F59: 0.2 | G59: 0.2 | H59: 0.2 | I59: 0.2 | J59: 0.2 | K59: 0.2 | L59: 0.2 | M59: 0.1 | N59: 0.1 | O59: 0.2
A60: DPA0402 | B60: Underground 5 kV | C60: MVA | D60: 0 | E60: 0 | F60: 0 | G60: 0 | H60: 0 | I60: 0 | J60: 0 | K60: 0 | L60: 0 | M60: 0 | N60: 0 | O60: 0
A61: DPA0403 | B61: Underground 6.6 kV | C61: MVA | D61: 0 | E61: 0 | F61: 0 | G61: 0 | H61: 0 | I61: 0 | J61: 0 | K61: 0 | L61: 0 | M61: 0 | N61: 0 | O61: 0
A62: DPA0404 | B62: Underground 7.6 kV | C62: MVA | D62: 0 | E62: 0 | F62: 0 | G62: 0 | H62: 0 | I62: 0 | J62: 0 | K62: 0 | L62: 0 | M62: 0 | N62: 0 | O62: 0
A63: DPA0405 | B63: Underground 11 kV | C63: MVA | D63: 4 | E63: 4 | F63: 4 | G63: 4 | H63: 4 | I63: 4 | J63: 4 | K63: 4 | L63: 4 | M63: 4 | N63: 4 | O63: 4
A64: DPA0406 | B64: Underground SWER | C64: MVA | D64: 0.07 | E64: 0.075 | F64: 0.08 | G64: 0.08 | H64: 0.08 | I64: 0.08 | J64: 0.08 | K64: 0.08 | L64: 0.08 | M64: 0.04 | N64: 0.04 | O64: 0.08
A65: DPA0407 | B65: Underground 12.7 kV | C65: MVA | D65: 0 | E65: 0 | F65: 0 | G65: 0 | H65: 0 | I65: 0 | J65: 0 | K65: 0 | L65: 0 | M65: 0 | N65: 0 | O65: 0
A66: DPA0408 | B66: Underground 22 kV | C66: MVA | D66: 8 | E66: 8 | F66: 8 | G66: 8 | H66: 8 | I66: 8 | J66: 8 | K66: 8 | L66: 8 | M66: 8 | N66: 8 | O66: 8
A67: DPA0409 | B67: Underground 33 kV | C67: MVA | D67: 0 | E67: 0 | F67: 0 | G67: 0 | H67: 0 | I67: 0 | J67: 0 | K67: 0 | L67: 0 | M67: 0 | N67: 0 | O67: 0
A68: DPA0410 | B68: Underground 66 kV | C68: MVA | D68: 60 | E68: 60 | F68: 60 | G68: 60 | H68: 60 | I68: 60 | J68: 60 | K68: 60 | L68: 60 | M68: 60 | N68: 60 | O68: 60
A69: DPA0411 | B69: Underground 110 kV | C69: MVA | D69: 0 | E69: 0 | F69: 0 | G69: 0 | H69: 0 | I69: 0 | J69: 0 | K69: 0 | L69: 0 | M69: 0 | N69: 0 | O69: 0
A70: DPA0412 | B70: Underground 132 kV | C70: MVA | D70: 0 | E70: 0 | F70: 0 | G70: 0 | H70: 0 | I70: 0 | J70: 0 | K70: 0 | L70: 0 | M70: 0 | N70: 0 | O70: 0
A71: DPA0413 | B71: Other | C71: MVA | D71: 0 | E71: 0 | F71: 0 | G71: 0 | H71: 0 | I71: 0 | J71: 0 | K71: 0 | L71: 0 | M71: 0 | N71: 0 | O71: 0
B75: 3.5.2 - TRANSFORMER CAPACITIES
D76: VOLUMES (0's)
D77: =dms_y1 -> 2006-07 | E77: =dms_y2 -> 2007-08 | F77: =dms_y3 -> 2008-09 | G77: =dms_y4 -> 2009-10 | H77: =dms_y5 -> 2010-11 | I77: =dms_y6 -> 2011-12 | J77: =dms_y7 -> 2012-13 | K77: =dms_y8 -> 2013-14 | L77: =dms_y9 -> 2014-15 | M77: =dms_y10 -> 2015-16 | N77: =dms_y11 -> 2016-17 | O77: =dms_y12 -> 2017-18
B78: Distribution transformer total installed capacity
A79: DPA0501 | B79: Distribution transformer capacity owned by utility | C79: MVA | D79: 5301.638341 | E79: 5512.717841 | F79: 5751.5385 | G79: 5961.1795 | H79: 6166.144 | I79: 6333.723 | J79: 6501.9995 | K79: 6677.9585 | L79: 6835.76 | M79: 6996.465 | N79: 7174.115 | O79: 7393.9895
A80: DPA0502 | B80: Distribution transformer capacity owned by High Voltage Customers | C80: MVA | D80: 426.15 | E80: 424.75 | F80: 444.1 | G80: 473.45 | H80: 421.85 | I80: 381.8 | J80: 390.05 | K80: 391.65 | L80: 388.15 | M80: 385.55 | N80: 513.645 | O80: 611.398096
A81: DPA0503 | B81: Cold spare capacity included in DPA0501 | C81: MVA | D81: 110.267 | E81: 115.3465 | F81: 111.0385 | G81: 100.67 | H81: 93.1345 | I81: 82.4325 | J81: 78.209 | K81: 73.6135 | L81: 66.87 | M81: 71.92 | N81: 80.615 | O81: 91.4895
B82: Zone substation transformer capacity
A83: DPA0601 | B83: Total installed capacity for first step transformation where there are two steps to reach distribution voltage | C83: MVA | D83: 0 | E83: 0 | F83: 0 | G83: 0 | H83: 0 | I83: 0 | J83: 0 | K83: 0 | L83: 0 | M83: 0 | N83: 0 | O83: 0
A84: DPA0602 | B84: Total installed capacity for second step transformation where there are two steps to reach distribution voltage | C84: MVA | D84: 0 | E84: 0 | F84: 0 | G84: 0 | H84: 0 | I84: 0 | J84: 0 | K84: 0 | L84: 0 | M84: 0 | N84: 0 | O84: 0
A85: DPA0603 | B85: Total zone substation transformer capacity where there is only a single step transformation to reach distribution voltage | C85: MVA | D85: 2727.4 | E85: 2826.9 | F85: 2877.5 | G85: 2898 | H85: 2925 | I85: 3002.75 | J85: 3127.75 | K85: 3233.5 | L85: 3247.75 | M85: 3248.25 | N85: 3319 | O85: 3367
A86: DPA0604 | B86: Total zone substation transformer capacity | C86: MVA | D86: 2727.4 | E86: 2826.9 | F86: 2877.5 | G86: 2898 | H86: 2925 | I86: 3002.75 | J86: 3127.75 | K86: 3273 | L86: 3320.25 | M86: 3314.25 | N86: 3391.5 | O86: 3446
A87: DPA0605 | B87: Cold spare capacity of zone substation transformers included in DPA0604 | C87: MVA | D87: 0 | E87: 0 | F87: 0 | G87: 0 | H87: 0 | I87: 0 | J87: 0 | K87: 39.5 | L87: 72.5 | M87: 66 | N87: 72.5 | O87: 79
B88: Distribution - other transformer capacity
B89: Distribution other - transformer capacity owned by utility | C89: MVA | D89: 0 | E89: 0 | F89: 0 | G89: 0 | H89: 0 | I89: 0 | J89: 0 | K89: 0 | L89: 0 | M89: 0 | N89: 0 | O89: 0
B93: 3.5.3 - PUBLIC LIGHTING
D94: VOLUMES (0's)
D95: =dms_y1 -> 2006-07 | E95: =dms_y2 -> 2007-08 | F95: =dms_y3 -> 2008-09 | G95: =dms_y4 -> 2009-10 | H95: =dms_y5 -> 2010-11 | I95: =dms_y6 -> 2011-12 | J95: =dms_y7 -> 2012-13 | K95: =dms_y8 -> 2013-14 | L95: =dms_y9 -> 2014-15 | M95: =dms_y10 -> 2015-16 | N95: =dms_y11 -> 2016-17 | O95: =dms_y12 -> 2017-18
A96: DPA0701 | B96: Public lighting luminaires | C96: Number | D96: 131672.5 | E96: 135305 | F96: 139408.5 | G96: 143947 | H96: 148216.5 | I96: 151934 | J96: 155155.5 | K96: 157957 | L96: 160733.5 | M96: 164188.5 | N96: 168407.5 | O96: 172591.7
A97: DPA0702 | B97: Public lighting poles | C97: Number | D97: 42275 | E97: 45233 | F97: 48049 | G97: 50722.5 | H97: 52974 | I97: 54416 | J97: 57376 | K97: 66783 | L97: 73753.5 | M97: 76379 | N97: 81290.5 | O97: 85686.5
A98: DPA0703 | B98: Public lighting columns | C98: Number | D98: 0 | E98: 0 | F98: 0 | G98: 0 | H98: 0 | I98: 0 | J98: 0 | K98: 0 | L98: 0 | M98: 0 | N98: 0 | O98: 0

Sheet 3.6 Quality of service
B1: =INDEX(dms_Worksheet_List,MATCH(dms_Model,dms_Model_List)) -> HISTORICAL ECONOMIC BENCHMARKING - FINANCIAL YEARS
B2: =INDEX(dms_TradingNameFull_List,MATCH(dms_TradingName,dms_TradingName_List)) -> Powercor Australia
B3: =dms_Header_Span -> 2006-07 to 2018-19
B4: 3.6 QUALITY OF SERVICE DATA
B6: There are THREE tables on this worksheet. Each table has been grouped (and sub-grouped) for ease of navigation. See the Instructions sheet on how to group or ungroup tables.
B8: 3.6.1 - RELIABILITY
D9: (0's)
C10: Units | D10: =dms_y1 -> 2006-07 | E10: =dms_y2 -> 2007-08 | F10: =dms_y3 -> 2008-09 | G10: =dms_y4 -> 2009-10 | H10: =dms_y5 -> 2010-11 | I10: =dms_y6 -> 2011-12 | J10: =dms_y7 -> 2012-13 | K10: =dms_y8 -> 2013-14 | L10: =dms_y9 -> 2014-15 | M10: =dms_y10 -> 2015-16 | N10: =dms_y11 -> 2016-17 | O10: =dms_y12 -> 2017-18
B11: INCLUSIVE OF MEDs
A12: DQS0101 | B12: Whole of network unplanned SAIDI | C12: minutes/customer | D12: 203.7203491 | E12: 171.7050004 | F12: 220.9733454 | G12: 253.2422431 | H12: 202.7412592 | I12: 168.5046508 | J12: 148.8089613 | K12: 182.7632539 | L12: 179.2715356 | M12: 168.1449717 | N12: 160.6483692 | O12: 158.0178035
A13: DQS0102 | B13: Whole of network unplanned SAIDI excluding excluded outages | C13: minutes/customer | D13: 162.8784682 | E13: 143.4617115 | F13: 174.6921264 | G13: 207.1640526 | H13: 202.5383877 | I13: 168.5046508 | J13: 148.1816783 | K13: 181.3612978 | L13: 176.9055897 | M13: 165.803699 | N13: 159.89269 | O13: 156.3587642
A14: DQS0103 | B14: Whole of network unplanned SAIFI | C14: interruptions/customer | D14: 2.39255047 | E14: 1.978818653 | F14: 2.441005808 | G14: 2.588750079 | H14: 1.761858962 | I14: 1.483035808 | J14: 1.49394363 | K14: 1.694260478 | L14: 1.606943811 | M14: 1.470113965 | N14: 1.383886539 | O14: 1.34693111
A15: DQS0104 | B15: Whole of network unplanned SAIFI excluding excluded outages | C15: interruptions/customer | D15: 2.019721179 | E15: 1.730235134 | F15: 1.857621626 | G15: 2.01131472 | H15: 1.757386595 | I15: 1.483035808 | J15: 1.474394105 | K15: 1.661984272 | L15: 1.580091521 | M15: 1.405988356 | N15: 1.333690705 | O15: 1.320378053
B16: EXCLUSIVE OF MEDs
A17: DQS0105 | B17: Whole of network unplanned SAIDI | C17: minutes/customer | D17: 171.7235445 | E17: 158.0003885 | F17: 190.8686311 | G17: 206.1868176 | H17: 137.7352237 | I17: 127.330105 | J17: 134.9753783 | K17: 154.091285 | L17: 152.6779916 | M17: 134.3398136 | N17: 115.603432 | O17: 119.0389456
A18: DQS0106 | B18: Whole of network unplanned SAIDI excluding excluded outages | C18: minutes/customer | D18: 130.8816636 | E18: 129.7570996 | F18: 144.5874121 | G18: 160.1086271 | H18: 137.5323522 | I18: 127.330105 | J18: 134.3480953 | K18: 152.6893288 | L18: 150.3120458 | M18: 132.0485409 | N18: 114.8977528 | O18: 117.3799062
A19: DQS0107 | B19: Whole of network unplanned SAIFI | C19: interruptions/customer | D19: 2.186615306 | E19: 1.864229749 | F19: 2.238282604 | G19: 2.366699488 | H19: 1.563507859 | I19: 1.362127006 | J19: 1.424254019 | K19: 1.550885905 | L19: 1.517445938 | M19: 1.354301054 | N19: 1.206661016 | O19: 1.221919106
A20: DQS0108 | B20: Whole of network unplanned SAIFI excluding excluded outages | C20: interruptions/customer | D20: 1.813786015 | E20: 1.615646229 | F20: 1.654898421 | G20: 1.78926413 | H20: 1.559035493 | I20: 1.362127006 | J20: 1.404704494 | K20: 1.518609699 | L20: 1.490593648 | M20: 1.340175445 | N20: 1.206465182 | O20: 1.195366048
B23: 3.6.2 - ENERGY NOT SUPPLIED
D24: (0's)
C25: Unit | D25: =dms_y1 -> 2006-07 | E25: =dms_y2 -> 2007-08 | F25: =dms_y3 -> 2008-09 | G25: =dms_y4 -> 2009-10 | H25: =dms_y5 -> 2010-11 | I25: =dms_y6 -> 2011-12 | J25: =dms_y7 -> 2012-13 | K25: =dms_y8 -> 2013-14 | L25: =dms_y9 -> 2014-15 | M25: =dms_y10 -> 2015-16 | N25: =dms_y11 -> 2016-17 | O25: =dms_y12 -> 2017-18
A26: DQS0201 | B26: Energy Not Supplied (planned) | C26: GWh | D26: 0.388501 | E26: 0.502235 | F26: 0.5710405 | G26: 0.56939 | H26: 0.644551 | I26: 0.767094 | J26: 0.942224 | K26: 1.0289035 | L26: 1.0260195 | M26: 1.0142275 | N26: 1.17109 | O26: 1.3451265
A27: DQS0202 | B27: Energy Not Supplied (unplanned) | C27: GWh | D27: 2.532956 | E27: 2.266449 | F27: 2.8018125 | G27: 3.3932755 | H27: 3.27227 | I27: 2.6714825 | J27: 2.5101915 | K27: 3.023975335 | L27: 3.002538835 | M27: 2.9020275 | N27: 2.799385 | O27: 2.730514
A28: DQS02 | B28: Total | D28: =SUM(D26:D27) -> 2.921457 | E28: =SUM(E26:E27) -> 2.768684 | F28: 3.372853 | G28: 3.9626655 | H28: 3.916821 | I28: 3.4385765 | J28: 3.4524155 | K28: 4.052878835 | L28: 4.028558335 | M28: 3.916255 | N28: 3.970475 | O28: 4.0756405
B30: 3.6.3 - SYSTEM LOSSES
D31: (0's)
C32: Unit | D32: =dms_y1 -> 2006-07 | E32: =dms_y2 -> 2007-08 | F32: =dms_y3 -> 2008-09 | G32: =dms_y4 -> 2009-10 | H32: =dms_y5 -> 2010-11 | I32: =dms_y6 -> 2011-12 | J32: =dms_y7 -> 2012-13 | K32: =dms_y8 -> 2013-14 | L32: =dms_y9 -> 2014-15 | M32: =dms_y10 -> 2015-16 | N32: =dms_y11 -> 2016-17 | O32: =dms_y12 -> 2017-18
A33: DQS03 | B33: System losses | C33: % | D33: 0.06674942443 | E33: 0.06488810413 | F33: 0.06767059478 | G33: 0.073065 | H33: 0.064565 | I33: 0.05917 | J33: 0.061735 | K33: 0.06436 | L33: 0.06258 | M33: 0.0598 | N33: 0.062867345 | O33: 0.06106307939
B35: 3.6.4 - CAPACITY UTILISATION
D36: (0's)
C37: Unit | D37: =dms_y1 -> 2006-07 | E37: =dms_y2 -> 2007-08 | F37: =dms_y3 -> 2008-09 | G37: =dms_y4 -> 2009-10 | H37: =dms_y5 -> 2010-11 | I37: =dms_y6 -> 2011-12 | J37: =dms_y7 -> 2012-13 | K37: =dms_y8 -> 2013-14 | L37: =dms_y9 -> 2014-15 | M37: =dms_y10 -> 2015-16 | N37: =dms_y11 -> 2016-17 | O37: =dms_y12 -> 2017-18
A38: DQS04 | B38: Overall utilisation | C38: % | D38: 0.8146897259 | E38: 0.816090328 | F38: 0.8497736675 | G38: 0.8492520729 | H38: 0.8159791358 | I38: 0.7746720868 | J38: 0.755364624 | K38: 0.7622671898 | L38: 0.7494708182 | M38: 0.76 | N38: 0.7297 | O38: 0.6937216036

Sheet 3.7 Operating environment
B1: =INDEX(dms_Worksheet_List,MATCH(dms_Model,dms_Model_List)) -> HISTORICAL ECONOMIC BENCHMARKING - FINANCIAL YEARS
B2: =INDEX(dms_TradingNameFull_List,MATCH(dms_TradingName,dms_TradingName_List)) -> Powercor Australia
B3: =dms_Header_Span -> 2006-07 to 2018-19
B4: 3.7 OPERATING ENVIRONMENT FACTORS
B6: There are THREE tables on this worksheet. Each table has been grouped for ease of navigation. See the Instructions sheet on how to group or ungroup tables.
B8: 3.7.1 - DENSITY FACTORS
D9: (0's)
C10: Units | D10: =dms_y1 -> 2006-07 | E10: =dms_y2 -> 2007-08 | F10: =dms_y3 -> 2008-09 | G10: =dms_y4 -> 2009-10 | H10: =dms_y5 -> 2010-11 | I10: =dms_y6 -> 2011-12 | J10: =dms_y7 -> 2012-13 | K10: =dms_y8 -> 2013-14 | L10: =dms_y9 -> 2014-15 | M10: =dms_y10 -> 2015-16 | N10: =dms_y11 -> 2016-17 | O10: =dms_y12 -> 2017-18
A11: DOEF0101 | B11: Customer density | C11: Customer / km | D11: 10.3220314 | E11: 10.47747053 | F11: 10.59171952 | G11: 10.68765372 | H11: 10.89774411 | I11: 11.10902638 | J11: 11.22714544 | K11: 11.35025566 | L11: 11.48068092 | M11: 11.67043856 | N11: 11.9 | O11: 12.13393837
A12: DOEF0102 | B12: Energy density | C12: MWh/customer | D12: 15.26156595 | E12: 15.25412762 | F12: 15.11699557 | G12: 14.94754459 | H12: 14.62404156 | I12: 14.38368602 | J12: 14.2252829 | K12: 13.75216815 | L12: 13.64361516 | M12: 13.54217221 | N12: 13.2 | O12: 12.98290527
A13: DOEF0103 | B13: Demand density | C13: kVA / customer | D13: 3.315807259 | E13: 3.382334575 | F13: 3.519721819 | G13: 3.476646962 | H13: 3.300318393 | I13: 3.152932168 | J13: 3.155752536 | K13: 3.283979061 | L13: 3.17952754 | M13: 3.068811804 | N13: 3.1 | O13: 3.125771644
B15: 3.7.2 - TERRAIN FACTORS
D16: (0's)
C17: Units | D17: =dms_y1 -> 2006-07 | E17: =dms_y2 -> 2007-08 | F17: =dms_y3 -> 2008-09 | G17: =dms_y4 -> 2009-10 | H17: =dms_y5 -> 2010-11 | I17: =dms_y6 -> 2011-12 | J17: =dms_y7 -> 2012-13 | K17: =dms_y8 -> 2013-14 | L17: =dms_y9 -> 2014-15 | M17: =dms_y10 -> 2015-16 | N17: =dms_y11 -> 2016-17 | O17: =dms_y12 -> 2017-18
A18: DOEF0201 | B18: Rural proportion | C18: % | D18: 0.9182072167 | E18: 0.9182072167 | F18: 0.9182072167 | G18: 0.91771148 | H18: 0.9176257331 | I18: 0.9179194003 | J18: 0.9175950174 | K18: 0.9186934785 | L18: 0.9223214315 | M18: 0.9232214315 | N18: 0.92045 | O18: 0.9219454355
A19: DOEF0202 | B19: Urban and CBD vegetation maintenance spans | C19: Number of spans | D19: 2053 | E19: 2053 | F19: 2053 | G19: 2425 | H19: 2441 | I19: 2305.5 | J19: 1770 | K19: 2714.5 | L19: 4047.5 | M19: 2103 | N19: 2142 | O19: 6227
A20: DOEF0203 | B20: Rural vegetation maintenance spans | C20: Number of spans | D20: 32053 | E20: 32053 | F20: 32053 | G20: 29350.5 | H20: 28798 | I20: 40170.5 | J20: 52027 | K20: 48125.5 | L20: 46972.5 | M20: 52485 | N20: 54137.5 | O20: 60418
A21: DOEF0204 | B21: Total vegetation maintenance spans | C21: Number of spans | D21: 34106 | E21: 34106 | F21: 34106 | G21: 31775.5 | H21: 31239 | I21: 42476 | J21: 53797 | K21: 50840 | L21: 51020 | M21: 54588 | N21: 56279.5 | O21: 66645
A22: DOEF0205 | B22: Total number of spans | C22: Number of spans | D22: 551526 | E22: 551526 | F22: 551526 | G22: 542389 | H22: 534532 | I22: 538141 | J22: 542788.5 | K22: 547845.5 | L22: 524997 | M22: 499483 | N22: 501447 | O22: 505064.5
A23: DOEF0206 | B23: Average urban and CBD vegetation maintenance span cycle | C23: Years | D23: 2.17 | E23: 2.17 | F23: 2.17 | G23: 2.1 | H23: 2.175 | I23: 2.235 | J23: 1.995 | K23: 1.845 | L23: 1.8465 | M23: 1.9215 | N23: 1.99 | O23: 2.018633855
A24: DOEF0207 | B24: Average rural vegetation maintenance span cycle | C24: Years | D24: 2.6 | E24: 2.6 | F24: 2.6 | G24: 2.6 | H24: 2.61 | I24: 2.485 | J24: 2.48 | K24: 2.265 | L24: 2.0925 | M24: 2.2825 | N24: 2.5 | O24: 2.53280502
A25: DOEF0208 | B25: Average number of trees per urban and CBD vegetation maintenance span | C25: Trees | D25: 0 | E25: 0 | F25: 0 | G25: 0 | H25: 0 | I25: 0 | J25: 2.015 | K25: 3.0545 | L25: 2.5685 | M25: 4.429 | N25: 4.055 | O25: 1.736589236
A26: DOEF0209 | B26: Average number of trees per rural vegetation maintenance span | C26: Trees | D26: 0 | E26: 0 | F26: 0 | G26: 0 | H26: 0 | I26: 0 | J26: 4.02 | K26: 6.799 | L26: 6.1785 | M26: 8.3495 | N26: 8.97 | O26: 6.826623604
A27: DOEF0210 | B27: Average number of defects per urban and CBD vegetation maintenance span | C27: Defects | D27: 0 | E27: 0 | F27: 0 | G27: 0 | H27: 0 | I27: 0 | J27: 0.975 | K27: 1.63 | L27: 1.47 | M27: 1.265 | N27: 0.98 | O27: 1.017720191
A28: DOEF0211 | B28: Average number of defects per rural vegetation maintenance span | C28: Defects | D28: 0 | E28: 0 | F28: 0 | G28: 0 | H28: 0 | I28: 0 | J28: 1.965 | K28: 3.46 | L28: 3.225 | M28: 2.18 | N28: 0.97 | O28: 1.016630497
A29: DOEF0212 | B29: Tropical proportion | C29: Spans | D29: 0 | E29: 0 | F29: 0 | G29: 0 | H29: 0 | I29: 0 | J29: 0 | K29: 0 | L29: 0 | M29: 0 | N29: 0 | O29: 0
A30: DOEF0213 | B30: Standard vehicle access | C30: km | D30: 4402 | E30: 4402 | F30: 4402 | G30: 4402 | H30: 4402 | I30: 4402 | J30: 4402 | K30: 4402 | L30: 4411 | M30: 4397 | N30: 4398.5 | O30: 4397.5
A31: DOEF0214 | B31: Bushfire risk | C31: Spans | D31: 278053 | E31: 278053 | F31: 278053 | G31: 278084 | H31: 278010.5 | I31: 279076 | J31: 280377.5 | K31: 280489 | L31: 280609 | M31: 280747 | N31: 280715.5 | O31: 280850
B33: 3.7.3 - SERVICE AREA FACTORS
D34: (0's)
C35: Units | D35: =dms_y1 -> 2006-07 | E35: =dms_y2 -> 2007-08 | F35: =dms_y3 -> 2008-09 | G35: =dms_y4 -> 2009-10 | H35: =dms_y5 -> 2010-11 | I35: =dms_y6 -> 2011-12 | J35: =dms_y7 -> 2012-13 | K35: =dms_y8 -> 2013-14 | L35: =dms_y9 -> 2014-15 | M35: =dms_y10 -> 2015-16 | N35: =dms_y11 -> 2016-17 | O35: =dms_y12 -> 2017-18
A36: DOEF0301 | B36: Route Line length | C36: km | D36: 64898.61915 | E36: 65099.86255 | F36: 65585.92707 | G36: 66253.54576 | H36: 66369.04634 | I36: 66379.43502 | J36: 66689.23114 | K36: 66921.06912 | L36: 67172.92826 | M36: 67460.27826 | N36: 67754.775 | O36: 68028.24144

Sheet NSP Amendments
B1: =CONCATENATE(dms_TradingName," data amendments") -> Powercor Australia data amendments
B2: Amended Table | C2: Comments
